Workbook

Sheet INGRESO DE DATOS
O2: 24 years | P2: FALSE
O4: Descuento 24 años (por edad)
O5: age | P5: Discount (%) | Q5: Parameter | S5: Type | T5: Nuevo Negocio | V5: Zonas | W5: Guayas/Santa Elena
O6: 24 | P6: 35 | Q6: =1-P6/100 -> 0.65 | T6: Renovación | W6: El Resto de Ecuador
O7: 25 | P7: 30 | Q7: =1-P7/100 -> 0.7
O8: 26 | P8: 25 | Q8: 0.75
O9: 27 | P9: 20 | Q9: 0.8
O10: 28 | P10: 15 | Q10: 0.85
O11: 29 | P11: 6 | Q11: 0.94
O12: All ages | P12: 0 | Q12: 1
S13: Type selected | T13: 2 | V13: Selección | W13: 1
V14: Región | W14: =IF(W13=1,"Guayas/Santa Elena","Resto de Ecuador") -> Guayas/Santa Elena
O19: Descuento de 24 años: | P19: =IF(P2,IF(C40=O6,Q6,IF(C40=O7,Q7,IF(C40=O8,Q8,IF(C40=O9,Q9,IF(C40=O10,Q10,IF(C40=O11,Q11,Q12)))))),Q12) -> 1
O24: Descuento por variante de coaseguro | P24: N/A
O30: Descuento si es nuevo negocio (ENTRADA MANUAL)
O32: New business discount
O33: Critical | P33: Diamond | Q33: Complete | R33: Advantage | S33: Secure | T33: Essential
O34: 0 | P34: 0.15 | Q34: 0.15 | R34: 0.15 | S34: 0.15 | T34: 0.15
A36: Nombre del Asegurado principal: | C36: John Doe
O37: Descuento combinado 24 años + Nuevo Negocio o Roneovaciones
A38: Número de adultos en la póliza: | C38: 2 | E38: Número de hijos en la póliza: | G38: 0
A40: Edad del titular: | C40: 32 | E40: Edad de cónyuge: | G40: 32 | O40: New business discount
O41: Critical | P41: Diamond | Q41: Complete | R41: Advantage | S41: Secure | T41: Essential
O42: =1*$P$19 -> 1 | P42: =IF($T$13=1,IF($W$14="PERU2020", (1-O51)*$P$19,(1-P34)*$P$19),1*$P$19) -> 1 | Q42: =IF($T$13=1,IF($W$14="PERU2020", (1-O54)*$P$19,(1-Q34)*$P$19),1*$P$19) -> 1 | R42: =IF($T$13=1,IF($W$14="PERU2020", (1-O57)*$P$19,(1-R34)*$P$19),1*$P$19) -> 1 | S42: =IF($T$13=1,IF($W$14="PERU2020", (1-O60)*$P$19,(1-S34)*$P$19),1*$P$19) -> 1 | T42: =IF($T$13=1,IF($W$14="PERU2020", (1-O63)*$P$19,(1-T34)*$P$19),1*$P$19) -> 1
A44: Nombre de la Agencia : | C44: Agencia
A47: Tarifas en US$ | Validas: 1 de enero de 2025
O48: DISCOUNT PERU 2020
O50: EXCLUSIVE CARE
O51: 0.51
O53: PRIVILEGE CARE
O54: 0.51
O56: ADVANTAGE CARE
O57: 0.47
O59: SECURE CARE
O60: 0.54
O62: ESSENTIAL CARE
O63: 0.54

Sheet Bupa Diamond Care (Mundial)
N1: RESUMEN DE BENEFICIOS | AA1: RESUMEN DE BENEFICIOS
G2: TRUE | H2: FALSE
A5: Cotización de Seguro Médico Internacional Bupa Diamond Care (Mundial) Tarifas en US$ | Validas: 1 de enero de 2025 | L5: REGIÓN
L7: ='INGRESO DE DATOS'!W14 -> Guayas/Santa Elena
A13: Nombre del asegurado principal: | G13: =+'INGRESO DE DATOS'!$C$36 -> John Doe
A15: Broker/Agente | G15: =+'INGRESO DE DATOS'!$C$44 -> Agencia
B17: Número de Adultos en la Póliza | G17: =+'INGRESO DE DATOS'!$C$38 -> 2 | I17: Dependientes (menores de 24 años) | L17: =+'INGRESO DE DATOS'!$G$38 -> 0
J18: =IF('INGRESO DE DATOS'!$P$2=TRUE, "Cotización para dependiente de 24 años","") -> 
B19: Edad del Titular | G19: =+'INGRESO DE DATOS'!$C$40 -> 32 | J19: Edad del Cónyuge | L19: =+'INGRESO DE DATOS'!$G$40 -> 32
J21: Fecha de Cotización: | K21: =NOW() -> 2024-12-04T14:21:37.550
F29: DEDUCIBLES | G29: PLAN 1 | H29: PLAN 2 | I29: PLAN 3 | J29: PLAN 4 | K29: PLAN 5 | L29: PLAN 6
F30: Dentro del pais de residencia | G30: 0 | H30: 1000 | I30: 2000 | J30: 5000 | K30: 10000 | L30: 20000
F31: Fuera del pais de residencia | G31: 1000 | H31: 2000 | I31: 3000 | J31: 5000 | K31: 10000 | L31: 20000
F34: TARIFAS ANUALES
F35: Prima de Titular | G35: =VLOOKUP($G$19,Tablas!$A$9:$H$32,3,TRUE)+75 -> 37181 | H35: =VLOOKUP($G$19,Tablas!$A$9:$H$32,4,TRUE)+75 -> 23139 | I35: =VLOOKUP($G$19,Tablas!$A$9:$H$32,5,TRUE)+75 -> 16662 | J35: =VLOOKUP($G$19,Tablas!$A$9:$H$32,6,TRUE)+75 -> 11949 | K35: =VLOOKUP($G$19,Tablas!$A$9:$H$32,7,TRUE)+75 -> 8229 | L35: =VLOOKUP($G$19,Tablas!$A$9:$H$32,8,TRUE)+75 -> 6527
F36: Prima de Cónyuge | G36: =IF($G$17=1,0,(VLOOKUP($L$19,Tablas!$A$9:$H$32,3,TRUE))) -> 37106 | H36: =IF($G$17=1,0,(VLOOKUP($L$19,Tablas!$A$9:$H$32,4,TRUE))) -> 23064 | I36: =IF($G$17=1,0,(VLOOKUP($L$19,Tablas!$A$9:$H$32,5,TRUE))) -> 16587 | J36: =IF($G$17=1,0,(VLOOKUP($L$19,Tablas!$A$9:$H$32,6,TRUE))) -> 11874 | K36: =IF($G$17=1,0,(VLOOKUP($L$19,Tablas!$A$9:$H$32,7,TRUE))) -> 8154 | L36: =IF($G$17=1,0,(VLOOKUP($L$19,Tablas!$A$9:$H$32,8,TRUE))) -> 6452
F37: Primas Hijos | G37: =IF($L$17=0,0,(VLOOKUP($L$17,Tablas!$A$33:$H$35,3,TRUE))) -> 0 | H37: =IF($L$17=0,0,(VLOOKUP($L$17,Tablas!$A$33:$H$35,4,TRUE))) -> 0 | I37: =IF($L$17=0,0,(VLOOKUP($L$17,Tablas!$A$33:$H$35,5,TRUE))) -> 0 | J37: =IF($L$17=0,0,(VLOOKUP($L$17,Tablas!$A$33:$H$35,6,TRUE))) -> 0 | K37: =IF($L$17=0,0,(VLOOKUP($L$17,Tablas!$A$33:$H$35,7,TRUE))) -> 0 | L37: =IF($L$17=0,0,(VLOOKUP($L$17,Tablas!$A$33:$H$35,8,TRUE))) -> 0
F38: Rider: Complicación de Maternidad | G38: =+IF($G$2=FALSE,0,Tablas!C$36) -> 0 | H38: =+IF($G$2=FALSE,0,Tablas!D$36) -> 0 | I38: =+IF($G$2=FALSE,0,Tablas!E$36) -> 0 | J38: =+IF($G$2=FALSE,0,Tablas!F$36) -> 225 | K38: =+IF($G$2=FALSE,0,Tablas!G$36) -> 225 | L38: =+IF($G$2=FALSE,0,Tablas!H$36) -> 225
F39: TOTAL PRIMA NETA | G39: =SUM(G35:G38) -> 74287 | H39: 46203 | I39: 33249 | J39: 24048 | K39: 16608 | L39: 13204
F40: Contrib. 3.5% Super. Bancos : | G40: =G39*3.5% -> 2600.045 | H40: =H39*3.5% -> 1617.105 | I40: 1163.715 | J40: 841.68 | K40: 581.28 | L40: 462.14
F41: Contrib 0.5% Seg.Soc.Campes: | G41: =G39*0.5% -> 371.435 | H41: =H39*0.5% -> 231.015 | I41: 166.245 | J41: 120.24 | K41: 83.04 | L41: 66.02
F42: GRAN TOTAL: | G42: =SUM(G39:G41) -> 77258.48 | H42: =SUM(H39:H41) -> 48051.12 | I42: 34578.96 | J42: 25009.92 | K42: 17272.32 | L42: =SUM(L39:L41) -> 13732.16
F45: TARIFAS SEMESTRALES
F46: Prima de Titular | G46: =VLOOKUP($G$19,Tablas!$A$44:$H$67,3,TRUE)+75 -> 19741.18 | H46: =VLOOKUP($G$19,Tablas!$A$44:$H$67,4,TRUE)+75 -> 12298.92 | I46: =VLOOKUP($G$19,Tablas!$A$44:$H$67,5,TRUE)+75 -> 8866.11 | J46: =VLOOKUP($G$19,Tablas!$A$44:$H$67,6,TRUE)+75 -> 6368.22 | K46: =VLOOKUP($G$19,Tablas!$A$44:$H$67,7,TRUE)+75 -> 4396.62 | L46: =VLOOKUP($G$19,Tablas!$A$44:$H$67,8,TRUE)+75 -> 3494.56
F47: Prima de Cónyuge | G47: =IF($G$17=1,0,(VLOOKUP($L$19,Tablas!$A$44:$H$67,3,TRUE))) -> 19666.18 | H47: =IF($G$17=1,0,(VLOOKUP($L$19,Tablas!$A$44:$H$67,4,TRUE))) -> 12223.92 | I47: =IF($G$17=1,0,(VLOOKUP($L$19,Tablas!$A$44:$H$67,5,TRUE))) -> 8791.11 | J47: =IF($G$17=1,0,(VLOOKUP($L$19,Tablas!$A$44:$H$67,6,TRUE))) -> 6293.22 | K47: =IF($G$17=1,0,(VLOOKUP($L$19,Tablas!$A$44:$H$67,7,TRUE))) -> 4321.62 | L47: =IF($G$17=1,0,(VLOOKUP($L$19,Tablas!$A$44:$H$67,8,TRUE))) -> 3419.56
F48: Primas Hijos | G48: =IF($L$17=0,0,(VLOOKUP($L$17,Tablas!$A$68:$H$70,3,TRUE))) -> 0 | H48: =IF($L$17=0,0,(VLOOKUP($L$17,Tablas!$A$68:$H$70,4,TRUE))) -> 0 | I48: =IF($L$17=0,0,(VLOOKUP($L$17,Tablas!$A$68:$H$70,5,TRUE))) -> 0 | J48: =IF($L$17=0,0,(VLOOKUP($L$17,Tablas!$A$68:$H$70,6,TRUE))) -> 0 | K48: =IF($L$17=0,0,(VLOOKUP($L$17,Tablas!$A$68:$H$70,7,TRUE))) -> 0 | L48: =IF($L$17=0,0,(VLOOKUP($L$17,Tablas!$A$68:$H$70,8,TRUE))) -> 0
F49: Rider: Complicación de Maternidad | G49: =+IF($G$2=FALSE,0,Tablas!C$71) -> 0 | H49: =+IF($G$2=FALSE,0,Tablas!D$71) -> 0 | I49: =+IF($G$2=FALSE,0,Tablas!E$71) -> 0 | J49: =+IF($G$2=FALSE,0,Tablas!F$71) -> 119.25 | K49: =+IF($G$2=FALSE,0,Tablas!G$71) -> 119.25 | L49: =+IF($G$2=FALSE,0,Tablas!H$71) -> 119.25
F50: TOTAL PRIMA NETA | G50: =SUM(G46:G49) -> 39407.36 | H50: 24522.84 | I50: 17657.22 | J50: 12780.69 | K50: 8837.49 | L50: 7033.37
F51: Contrib. 3.5% Super. Bancos : | G51: =G50*3.5% -> 1379.2576 | H51: =H50*3.5% -> 858.2994 | I51: 618.0027 | J51: 447.32415 | K51: 309.31215 | L51: 246.16795
F52: Contrib 0.5% Seg.Soc.Campes: | G52: =G50*0.5% -> 197.0368 | H52: =H50*0.5% -> 122.6142 | I52: 88.2861 | J52: 63.90345 | K52: 44.18745 | L52: 35.16685
F53: GRAN TOTAL (1ra Cuota) | G53: =SUM(G50:G52) -> 40983.6544 | H53: =SUM(H50:H52) -> 25503.7536 | I53: 18363.5088 | J53: 13291.9176 | K53: 9190.9896 | L53: =SUM(L50:L52) -> 7314.7048
F54: GRAN TOTAL (2da Cuota) | G54: =(G50+G51+G52)*1-78 -> 40905.6544 | H54: =(H50+H51+H52)*1-78 -> 25425.7536 | I54: 18285.5088 | J54: 13213.9176 | K54: 9112.9896 | L54: 7236.7048
F56: Este presupuesto solamente tiene carácter informativo y en ningún momento expresa compromiso legal para suministrarle cobertura de seguro. La emisión de una póliza de seguro Bupa está sujeta a todas las evaluaciones de riesgo por parte de Bupa y a la recepción de todos los pagos de prima requeridos.

Sheet Bupa Diamond Care (LA)
N1: RESUMEN DE BENEFICIOS | AA1: RESUMEN DE BENEFICIOS
G2: FALSE | H2: FALSE
A5: Cotización de Seguro Médico Internacional Bupa Diamond Care (Latinoamérica) Tarifas en US$ | Validas: 1 de enero de 2025 | L5: REGIÓN
L7: ='INGRESO DE DATOS'!W14 -> Guayas/Santa Elena
A13: Nombre del asegurado principal: | G13: =+'INGRESO DE DATOS'!$C$36 -> John Doe
A15: Broker/Agente | G15: =+'INGRESO DE DATOS'!$C$44 -> Agencia
B17: Número de Adultos en la Póliza | G17: =+'INGRESO DE DATOS'!$C$38 -> 2 | J17: Dependientes (menores de 24 años) | L17: =+'INGRESO DE DATOS'!$G$38 -> 0
J18: =IF('INGRESO DE DATOS'!$P$2=TRUE, "Cotización para dependiente de 24 años","") -> 
B19: Edad del Titular | G19: =+'INGRESO DE DATOS'!$C$40 -> 32 | J19: Edad del Cónyuge | L19: =+'INGRESO DE DATOS'!$G$40 -> 32
J21: Fecha de Cotización: | K21: =NOW() -> 2024-12-04T14:21:37.550
F29: DEDUCIBLES | G29: PLAN 1 | H29: PLAN 2 | I29: PLAN 3 | J29: PLAN 4 | K29: PLAN 5 | L29: PLAN 6
F30: Dentro del pais de residencia | G30: 0 | H30: 1000 | I30: 2000 | J30: 5000 | K30: 10000 | L30: 20000
F31: Fuera del pais de residencia | G31: 1000 | H31: 2000 | I31: 3000 | J31: 5000 | K31: 10000 | L31: 20000
F34: TARIFAS ANUALES
F35: Prima de Titular | G35: =VLOOKUP($G$19,Tablas!$A$82:$H$105,3,TRUE)+75 -> 29325 | H35: =VLOOKUP($G$19,Tablas!$A$82:$H$105,4,TRUE)+75 -> 18213 | I35: =VLOOKUP($G$19,Tablas!$A$82:$H$105,5,TRUE)+75 -> 13082 | J35: =VLOOKUP($G$19,Tablas!$A$82:$H$105,6,TRUE)+75 -> 9373 | K35: =VLOOKUP($G$19,Tablas!$A$82:$H$105,7,TRUE)+75 -> 6415 | L35: =VLOOKUP($G$19,Tablas!$A$82:$H$105,8,TRUE)+75 -> 5065
F36: Prima de Cónyuge | G36: =IF($G$17=1,0,(VLOOKUP($L$19,Tablas!$A$82:$H$105,3,TRUE))) -> 29250 | H36: =IF($G$17=1,0,(VLOOKUP($L$19,Tablas!$A$82:$H$105,4,TRUE))) -> 18138 | I36: =IF($G$17=1,0,(VLOOKUP($L$19,Tablas!$A$82:$H$105,5,TRUE))) -> 13007 | J36: =IF($G$17=1,0,(VLOOKUP($L$19,Tablas!$A$82:$H$105,6,TRUE))) -> 9298 | K36: =IF($G$17=1,0,(VLOOKUP($L$19,Tablas!$A$82:$H$105,7,TRUE))) -> 6340 | L36: =IF($G$17=1,0,(VLOOKUP($L$19,Tablas!$A$82:$H$105,8,TRUE))) -> 4990
F37: Primas Hijos | G37: =IF($L$17=0,0,(VLOOKUP($L$17,Tablas!$A$106:$H$108,3,TRUE))) -> 0 | H37: =IF($L$17=0,0,(VLOOKUP($L$17,Tablas!$A$106:$H$108,4,TRUE))) -> 0 | I37: =IF($L$17=0,0,(VLOOKUP($L$17,Tablas!$A$106:$H$108,5,TRUE))) -> 0 | J37: =IF($L$17=0,0,(VLOOKUP($L$17,Tablas!$A$106:$H$108,6,TRUE))) -> 0 | K37: =IF($L$17=0,0,(VLOOKUP($L$17,Tablas!$A$106:$H$108,7,TRUE))) -> 0 | L37: =IF($L$17=0,0,(VLOOKUP($L$17,Tablas!$A$106:$H$108,8,TRUE))) -> 0
F38: Rider: Complicación de Maternidad | G38: =+IF($G$2=FALSE,0,Tablas!C$109) -> 0 | H38: =+IF($G$2=FALSE,0,Tablas!D$109) -> 0 | I38: =+IF($G$2=FALSE,0,Tablas!E$109) -> 0 | J38: =+IF($G$2=FALSE,0,Tablas!F$109) -> 0 | K38: =+IF($G$2=FALSE,0,Tablas!G$109) -> 0 | L38: =+IF($G$2=FALSE,0,Tablas!H$109) -> 0
F39: TOTAL PRIMA NETA | G39: =SUM(G35:G38) -> 58575 | H39: 36351 | I39: 26089 | J39: 18671 | K39: 12755 | L39: 10055
F40: Contrib. 3.5% Super. Bancos : | G40: =G39*3.5% -> 2050.125 | H40: =H39*3.5% -> 1272.285 | I40: 913.115 | J40: 653.485 | K40: 446.425 | L40: 351.925
F41: Contrib 0.5% Seg.Soc.Campes: | G41: =G39*0.5% -> 292.875 | H41: =H39*0.5% -> 181.755 | I41: 130.445 | J41: 93.355 | K41: 63.775 | L41: 50.275
F42: GRAN TOTAL: | G42: =SUM(G39:G41) -> 60918 | H42: =SUM(H39:H41) -> 37805.04 | I42: 27132.56 | J42: 19417.84 | K42: 13265.2 | L42: =SUM(L39:L41) -> 10457.2
F45: TARIFAS SEMESTRALES
F46: Prima de Titular | G46: =VLOOKUP($G$19,Tablas!$A$117:$H$140,3,TRUE)+75 -> 15577.5 | H46: =VLOOKUP($G$19,Tablas!$A$117:$H$140,4,TRUE)+75 -> 9688.14 | I46: =VLOOKUP($G$19,Tablas!$A$117:$H$140,5,TRUE)+75 -> 6968.71 | J46: =VLOOKUP($G$19,Tablas!$A$117:$H$140,6,TRUE)+75 -> 5002.94 | K46: =VLOOKUP($G$19,Tablas!$A$117:$H$140,7,TRUE)+75 -> 3435.2 | L46: =VLOOKUP($G$19,Tablas!$A$117:$H$140,8,TRUE)+75 -> 2719.7
F47: Prima de Cónyuge | G47: =IF($G$17=1,0,(VLOOKUP($L$19,Tablas!$A$117:$H$140,3,TRUE))) -> 15502.5 | H47: =IF($G$17=1,0,(VLOOKUP($L$19,Tablas!$A$117:$H$140,4,TRUE))) -> 9613.14 | I47: =IF($G$17=1,0,(VLOOKUP($L$19,Tablas!$A$117:$H$140,5,TRUE))) -> 6893.71 | J47: =IF($G$17=1,0,(VLOOKUP($L$19,Tablas!$A$117:$H$140,6,TRUE))) -> 4927.94 | K47: =IF($G$17=1,0,(VLOOKUP($L$19,Tablas!$A$117:$H$140,7,TRUE))) -> 3360.2 | L47: =IF($G$17=1,0,(VLOOKUP($L$19,Tablas!$A$117:$H$140,8,TRUE))) -> 2644.7
F48: Primas Hijos | G48: =IF($L$17=0,0,(VLOOKUP($L$17,Tablas!$A$141:$H$143,3,TRUE))) -> 0 | H48: =IF($L$17=0,0,(VLOOKUP($L$17,Tablas!$A$141:$H$143,4,TRUE))) -> 0 | I48: =IF($L$17=0,0,(VLOOKUP($L$17,Tablas!$A$141:$H$143,5,TRUE))) -> 0 | J48: =IF($L$17=0,0,(VLOOKUP($L$17,Tablas!$A$141:$H$143,6,TRUE))) -> 0 | K48: =IF($L$17=0,0,(VLOOKUP($L$17,Tablas!$A$141:$H$143,7,TRUE))) -> 0 | L48: =IF($L$17=0,0,(VLOOKUP($L$17,Tablas!$A$141:$H$143,8,TRUE))) -> 0
F49: Rider: Complicación de Maternidad | G49: =+IF($G$2=FALSE,0,Tablas!C$144) -> 0 | H49: =+IF($G$2=FALSE,0,Tablas!D$144) -> 0 | I49: =+IF($G$2=FALSE,0,Tablas!E$144) -> 0 | J49: =+IF($G$2=FALSE,0,Tablas!F$144) -> 0 | K49: =+IF($G$2=FALSE,0,Tablas!G$144) -> 0 | L49: =+IF($G$2=FALSE,0,Tablas!H$144) -> 0
F50: TOTAL PRIMA NETA | G50: =SUM(G46:G49) -> 31080 | H50: 19301.28 | I50: 13862.42 | J50: 9930.88 | K50: 6795.4 | L50: 5364.4
F51: Contrib. 3.5% Super. Bancos : | G51: =G50*5% -> 1554 | H51: =H50*5% -> 965.064 | I51: 693.121 | J51: 496.544 | K51: 339.77 | L51: 268.22
F52: Contrib 0.5% Seg.Soc.Campes: | G52: =G50*0.5% -> 155.4 | H52: =H50*0.5% -> 96.5064 | I52: 69.3121 | J52: 49.6544 | K52: 33.977 | L52: 26.822
F53: GRAN TOTAL (1ra Cuota) | G53: =SUM(G50:G52) -> 32789.4 | H53: =SUM(H50:H52) -> 20362.8504 | I53: 14624.8531 | J53: 10477.0784 | K53: 7169.147 | L53: =SUM(L50:L52) -> 5659.442
F54: GRAN TOTAL (2da Cuota) | G54: =(G50+G51+G52)*1-78 -> 32711.4 | H54: =(H50+H51+H52)*1-78 -> 20284.8504 | I54: 14546.8531 | J54: 10399.0784 | K54: 7091.147 | L54: =(L50+L51+L52)*1-78 -> 5581.442
F56: Este presupuesto solamente tiene carácter informativo y en ningún momento expresa compromiso legal para suministrarle cobertura de seguro. La emisión de una póliza de seguro Bupa está sujeta a todas las evaluaciones de riesgo por parte de Bupa y a la recepción de todos los pagos de prima requeridos.

Sheet Bupa Complete Care (Mundial)
N1: RESUMEN DE BENEFICIOS | AA1: RESUMEN DE BENEFICIOS
G2: FALSE | H2: FALSE
A5: Cotización de Seguro Médico Internacional Bupa Complete Care (Mundial) Tarifas en US$ | Validas: 1 de enero de 2025 | L5: REGIÓN
L7: ='INGRESO DE DATOS'!W14 -> Guayas/Santa Elena
A13: Nombre del asegurado principal: | G13: =+'INGRESO DE DATOS'!$C$36 -> John Doe
A15: Broker/Agente | G15: =+'INGRESO DE DATOS'!$C$44 -> Agencia
B17: Número de Adultos en la Póliza | G17: =+'INGRESO DE DATOS'!$C$38 -> 2 | J17: Dependientes (menores de 24 años) | L17: =+'INGRESO DE DATOS'!$G$38 -> 0
J18: =IF('INGRESO DE DATOS'!$P$2=TRUE, "Cotización para dependiente de 24 años","") -> 
B19: Edad del Titular | G19: =+'INGRESO DE DATOS'!$C$40 -> 32 | J19: Edad del Cónyuge | L19: =+'INGRESO DE DATOS'!$G$40 -> 32
J21: Fecha de Cotización: | K21: =NOW() -> 2024-12-04T14:21:37.550
F29: DEDUCIBLES | G29: PLAN 1 | H29: PLAN 2 | I29: PLAN 3 | J29: PLAN 4 | K29: PLAN 5 | L29: PLAN 6
F30: Dentro del pais de residencia | G30: 0 | H30: 1000 | I30: 2000 | J30: 5000 | K30: 10000 | L30: 20000
F31: Fuera del pais de residencia | G31: 1000 | H31: 2000 | I31: 3000 | J31: 5000 | K31: 10000 | L31: 20000
F34: TARIFAS ANUALES
F35: Prima de Titular | G35: =VLOOKUP($G$19,Tablas!$A$225:$H$248,3,TRUE)+75 -> 31869 | H35: =VLOOKUP($G$19,Tablas!$A$225:$H$248,4,TRUE)+75 -> 18202 | I35: =VLOOKUP($G$19,Tablas!$A$225:$H$248,5,TRUE)+75 -> 12725 | J35: =VLOOKUP($G$19,Tablas!$A$225:$H$248,6,TRUE)+75 -> 8221 | K35: =VLOOKUP($G$19,Tablas!$A$225:$H$248,7,TRUE)+75 -> 6642 | L35: =VLOOKUP($G$19,Tablas!$A$225:$H$248,8,TRUE)+75 -> 5511
F36: Prima de Cónyuge | G36: =IF($G$17=1,0,(VLOOKUP($L$19,Tablas!$A$225:$H$248,3,TRUE))) -> 31794 | H36: =IF($G$17=1,0,(VLOOKUP($L$19,Tablas!$A$225:$H$248,4,TRUE))) -> 18127 | I36: =IF($G$17=1,0,(VLOOKUP($L$19,Tablas!$A$225:$H$248,5,TRUE))) -> 12650 | J36: =IF($G$17=1,0,(VLOOKUP($L$19,Tablas!$A$225:$H$248,6,TRUE))) -> 8146 | K36: =IF($G$17=1,0,(VLOOKUP($L$19,Tablas!$A$225:$H$248,7,TRUE))) -> 6567 | L36: =IF($G$17=1,0,(VLOOKUP($L$19,Tablas!$A$225:$H$248,8,TRUE))) -> 5436
F37: Primas Hijos | G37: =IF($L$17=0,0,(VLOOKUP($L$17,Tablas!$A$249:$H$251,3,TRUE))) -> 0 | H37: =IF($L$17=0,0,(VLOOKUP($L$17,Tablas!$A$249:$H$251,4,TRUE))) -> 0 | I37: =IF($L$17=0,0,(VLOOKUP($L$17,Tablas!$A$249:$H$251,5,TRUE))) -> 0 | J37: =IF($L$17=0,0,(VLOOKUP($L$17,Tablas!$A$249:$H$251,6,TRUE))) -> 0 | K37: =IF($L$17=0,0,(VLOOKUP($L$17,Tablas!$A$249:$H$251,7,TRUE))) -> 0 | L37: =IF($L$17=0,0,(VLOOKUP($L$17,Tablas!$A$249:$H$251,8,TRUE))) -> 0
F38: Rider: Complicación de Maternidad | G38: =+IF($G$2=FALSE,0,Tablas!C$252) -> 0 | H38: =+IF($G$2=FALSE,0,Tablas!D$252) -> 0 | I38: =+IF($G$2=FALSE,0,Tablas!E$252) -> 0 | J38: =+IF($G$2=FALSE,0,Tablas!F$252) -> 0 | K38: =+IF($G$2=FALSE,0,Tablas!G$252) -> 0 | L38: =+IF($G$2=FALSE,0,Tablas!H$252) -> 0
F39: TOTAL PRIMA NETA | G39: =SUM(G35:G38) -> 63663 | H39: 36329 | I39: 25375 | J39: 16367 | K39: 13209 | L39: 10947
F40: Contrib. 3.5% Super. Bancos : | G40: =G39*3.5% -> 2228.205 | H40: =H39*3.5% -> 1271.515 | I40: 888.125 | J40: 572.845 | K40: 462.315 | L40: 383.145
F41: Contrib 0.5% Seg.Soc.Campes: | G41: =G39*0.5% -> 318.315 | H41: =H39*0.5% -> 181.645 | I41: 126.875 | J41: 81.835 | K41: 66.045 | L41: 54.735
F42: GRAN TOTAL: | G42: =SUM(G39:G41) -> 66209.52 | H42: =SUM(H39:H41) -> 37782.16 | I42: 26390 | J42: 17021.68 | K42: 13737.36 | L42: =SUM(L39:L41) -> 11384.88
F45: TARIFAS SEMESTRALES
F46: Prima de Titular | G46: =VLOOKUP($G$19,Tablas!$A$260:$H$283,3,TRUE)+75 -> 16925.82 | H46: =VLOOKUP($G$19,Tablas!$A$260:$H$283,4,TRUE)+75 -> 9682.31 | I46: =VLOOKUP($G$19,Tablas!$A$260:$H$283,5,TRUE)+75 -> 6779.5 | J46: =VLOOKUP($G$19,Tablas!$A$260:$H$283,6,TRUE)+75 -> 4392.38 | K46: =VLOOKUP($G$19,Tablas!$A$260:$H$283,7,TRUE)+75 -> 3555.51 | L46: =VLOOKUP($G$19,Tablas!$A$260:$H$283,8,TRUE)+75 -> 2956.08
F47: Prima de Cónyuge | G47: =IF($G$17=1,0,(VLOOKUP($L$19,Tablas!$A$260:$H$283,3,TRUE))) -> 16850.82 | H47: =IF($G$17=1,0,(VLOOKUP($L$19,Tablas!$A$260:$H$283,4,TRUE))) -> 9607.31 | I47: =IF($G$17=1,0,(VLOOKUP($L$19,Tablas!$A$260:$H$283,5,TRUE))) -> 6704.5 | J47: =IF($G$17=1,0,(VLOOKUP($L$19,Tablas!$A$260:$H$283,6,TRUE))) -> 4317.38 | K47: =IF($G$17=1,0,(VLOOKUP($L$19,Tablas!$A$260:$H$283,7,TRUE))) -> 3480.51 | L47: =IF($G$17=1,0,(VLOOKUP($L$19,Tablas!$A$260:$H$283,8,TRUE))) -> 2881.08
F48: Primas Hijos | G48: =IF($L$17=0,0,(VLOOKUP($L$17,Tablas!$A$284:$H$286,3,TRUE))) -> 0 | H48: =IF($L$17=0,0,(VLOOKUP($L$17,Tablas!$A$284:$H$286,4,TRUE))) -> 0 | I48: =IF($L$17=0,0,(VLOOKUP($L$17,Tablas!$A$284:$H$286,5,TRUE))) -> 0 | J48: =IF($L$17=0,0,(VLOOKUP($L$17,Tablas!$A$284:$H$286,6,TRUE))) -> 0 | K48: =IF($L$17=0,0,(VLOOKUP($L$17,Tablas!$A$284:$H$286,7,TRUE))) -> 0 | L48: =IF($L$17=0,0,(VLOOKUP($L$17,Tablas!$A$284:$H$286,8,TRUE))) -> 0
F49: Rider: Complicación de Maternidad | G49: =+IF($G$2=FALSE,0,Tablas!C$287) -> 0 | H49: =+IF($G$2=FALSE,0,Tablas!D$287) -> 0 | I49: =+IF($G$2=FALSE,0,Tablas!E$287) -> 0 | J49: =+IF($G$2=FALSE,0,Tablas!F$287) -> 0 | K49: =+IF($G$2=FALSE,0,Tablas!G$287) -> 0 | L49: =+IF($G$2=FALSE,0,Tablas!H$287) -> 0
F50: TOTAL PRIMA NETA | G50: =SUM(G46:G49) -> 33776.64 | H50: 19289.62 | I50: 13484 | J50: 8709.76 | K50: 7036.02 | L50: 5837.16
F51: Contrib. 3.5% Super. Bancos : | G51: =G50*3.5% -> 1182.1824 | H51: =H50*3.5% -> 675.1367 | I51: 471.94 | J51: 304.8416 | K51: 246.2607 | L51: 204.3006
F52: Contrib 0.5% Seg.Soc.Campes: | G52: =G50*0.5% -> 168.8832 | H52: =H50*0.5% -> 96.4481 | I52: 67.42 | J52: 43.5488 | K52: 35.1801 | L52: 29.1858
F53: GRAN TOTAL (1ra Cuota) | G53: =SUM(G50:G52) -> 35127.7056 | H53: =SUM(H50:H52) -> 20061.2048 | I53: 14023.36 | J53: 9058.1504 | K53: 7317.4608 | L53: =SUM(L50:L52) -> 6070.6464
F54: GRAN TOTAL (2da Cuota) | G54: =(G50+G51+G52)*1-78 -> 35049.7056 | H54: =(H50+H51+H52)*1-78 -> 19983.2048 | I54: 13945.36 | J54: 8980.1504 | K54: 7239.4608 | L54: =(L50+L51+L52)*1-78 -> 5992.6464
F56: Este presupuesto solamente tiene carácter informativo y en ningún momento expresa compromiso legal para suministrarle cobertura de seguro. La emisión de una póliza de seguro Bupa está sujeta a todas las evaluaciones de riesgo por parte de Bupa y a la recepción de todos los pagos de prima requeridos.

Sheet Bupa Complete Care (LA)
N1: RESUMEN DE BENEFICIOS | AA1: RESUMEN DE BENEFICIOS
G2: FALSE | H2: FALSE
A5: Cotización de Seguro Médico Internacional Bupa Complete Care (Latinoamérica) Tarifas en US$ | Validas: 1 de enero de 2025 | L5: REGIÓN
L7: ='INGRESO DE DATOS'!W14 -> Guayas/Santa Elena
A13: Nombre del asegurado principal: | G13: =+'INGRESO DE DATOS'!$C$36 -> John Doe
A15: Broker/Agente | G15: =+'INGRESO DE DATOS'!$C$44 -> Agencia
B17: Número de Adultos en la Póliza | G17: =+'INGRESO DE DATOS'!$C$38 -> 2 | J17: Dependientes (menores de 24 años) | L17: =+'INGRESO DE DATOS'!$G$38 -> 0
J18: =IF('INGRESO DE DATOS'!$P$2=TRUE, "Cotización para dependiente de 24 años","") -> 
B19: Edad del Titular | G19: =+'INGRESO DE DATOS'!$C$40 -> 32 | J19: Edad del Cónyuge | L19: =+'INGRESO DE DATOS'!$G$40 -> 32
J21: Fecha de Cotización: | K21: =NOW() -> 2024-12-04T14:21:37.550
F29: DEDUCIBLES | G29: PLAN 1 | H29: PLAN 2 | I29: PLAN 3 | J29: PLAN 4 | K29: PLAN 5 | L29: PLAN 6
F30: Dentro del pais de residencia | G30: 0 | H30: 1000 | I30: 2000 | J30: 5000 | K30: 10000 | L30: 20000
F31: Fuera del pais de residencia | G31: 1000 | H31: 2000 | I31: 3000 | J31: 5000 | K31: 10000 | L31: 20000
F34: TARIFAS ANUALES
F35: Prima de Titular | G35: =VLOOKUP($G$19,Tablas!$A$296:$H$319,3,TRUE)+75 -> 25263 | H35: =VLOOKUP($G$19,Tablas!$A$296:$H$319,4,TRUE)+75 -> 15388 | I35: =VLOOKUP($G$19,Tablas!$A$296:$H$319,5,TRUE)+75 -> 11442 | J35: =VLOOKUP($G$19,Tablas!$A$296:$H$319,6,TRUE)+75 -> 8150 | K35: =VLOOKUP($G$19,Tablas!$A$296:$H$319,7,TRUE)+75 -> 5626 | L35: =VLOOKUP($G$19,Tablas!$A$296:$H$319,8,TRUE)+75 -> 4295
F36: Prima de Cónyuge | G36: =IF($G$17=1,0,(VLOOKUP($L$19,Tablas!$A$296:$H$319,3,TRUE))) -> 25188 | H36: =IF($G$17=1,0,(VLOOKUP($L$19,Tablas!$A$296:$H$319,4,TRUE))) -> 15313 | I36: =IF($G$17=1,0,(VLOOKUP($L$19,Tablas!$A$296:$H$319,5,TRUE))) -> 11367 | J36: =IF($G$17=1,0,(VLOOKUP($L$19,Tablas!$A$296:$H$319,6,TRUE))) -> 8075 | K36: =IF($G$17=1,0,(VLOOKUP($L$19,Tablas!$A$296:$H$319,7,TRUE))) -> 5551 | L36: =IF($G$17=1,0,(VLOOKUP($L$19,Tablas!$A$296:$H$319,8,TRUE))) -> 4220
F37: Primas Hijos | G37: =IF($L$17=0,0,(VLOOKUP($L$17,Tablas!$A$320:$H$322,3,TRUE))) -> 0 | H37: =IF($L$17=0,0,(VLOOKUP($L$17,Tablas!$A$320:$H$322,4,TRUE))) -> 0 | I37: =IF($L$17=0,0,(VLOOKUP($L$17,Tablas!$A$320:$H$322,5,TRUE))) -> 0 | J37: =IF($L$17=0,0,(VLOOKUP($L$17,Tablas!$A$320:$H$322,6,TRUE))) -> 0 | K37: =IF($L$17=0,0,(VLOOKUP($L$17,Tablas!$A$320:$H$322,7,TRUE))) -> 0 | L37: =IF($L$17=0,0,(VLOOKUP($L$17,Tablas!$A$320:$H$322,8,TRUE))) -> 0
F38: Rider: Complicación de Maternidad | G38: =+IF($G$2=FALSE,0,Tablas!C$323) -> 0 | H38: =+IF($G$2=FALSE,0,Tablas!D$323) -> 0 | I38: =+IF($G$2=FALSE,0,Tablas!E$323) -> 0 | J38: =+IF($G$2=FALSE,0,Tablas!F$323) -> 0 | K38: =+IF($G$2=FALSE,0,Tablas!G$323) -> 0 | L38: =+IF($G$2=FALSE,0,Tablas!H$323) -> 0
F39: TOTAL PRIMA NETA | G39: =SUM(G35:G38) -> 50451 | H39: 30701 | I39: 22809 | J39: 16225 | K39: 11177 | L39: 8515
F40: Contrib. 3.5% Super. Bancos : | G40: =G39*3.5% -> 1765.785 | H40: =H39*3.5% -> 1074.535 | I40: 798.315 | J40: 567.875 | K40: 391.195 | L40: 298.025
F41: Contrib 0.5% Seg.Soc.Campes: | G41: =G39*0.5% -> 252.255 | H41: =H39*0.5% -> 153.505 | I41: 114.045 | J41: 81.125 | K41: 55.885 | L41: 42.575
F42: GRAN TOTAL: | G42: =SUM(G39:G41) -> 52469.04 | H42: =SUM(H39:H41) -> 31929.04 | I42: 23721.36 | J42: 16874 | K42: 11624.08 | L42: =SUM(L39:L41) -> 8855.6
F45: TARIFAS SEMESTRALES
F46: Prima de Titular | G46: =VLOOKUP($G$19,Tablas!$A$331:$H$354,3,TRUE)+75 -> 13424.64 | H46: =VLOOKUP($G$19,Tablas!$A$331:$H$354,4,TRUE)+75 -> 8190.89 | I46: =VLOOKUP($G$19,Tablas!$A$331:$H$354,5,TRUE)+75 -> 6099.51 | J46: =VLOOKUP($G$19,Tablas!$A$331:$H$354,6,TRUE)+75 -> 4354.75 | K46: =VLOOKUP($G$19,Tablas!$A$331:$H$354,7,TRUE)+75 -> 3017.03 | L46: =VLOOKUP($G$19,Tablas!$A$331:$H$354,8,TRUE)+75 -> 2311.6
F47: Prima de Cónyuge | G47: =IF($G$17=1,0,(VLOOKUP($L$19,Tablas!$A$331:$H$354,3,TRUE))) -> 13349.64 | H47: =IF($G$17=1,0,(VLOOKUP($L$19,Tablas!$A$331:$H$354,4,TRUE))) -> 8115.89 | I47: =IF($G$17=1,0,(VLOOKUP($L$19,Tablas!$A$331:$H$354,5,TRUE))) -> 6024.51 | J47: =IF($G$17=1,0,(VLOOKUP($L$19,Tablas!$A$331:$H$354,6,TRUE))) -> 4279.75 | K47: =IF($G$17=1,0,(VLOOKUP($L$19,Tablas!$A$331:$H$354,7,TRUE))) -> 2942.03 | L47: =IF($G$17=1,0,(VLOOKUP($L$19,Tablas!$A$331:$H$354,8,TRUE))) -> 2236.6
F48: Primas Hijos | G48: =IF($L$17=0,0,(VLOOKUP($L$17,Tablas!$A$355:$H$357,3,TRUE))) -> 0 | H48: =IF($L$17=0,0,(VLOOKUP($L$17,Tablas!$A$355:$H$357,4,TRUE))) -> 0 | I48: =IF($L$17=0,0,(VLOOKUP($L$17,Tablas!$A$355:$H$357,5,TRUE))) -> 0 | J48: =IF($L$17=0,0,(VLOOKUP($L$17,Tablas!$A$355:$H$357,6,TRUE))) -> 0 | K48: =IF($L$17=0,0,(VLOOKUP($L$17,Tablas!$A$355:$H$357,7,TRUE))) -> 0 | L48: =IF($L$17=0,0,(VLOOKUP($L$17,Tablas!$A$355:$H$357,8,TRUE))) -> 0
F49: Rider: Complicación de Maternidad | G49: =+IF($G$2=FALSE,0,Tablas!C$358) -> 0 | H49: =+IF($G$2=FALSE,0,Tablas!D$358) -> 0 | I49: =+IF($G$2=FALSE,0,Tablas!E$358) -> 0 | J49: =+IF($G$2=FALSE,0,Tablas!F$358) -> 0 | K49: =+IF($G$2=FALSE,0,Tablas!G$358) -> 0 | L49: =+IF($G$2=FALSE,0,Tablas!H$358) -> 0
F50: TOTAL PRIMA NETA | G50: =SUM(G46:G49) -> 26774.28 | H50: 16306.78 | I50: 12124.02 | J50: 8634.5 | K50: 5959.06 | L50: 4548.2
F51: Contrib. 3.5% Super. Bancos : | G51: =G50*3.5% -> 937.0998 | H51: =H50*3.5% -> 570.7373 | I51: 424.3407 | J51: 302.2075 | K51: 208.5671 | L51: 159.187
F52: Contrib 0.5% Seg.Soc.Campes: | G52: =G50*0.5% -> 133.8714 | H52: =H50*0.5% -> 81.5339 | I52: 60.6201 | J52: 43.1725 | K52: 29.7953 | L52: 22.741
F53: GRAN TOTAL (1ra Cuota) | G53: =SUM(G50:G52) -> 27845.2512 | H53: =SUM(H50:H52) -> 16959.0512 | I53: 12608.9808 | J53: 8979.88 | K53: 6197.4224 | L53: =SUM(L50:L52) -> 4730.128
F54: GRAN TOTAL (2da Cuota) | G54: =(G50+G51+G52)*1-78 -> 27767.2512 | H54: =(H50+H51+H52)*1-78 -> 16881.0512 | I54: 12530.9808 | J54: 8901.88 | K54: 6119.4224 | L54: =(L50+L51+L52)*1-78 -> 4652.128
F56: Este presupuesto solamente tiene carácter informativo y en ningún momento expresa compromiso legal para suministrarle cobertura de seguro. La emisión de una póliza de seguro Bupa está sujeta a todas las evaluaciones de riesgo por parte de Bupa y a la recepción de todos los pagos de prima requeridos.

Sheet Bupa Advantage Care (Mundial)
C1: FALSE | D1: FALSE | I1: RESUMEN DE BENEFICIOS | V1: RESUMEN DE BENEFICIOS
A5: Cotización de Seguro Médico Internacional Bupa Advantage Care (Mundial) Tarifas en US$ | Validas: 1 de enero de 2025 | G5: REGIÓN
G7: ='INGRESO DE DATOS'!W14 -> Guayas/Santa Elena
A13: Nombre del asegurado principal | B13: =+'INGRESO DE DATOS'!$C$36 -> John Doe
A15: Broker/Agente | B15: =+'INGRESO DE DATOS'!$C$44 -> Agencia
A17: Número de Adultos en la Póliza | B17: =+'INGRESO DE DATOS'!$C$38 -> 2 | D17: Dependientes (menores de 24 años) | G17: =+'INGRESO DE DATOS'!$G$38 -> 0
D18: =IF('INGRESO DE DATOS'!$P$2=TRUE, "Cotización para dependiente de 24 años","") -> 
A19: Edad del Titular | B19: =+'INGRESO DE DATOS'!$C$40 -> 32 | D19: Edad del Cónyuge | G19: =+'INGRESO DE DATOS'!$G$40 -> 32
D21: Fecha de Cotización: | F21: =NOW() -> 2024-12-04T14:21:37.550
A25: DEDUCIBLES | B25: PLAN 1 | C25: PLAN 2 | D25: PLAN 3 | E25: PLAN 4 | F25: PLAN 5 | G25: PLAN 6
A26: Dentro del pais de residencia | B26: 0 | C26: 1000 | D26: 2000 | E26: 5000 | F26: 10000 | G26: 20000
A27: Fuera del pais de residencia | B27: 1000 | C27: 2000 | D27: 3000 | E27: 5000 | F27: 10000 | G27: 20000
A30: TARIFAS ANUALES
A31: Prima de Titular | B31: =VLOOKUP($B$19,Tablas!$A$440:$H$463,3,TRUE)+75 -> 21126 | C31: =VLOOKUP($B$19,Tablas!$A$440:$H$463,4,TRUE)+75 -> 14925 | D31: =VLOOKUP($B$19,Tablas!$A$440:$H$463,5,TRUE)+75 -> 11465 | E31: =VLOOKUP($B$19,Tablas!$A$440:$H$463,6,TRUE)+75 -> 6086 | F31: =VLOOKUP($B$19,Tablas!$A$440:$H$463,7,TRUE)+75 -> 5767 | G31: =VLOOKUP($B$19,Tablas!$A$440:$H$463,8,TRUE)+75 -> 4566
A32: Prima de Cónyuge | B32: =IF($B$17=1,0,(VLOOKUP($G$19,Tablas!$A$440:$H$463,3,TRUE))) -> 21051 | C32: =IF($B$17=1,0,(VLOOKUP($G$19,Tablas!$A$440:$H$463,4,TRUE))) -> 14850 | D32: =IF($B$17=1,0,(VLOOKUP($G$19,Tablas!$A$440:$H$463,5,TRUE))) -> 11390 | E32: =IF($B$17=1,0,(VLOOKUP($G$19,Tablas!$A$440:$H$463,6,TRUE))) -> 6011 | F32: =IF($B$17=1,0,(VLOOKUP($G$19,Tablas!$A$440:$H$463,7,TRUE))) -> 5692 | G32: =IF($B$17=1,0,(VLOOKUP($G$19,Tablas!$A$440:$H$463,8,TRUE))) -> 4491
A33: Primas Hijos | B33: =IF($G$17=0,0,(VLOOKUP($G$17,Tablas!$A$464:$H$466,3,TRUE))) -> 0 | C33: =IF($G$17=0,0,(VLOOKUP($G$17,Tablas!$A$464:$H$466,4,TRUE))) -> 0 | D33: =IF($G$17=0,0,(VLOOKUP($G$17,Tablas!$A$464:$H$466,5,TRUE))) -> 0 | E33: =IF($G$17=0,0,(VLOOKUP($G$17,Tablas!$A$464:$H$466,6,TRUE))) -> 0 | F33: =IF($G$17=0,0,(VLOOKUP($G$17,Tablas!$A$464:$H$466,7,TRUE))) -> 0 | G33: =IF($G$17=0,0,(VLOOKUP($G$17,Tablas!$A$464:$H$466,8,TRUE))) -> 0
A34: Rider: Complicaciones de Maternidad | B34: =+IF($C$1=FALSE,0,Tablas!C$467) -> 0 | C34: =+IF($C$1=FALSE,0,Tablas!D$467) -> 0 | D34: =+IF($C$1=FALSE,0,Tablas!E$467) -> 0 | E34: =+IF($C$1=FALSE,0,Tablas!F$467) -> 0 | F34: =+IF($C$1=FALSE,0,Tablas!G$467) -> 0 | G34: =+IF($C$1=FALSE,0,Tablas!H$467) -> 0
A35: Rider: Trasplante Organos | B35: =IF($D$1=FALSE,0,Tablas!C$468) -> 0 | C35: =IF($D$1=FALSE,0,Tablas!D$468) -> 0 | D35: =IF($D$1=FALSE,0,Tablas!E$468) -> 0 | E35: =IF($D$1=FALSE,0,Tablas!F$468) -> 0 | F35: =IF($D$1=FALSE,0,Tablas!G$468) -> 0 | G35: =IF($D$1=FALSE,0,Tablas!H$468) -> 0
A36: TOTAL PRIMA NETA | B36: =SUM(B31:B35) -> 42177 | C36: 29775 | D36: 22855 | E36: 12097 | F36: 11459 | G36: 9057
A37: Contrib. 3.5% Super. Bancos : | B37: =B36*3.5% -> 1476.195 | C37: =C36*3.5% -> 1042.125 | D37: 799.925 | E37: 423.395 | F37: 401.065 | G37: 316.995
A38: Contrib 0.5% Seg.Soc.Campes: | B38: =B36*0.5% -> 210.885 | C38: =C36*0.5% -> 148.875 | D38: 114.275 | E38: 60.485 | F38: 57.295 | G38: 45.285
A39: GRAN TOTAL : | B39: =SUM(B36:B38) -> 43864.08 | C39: =SUM(C36:C38) -> 30966 | D39: 23769.2 | E39: 12580.88 | F39: 11917.36 | G39: =SUM(G36:G38) -> 9419.28
A42: TARIFAS SEMESTRALES
A43: Prima de Titular | B43: =VLOOKUP($B$19,Tablas!$A$475:$H$498,3,TRUE)+75 -> 11232.03 | C43: =VLOOKUP($B$19,Tablas!$A$475:$H$498,4,TRUE)+75 -> 7945.5 | D43: =VLOOKUP($B$19,Tablas!$A$475:$H$498,5,TRUE)+75 -> 6111.7 | E43: =VLOOKUP($B$19,Tablas!$A$475:$H$498,6,TRUE)+75 -> 3260.83 | F43: =VLOOKUP($B$19,Tablas!$A$475:$H$498,7,TRUE)+75 -> 3091.76 | G43: =VLOOKUP($B$19,Tablas!$A$475:$H$498,8,TRUE)+75 -> 2455.23
A44: Prima de Cónyuge | B44: =IF($B$17=1,0,(VLOOKUP($G$19,Tablas!$A$475:$H$498,3,TRUE))) -> 11157.03 | C44: =IF($B$17=1,0,(VLOOKUP($G$19,Tablas!$A$475:$H$498,4,TRUE))) -> 7870.5 | D44: =IF($B$17=1,0,(VLOOKUP($G$19,Tablas!$A$475:$H$498,5,TRUE))) -> 6036.7 | E44: =IF($B$17=1,0,(VLOOKUP($G$19,Tablas!$A$475:$H$498,6,TRUE))) -> 3185.83 | F44: =IF($B$17=1,0,(VLOOKUP($G$19,Tablas!$A$475:$H$498,7,TRUE))) -> 3016.76 | G44: =IF($B$17=1,0,(VLOOKUP($G$19,Tablas!$A$475:$H$498,8,TRUE))) -> 2380.23
A45: Primas Hijos | B45: =IF($G$17=0,0,(VLOOKUP($G$17,Tablas!$A$499:$H$501,3,TRUE))) -> 0 | C45: =IF($G$17=0,0,(VLOOKUP($G$17,Tablas!$A$499:$H$501,4,TRUE))) -> 0 | D45: =IF($G$17=0,0,(VLOOKUP($G$17,Tablas!$A$499:$H$501,5,TRUE))) -> 0 | E45: =IF($G$17=0,0,(VLOOKUP($G$17,Tablas!$A$499:$H$501,6,TRUE))) -> 0 | F45: =IF($G$17=0,0,(VLOOKUP($G$17,Tablas!$A$499:$H$501,7,TRUE))) -> 0 | G45: =IF($G$17=0,0,(VLOOKUP($G$17,Tablas!$A$499:$H$501,8,TRUE))) -> 0
A46: Rider: Complicaciones de Maternidad | B46: =+IF($C$1=FALSE,0,Tablas!C$502) -> 0 | C46: =+IF($C$1=FALSE,0,Tablas!D$502) -> 0 | D46: =+IF($C$1=FALSE,0,Tablas!E$502) -> 0 | E46: =+IF($C$1=FALSE,0,Tablas!F$502) -> 0 | F46: =+IF($C$1=FALSE,0,Tablas!G$502) -> 0 | G46: =+IF($C$1=FALSE,0,Tablas!H$502) -> 0
A47: Rider: Trasplante Organos | B47: =IF($D$1=FALSE,0,Tablas!C$503) -> 0 | C47: =IF($D$1=FALSE,0,Tablas!D$503) -> 0 | D47: =IF($D$1=FALSE,0,Tablas!E$503) -> 0 | E47: =IF($D$1=FALSE,0,Tablas!F$503) -> 0 | F47: =IF($D$1=FALSE,0,Tablas!G$503) -> 0 | G47: =IF($D$1=FALSE,0,Tablas!H$503) -> 0
A48: TOTAL PRIMA NETA | B48: =SUM(B43:B47) -> 22389.06 | C48: 15816 | D48: 12148.4 | E48: 6446.66 | F48: 6108.52 | G48: 4835.46
A49: Contrib. 3.5% Super. Bancos : | B49: =B48*3.5% -> 783.6171 | C49: =C48*3.5% -> 553.56 | D49: 425.194 | E49: 225.6331 | F49: 213.7982 | G49: 169.2411
A50: Contrib 0.5% Seg.Soc.Campes: | B50: =B48*0.5% -> 111.9453 | C50: =C48*0.5% -> 79.08 | D50: 60.742 | E50: 32.2333 | F50: 30.5426 | G50: 24.1773
A51: GRAN TOTAL (1ra Cuota) | B51: =SUM(B48:B50) -> 23284.6224 | C51: =SUM(C48:C50) -> 16448.64 | D51: 12634.336 | E51: 6704.5264 | F51: 6352.8608 | G51: =SUM(G48:G50) -> 5028.8784
A52: GRAN TOTAL (2da Cuota) | B52: =(B48+B49+B50)*1-78 -> 23206.6224 | C52: =(C48+C49+C50)*1-78 -> 16370.64 | D52: 12556.336 | E52: 6626.5264 | F52: 6274.8608 | G52: =(G48+G49+G50)*1-78 -> 4950.8784
A54: Este presupuesto solamente tiene carácter informativo y en ningún momento expresa compromiso legal para suministrarle cobertura de seguro. La emisión de una póliza de seguro Bupa está sujeta a todas las evaluaciones de riesgo por parte de Bupa y a la recepción de todos los pagos de prima requeridos.

Sheet Advantage (LA) (hidden)
A10: Cotización de Seguro Médico Internacional - Bupa ADVANTAGE Care (cobertura solo Latinoamérica)
A12: Bupa Advantage Care (cobertura solo en Latinoamérica) | H12: =+'INGRESO DE DATOS'!$C$36 -> John Doe
A13: Cobertura Máxima anual | C13: US $ 3,500,000
A14: Cobertura Geografica | C14: Limitada a Latinoamérica excluyendo México | H14: =+'INGRESO DE DATOS'!$C$44 -> Agencia
A15: Condiciones médicas cubiertas | C15: Todas las condiciones médicas
A16: Redes de proveedores | C16: Red de Proveedores "Bupa Advantage" | J16: =+'INGRESO DE DATOS'!$C$38 -> 2 | M16: =+'INGRESO DE DATOS'!$C$40 -> 32
A17: Opciones fuera de la Red | C17: NO, solo en casos de emergencia | F17: FECHA DE COTIZACION :
A18: Requiere preautorización | C18: SI, 30% de penalización por omitir prenotificación | F18: =NOW() -> 2024-12-04T14:21:37.550 | J18: =+'INGRESO DE DATOS'!$G$38 -> 0 | M18: =+'INGRESO DE DATOS'!$G$40 -> 32
A20: Número máximo de días de hospitalización | C20: Ilimitado | I20: TRUE | K20: COMPLICACIONES DE MATERNIDAD
A21: Habitación y alimentación | C21: 100% dentro de Red Bupa
C22: "UCR" para L.A. en emergencias fuera de Red Bupa | I22: TRUE | K22: TRASPLANTE DE ORGANOS
A23: Cuidados Intensivos | C23: 100% dentro de Red Bupa
C24: "UCR" para L.A. en emergencias fuera de Red Bupa
A25: Cobertura de Maternidad | C25: $5,000 (Excepto planes 4,5, y 6) | F25: Deducibles | H25: PLAN 1 | I25: PLAN 2 | J25: PLAN 3 | K25: PLAN 4 | L25: PLAN 5 | M25: PLAN 6
A26: Cobertura Provisional de Recién Nacido | C26: $30,000 por los primeros 90 días | F26: Dentro del pais de residencia | H26: n/a | I26: 1000 | J26: 2000 | K26: 5000 | L26: 10000 | M26: 20000
A27: Cuidado del Recién Nacido saludable | C27: Ya incluída dentro del beneficio de Maternidad | F27: Fuera del pais de residencia | H27: n/a | I27: 2000 | J27: 3000 | K27: 5000 | L27: 10000 | M27: 20000
A28: Cobertura de Complicaciones de Maternidad | C28: Disponible a través de cobertura opcional adicional
A29: Trasplante de Organos | C29: $1,000,000 de por vida, por diagnóstico
A30: Condiciones congénitas y hereditarias | C30: <18 años $300,000 de por vida; >=18 al 100% | F30: Tarifas Anuales
A31: Coberturas opcionales (Riders) | C31: Complicaciones de Maternidad por $500,000 | F31: Prima de Titular : | H31: n/a | I31: =VLOOKUP($M$16,Tablas!$A$582:$H$605,4,TRUE) -> 14491 | J31: =VLOOKUP($M$16,Tablas!$A$582:$H$605,5,TRUE) -> 11087 | K31: =VLOOKUP($M$16,Tablas!$A$582:$H$605,6,TRUE) -> 7953 | L31: =VLOOKUP($M$16,Tablas!$A$582:$H$605,7,TRUE) -> 5984 | M31: =VLOOKUP($M$16,Tablas!$A$582:$H$605,8,TRUE) -> 4611
C32: Trasplante de órganos por $ 300,000 adicionales | F32: Prima de Cónyuge | H32: n/a | I32: =IF($J$16=1,0,(VLOOKUP($M$18,Tablas!$A$582:$H$605,4,TRUE))) -> 14491 | J32: =IF($J$16=1,0,(VLOOKUP($M$18,Tablas!$A$582:$H$605,5,TRUE))) -> 11087 | K32: =IF($J$16=1,0,(VLOOKUP($M$18,Tablas!$A$582:$H$605,6,TRUE))) -> 7953 | L32: =IF($J$16=1,0,(VLOOKUP($M$18,Tablas!$A$582:$H$605,7,TRUE))) -> 5984 | M32: =IF($J$16=1,0,(VLOOKUP($M$18,Tablas!$A$582:$H$605,8,TRUE))) -> 4611
A33: Acompañamiento de menores hospitalizados | C33: $300 por día | F33: Primas Hijos : | H33: n/a | I33: =IF($J$18=0,0,(VLOOKUP($J$18,Tablas!$A$606:$H$608,4,TRUE))) -> 0 | J33: =IF($J$18=0,0,(VLOOKUP($J$18,Tablas!$A$606:$H$608,5,TRUE))) -> 0 | K33: =IF($J$18=0,0,(VLOOKUP($J$18,Tablas!$A$606:$H$608,6,TRUE))) -> 0 | L33: =IF($J$18=0,0,(VLOOKUP($J$18,Tablas!$A$606:$H$608,7,TRUE))) -> 0 | M33: =IF($J$18=0,0,(VLOOKUP($J$18,Tablas!$A$606:$H$608,8,TRUE))) -> 0
A34: Ambulancia aérea | C34: $100,000 por año y ticket aéreo de retorno | F34: Prima Rider Complic. Maternidad | H34: n/a | I34: =+IF($I$20=FALSE,0,Tablas!D$609) -> 0 | J34: =+IF($I$20=FALSE,0,Tablas!E$609) -> 0 | K34: =+IF($I$20=FALSE,0,Tablas!F$609) -> 0 | L34: =+IF($I$20=FALSE,0,Tablas!G$609) -> 0 | M34: =+IF($I$20=FALSE,0,Tablas!H$609) -> 0
A35: Repatriación restos mortales | C35: 1 | F35: Prima Rider Trasplante Organos | H35: n/a | I35: =IF($I$22=FALSE,0,Tablas!D$610) -> 0 | J35: =IF($I$22=FALSE,0,Tablas!E$610) -> 0 | K35: =IF($I$22=FALSE,0,Tablas!F$610) -> 0 | L35: =IF($I$22=FALSE,0,Tablas!G$610) -> 0 | M35: =IF($I$22=FALSE,0,Tablas!H$610) -> 0
A36: Medicamentos por receta | C36: $6,000 por Asegurado, por año póliza | F36: TOTAL PRIMA NETA : | H36: n/a | I36: =SUM(I31:I35) -> 28982 | J36: 22174 | K36: 15906 | L36: 11968 | M36: 9222
A37: Almacenamiento de sangre de cordon umbilical | C37: $500 (Excepto planes 4,5, y 6) | F37: Costo Administrativo Anual : | H37: n/a | I37: 75 | J37: 75 | K37: 75 | L37: 75 | M37: 75
F38: GRAN TOTAL : | H38: n/a | I38: =SUM(I36:I37) -> 29057 | J38: =SUM(J36:J37) -> 22249 | K38: =SUM(K36:K37) -> 15981 | L38: =SUM(L36:L37) -> 12043 | M38: =SUM(M36:M37) -> 9297
A39: Atención médica en el hogar | C39: 100% de usual/acostumbrado y razonable
A40: Rehabilitación | C40: 100% de usual/acostumbrado y razonable | F40: Tarifas Semestrales
A41: Residencia y cuidados paliativos | C41: 100% de usual/acostumbrado y razonable | F41: Prima de Titular : | H41: n/a | I41: =VLOOKUP($M$16,Tablas!$A$615:$H$638,4,TRUE) -> 7680.23 | J41: =VLOOKUP($M$16,Tablas!$A$615:$H$638,5,TRUE) -> 5876.11 | K41: =VLOOKUP($M$16,Tablas!$A$615:$H$638,6,TRUE) -> 4215.09 | L41: =VLOOKUP($M$16,Tablas!$A$615:$H$638,7,TRUE) -> 3171.52 | M41: =VLOOKUP($M$16,Tablas!$A$615:$H$638,8,TRUE) -> 2443.83
A42: Cobertura de actividades peligrosas | C42: 1 | F42: Prima de Cónyuge | H42: n/a | I42: =IF($J$16=1,0,(VLOOKUP($M$18,Tablas!$A$615:$H$638,4,TRUE))) -> 7680.23 | J42: =IF($J$16=1,0,(VLOOKUP($M$18,Tablas!$A$615:$H$638,5,TRUE))) -> 5876.11 | K42: =IF($J$16=1,0,(VLOOKUP($M$18,Tablas!$A$615:$H$638,6,TRUE))) -> 4215.09 | L42: =IF($J$16=1,0,(VLOOKUP($M$18,Tablas!$A$615:$H$638,7,TRUE))) -> 3171.52 | M42: =IF($J$16=1,0,(VLOOKUP($M$18,Tablas!$A$615:$H$638,8,TRUE))) -> 2443.83
A43: Chequeos generales de rutina | C43: Hasta US$150 por año póliza.Sin deducible | F43: Primas Hijos : | H43: n/a | I43: =IF($J$18=0,0,(VLOOKUP($J$18,Tablas!$A$639:$H$641,4,TRUE))) -> 0 | J43: =IF($J$18=0,0,(VLOOKUP($J$18,Tablas!$A$639:$H$641,5,TRUE))) -> 0 | K43: =IF($J$18=0,0,(VLOOKUP($J$18,Tablas!$A$639:$H$641,6,TRUE))) -> 0 | L43: =IF($J$18=0,0,(VLOOKUP($J$18,Tablas!$A$639:$H$641,7,TRUE))) -> 0 | M43: =IF($J$18=0,0,(VLOOKUP($J$18,Tablas!$A$639:$H$641,8,TRUE))) -> 0
A44: Cobertura de VIH, SIDA, CAS | C44: Solo como efecto de transfusión de sangre | F44: Prima Rider Complic. Maternidad | H44: n/a | I44: =+IF($I$20=FALSE,0,Tablas!D$642) -> 0 | J44: =+IF($I$20=FALSE,0,Tablas!E$642) -> 0 | K44: =+IF($I$20=FALSE,0,Tablas!F$642) -> 0 | L44: =+IF($I$20=FALSE,0,Tablas!G$642) -> 0 | M44: =+IF($I$20=FALSE,0,Tablas!H$642) -> 0
A45: Cobertura de brazos y piernas artificiales | C45: $30,000 por año y hasta $120,000 de por vida | F45: Prima Rider Trasplante Organos | H45: n/a | I45: =IF($I$22=FALSE,0,Tablas!D$643) -> 0 | J45: =IF($I$22=FALSE,0,Tablas!E$643) -> 0 | K45: =IF($I$22=FALSE,0,Tablas!F$643) -> 0 | L45: =IF($I$22=FALSE,0,Tablas!G$643) -> 0 | M45: =IF($I$22=FALSE,0,Tablas!H$643) -> 0
A46: Cobertura extendida para dependientes en caso de muerte de asegurado principal | C46: 2 años sin costo | F46: TOTAL PRIMA NETA : | H46: n/a | I46: =SUM(I41:I45) -> 15360.46 | J46: 11752.22 | K46: 8430.18 | L46: 6343.04 | M46: 4887.66
F47: Costo Administrativo Anual : | H47: n/a | I47: 75 | J47: 75 | K47: 75 | L47: 75 | M47: 75
F48: GRAN TOTAL (1ra Cuota) : | H48: n/a | I48: =SUM(I46:I47) -> 15435.46 | J48: =SUM(J46:J47) -> 11827.22 | K48: =SUM(K46:K47) -> 8505.18 | L48: =SUM(L46:L47) -> 6418.04 | M48: =SUM(M46:M47) -> 4962.66
F49: GRAN TOTAL (2da Cuota) : | H49: n/a | I49: =I46 -> 15360.46 | J49: =J46 -> 11752.22 | K49: 8430.18 | L49: 6343.04 | M49: 4887.66
F50: Tarifas en US $ - Válidas desde 01 Ene 2013

Sheet Bupa Advantage Care (LA)
C1: FALSE | D1: FALSE | I1: RESUMEN DE BENEFICIOS | V1: RESUMEN DE BENEFICIOS
A5: Cotización de Seguro Médico Internacional Bupa Advantage Care (Latinoamérica) Tarifas en US$ | Validas: 1 de enero de 2025 | G5: REGIÓN
G7: ='INGRESO DE DATOS'!W14 -> Guayas/Santa Elena
A13: Nombre del asegurado principal | B13: =+'INGRESO DE DATOS'!$C$36 -> John Doe
A15: Broker/Agente | B15: =+'INGRESO DE DATOS'!$C$44 -> Agencia
A17: Número de Adultos en la Póliza | B17: =+'INGRESO DE DATOS'!$C$38 -> 2 | D17: Dependientes (menores de 24 años) | G17: =+'INGRESO DE DATOS'!$G$38 -> 0
D18: =IF('INGRESO DE DATOS'!$P$2=TRUE, "Cotización para dependiente de 24 años","") -> 
A19: Edad del Titular | B19: =+'INGRESO DE DATOS'!$C$40 -> 32 | D19: Edad del Cónyuge | G19: =+'INGRESO DE DATOS'!$G$40 -> 32
D21: Fecha de Cotización: | F21: =NOW() -> 2024-12-04T14:21:37.550
A25: DEDUCIBLES | B25: PLAN 1 | C25: PLAN 2 | D25: PLAN 3 | E25: PLAN 4 | F25: PLAN 5 | G25: PLAN 6
A26: Dentro del pais de residencia | B26: 0 | C26: 1000 | D26: 2000 | E26: 5000 | F26: 10000 | G26: 20000
A27: Fuera del pais de residencia | B27: 1000 | C27: 2000 | D27: 3000 | E27: 5000 | F27: 10000 | G27: 20000
A30: TARIFAS ANUALES
A31: Prima de Titular | B31: =VLOOKUP($B$19,Tablas!$A$510:$H$533,3,TRUE)+75 -> 16755 | C31: =VLOOKUP($B$19,Tablas!$A$510:$H$533,4,TRUE)+75 -> 11808 | D31: =VLOOKUP($B$19,Tablas!$A$510:$H$533,5,TRUE)+75 -> 9044 | E31: =VLOOKUP($B$19,Tablas!$A$510:$H$533,6,TRUE)+75 -> 6636 | F31: =VLOOKUP($B$19,Tablas!$A$510:$H$533,7,TRUE)+75 -> 4591 | G31: =VLOOKUP($B$19,Tablas!$A$510:$H$533,8,TRUE)+75 -> 3556
A32: Prima de Cónyuge | B32: =IF($B$17=1,0,(VLOOKUP($G$19,Tablas!$A$510:$H$533,3,TRUE))) -> 16680 | C32: =IF($B$17=1,0,(VLOOKUP($G$19,Tablas!$A$510:$H$533,4,TRUE))) -> 11733 | D32: =IF($B$17=1,0,(VLOOKUP($G$19,Tablas!$A$510:$H$533,5,TRUE))) -> 8969 | E32: =IF($B$17=1,0,(VLOOKUP($G$19,Tablas!$A$510:$H$533,6,TRUE))) -> 6561 | F32: =IF($B$17=1,0,(VLOOKUP($G$19,Tablas!$A$510:$H$533,7,TRUE))) -> 4516 | G32: =IF($B$17=1,0,(VLOOKUP($G$19,Tablas!$A$510:$H$533,8,TRUE))) -> 3481
A33: Primas Hijos | B33: =IF($G$17=0,0,(VLOOKUP($G$17,Tablas!$A$534:$H$536,3,TRUE))) -> 0 | C33: =IF($G$17=0,0,(VLOOKUP($G$17,Tablas!$A$534:$H$536,4,TRUE))) -> 0 | D33: =IF($G$17=0,0,(VLOOKUP($G$17,Tablas!$A$534:$H$536,5,TRUE))) -> 0 | E33: =IF($G$17=0,0,(VLOOKUP($G$17,Tablas!$A$534:$H$536,6,TRUE))) -> 0 | F33: =IF($G$17=0,0,(VLOOKUP($G$17,Tablas!$A$534:$H$536,7,TRUE))) -> 0 | G33: =IF($G$17=0,0,(VLOOKUP($G$17,Tablas!$A$534:$H$536,8,TRUE))) -> 0
A34: Rider: Complicaciones de Maternidad | B34: =+IF($C$1=FALSE,0,Tablas!C$537) -> 0 | C34: =+IF($C$1=FALSE,0,Tablas!D$537) -> 0 | D34: =+IF($C$1=FALSE,0,Tablas!E$537) -> 0 | E34: =+IF($C$1=FALSE,0,Tablas!F$537) -> 0 | F34: =+IF($C$1=FALSE,0,Tablas!G$537) -> 0 | G34: =+IF($C$1=FALSE,0,Tablas!H$537) -> 0
A35: Rider: Trasplante Organos | B35: =IF($D$1=FALSE,0,Tablas!C$538) -> 0 | C35: =IF($D$1=FALSE,0,Tablas!D$538) -> 0 | D35: =IF($D$1=FALSE,0,Tablas!E$538) -> 0 | E35: =IF($D$1=FALSE,0,Tablas!F$538) -> 0 | F35: =IF($D$1=FALSE,0,Tablas!G$538) -> 0 | G35: =IF($D$1=FALSE,0,Tablas!H$538) -> 0
A36: TOTAL PRIMA NETA | B36: =SUM(B31:B35) -> 33435 | C36: =SUM(C31:C35) -> 23541 | D36: 18013 | E36: 13197 | F36: 9107 | G36: 7037
A37: Contrib. 3.5% Super. Bancos : | B37: =B36*3.5% -> 1170.225 | C37: =C36*3.5% -> 823.935 | D37: 630.455 | E37: 461.895 | F37: 318.745 | G37: 246.295
A38: Contrib 0.5% Seg.Soc.Campes: | B38: =B36*0.5% -> 167.175 | C38: =C36*0.5% -> 117.705 | D38: 90.065 | E38: 65.985 | F38: 45.535 | G38: 35.185
A39: GRAN TOTAL : | B39: =SUM(B36:B38) -> 34772.4 | C39: =SUM(C36:C38) -> 24482.64 | D39: 18733.52 | E39: 13724.88 | F39: 9471.28 | G39: =SUM(G36:G38) -> 7318.48
A42: TARIFAS SEMESTRALES
A43: Prima de Titular | B43: =VLOOKUP($B$19,Tablas!$A$545:$H$568,3,TRUE)+75 -> 8915.4 | C43: =VLOOKUP($B$19,Tablas!$A$545:$H$568,4,TRUE)+75 -> 6293.49 | D43: =VLOOKUP($B$19,Tablas!$A$545:$H$568,5,TRUE)+75 -> 4828.57 | E43: =VLOOKUP($B$19,Tablas!$A$545:$H$568,6,TRUE)+75 -> 3552.33 | F43: =VLOOKUP($B$19,Tablas!$A$545:$H$568,7,TRUE)+75 -> 2468.48 | G43: =VLOOKUP($B$19,Tablas!$A$545:$H$568,8,TRUE)+57 -> 1901.93
A44: Prima de Cónyuge | B44: =IF($B$17=1,0,(VLOOKUP($G$19,Tablas!$A$545:$H$568,3,TRUE))) -> 8840.4 | C44: =IF($B$17=1,0,(VLOOKUP($G$19,Tablas!$A$545:$H$568,4,TRUE))) -> 6218.49 | D44: =IF($B$17=1,0,(VLOOKUP($G$19,Tablas!$A$545:$H$568,5,TRUE))) -> 4753.57 | E44: =IF($B$17=1,0,(VLOOKUP($G$19,Tablas!$A$545:$H$568,6,TRUE))) -> 3477.33 | F44: =IF($B$17=1,0,(VLOOKUP($G$19,Tablas!$A$545:$H$568,7,TRUE))) -> 2393.48 | G44: =IF($B$17=1,0,(VLOOKUP($G$19,Tablas!$A$545:$H$568,8,TRUE))) -> 1844.93
A45: Primas Hijos | B45: =IF($G$17=0,0,(VLOOKUP($G$17,Tablas!$A$569:$H$571,3,TRUE))) -> 0 | C45: =IF($G$17=0,0,(VLOOKUP($G$17,Tablas!$A$569:$H$571,4,TRUE))) -> 0 | D45: =IF($G$17=0,0,(VLOOKUP($G$17,Tablas!$A$569:$H$571,5,TRUE))) -> 0 | E45: =IF($G$17=0,0,(VLOOKUP($G$17,Tablas!$A$569:$H$571,6,TRUE))) -> 0 | F45: =IF($G$17=0,0,(VLOOKUP($G$17,Tablas!$A$569:$H$571,7,TRUE))) -> 0 | G45: =IF($G$17=0,0,(VLOOKUP($G$17,Tablas!$A$569:$H$571,8,TRUE))) -> 0
A46: Rider: Complicaciones de Maternidad | B46: =+IF($C$1=FALSE,0,Tablas!C$572) -> 0 | C46: =+IF($C$1=FALSE,0,Tablas!D$572) -> 0 | D46: =+IF($C$1=FALSE,0,Tablas!E$572) -> 0 | E46: =+IF($C$1=FALSE,0,Tablas!F$572) -> 0 | F46: =+IF($C$1=FALSE,0,Tablas!G$572) -> 0 | G46: =+IF($C$1=FALSE,0,Tablas!H$572) -> 0
A47: Rider: Trasplante Organos | B47: =IF($D$1=FALSE,0,Tablas!C$573) -> 0 | C47: =IF($D$1=FALSE,0,Tablas!D$573) -> 0 | D47: =IF($D$1=FALSE,0,Tablas!E$573) -> 0 | E47: =IF($D$1=FALSE,0,Tablas!F$573) -> 0 | F47: =IF($D$1=FALSE,0,Tablas!G$573) -> 0 | G47: =IF($D$1=FALSE,0,Tablas!H$573) -> 0
A48: TOTAL PRIMA NETA | B48: =SUM(B43:B47) -> 17755.8 | C48: =SUM(C43:C47) -> 12511.98 | D48: 9582.14 | E48: 7029.66 | F48: 4861.96 | G48: 3746.86
A49: Contrib. 3.5% Super. Bancos : | B49: =B48*3.5% -> 621.453 | C49: =C48*3.5% -> 437.9193 | D49: 335.3749 | E49: 246.0381 | F49: 170.1686 | G49: 131.1401
A50: Contrib 0.5% Seg.Soc.Campes: | B50: =B48*0.5% -> 88.779 | C50: =C48*0.5% -> 62.5599 | D50: 47.9107 | E50: 35.1483 | F50: 24.3098 | G50: 18.7343
A51: GRAN TOTAL (1ra Cuota) | B51: =SUM(B48:B50) -> 18466.032 | C51: =SUM(C48:C50) -> 13012.4592 | D51: 9965.4256 | E51: 7310.8464 | F51: 5056.4384 | G51: =SUM(G48:G50) -> 3896.7344
A52: GRAN TOTAL (2da Cuota) | B52: =(B48+B49+B50)*1-78 -> 18388.032 | C52: =(C48+C49+C50)*1-78 -> 12934.4592 | D52: 9887.4256 | E52: 7232.8464 | F52: 4978.4384 | G52: =(G48+G49+G50)*1-78 -> 3818.7344
A54: Este presupuesto solamente tiene carácter informativo y en ningún momento expresa compromiso legal para suministrarle cobertura de seguro. La emisión de una póliza de seguro Bupa está sujeta a todas las evaluaciones de riesgo por parte de Bupa y a la recepción de todos los pagos de prima requeridos.

Sheet Bupa Secure Care
B1: FALSE | C1: FALSE | I1: RESUMEN DE BENEFICIOS | V1: RESUMEN DE BENEFICIOS
A5: Cotización de Seguro Médico Internacional Bupa Secure Care Tarifas en US$ | Validas: 1 de enero de 2025 | G5: REGIÓN
G7: ='INGRESO DE DATOS'!W14 -> Guayas/Santa Elena
A13: Nombre del asegurado principal | B13: =+'INGRESO DE DATOS'!$C$36 -> John Doe
A15: Broker/Agente | B15: =+'INGRESO DE DATOS'!$C$44 -> Agencia
A17: Número de Adultos en la Póliza | B17: =+'INGRESO DE DATOS'!$C$38 -> 2 | D17: Dependientes (menores de 24 años) | G17: =+'INGRESO DE DATOS'!$G$38 -> 0
D18: =IF('INGRESO DE DATOS'!$P$2=TRUE, "Cotización para dependiente de 24 años","") -> 
A19: Edad del Titular | B19: =+'INGRESO DE DATOS'!$C$40 -> 32 | D19: Edad del Cónyuge | G19: =+'INGRESO DE DATOS'!$G$40 -> 32
D21: Fecha de Cotización: | F21: =NOW() -> 2024-12-04T14:21:37.550
A25: DEDUCIBLES | B25: PLAN 1 | C25: PLAN 2 | D25: PLAN 3 | E25: PLAN 4 | F25: PLAN 5 | G25: PLAN 6
A26: Dentro del pais de residencia | B26: 0 | C26: 1000 | D26: 2000 | E26: 5000 | F26: 10000 | G26: 20000
A27: Fuera del pais de residencia | B27: 1000 | C27: 2000 | D27: 3000 | E27: 5000 | F27: 10000 | G27: 20000
A30: TARIFAS ANUALES
A31: Prima de Titular | B31: =VLOOKUP($B$19,Tablas!$A$652:$H$675,3,TRUE)+75 -> 12977 | C31: =VLOOKUP($B$19,Tablas!$A$652:$H$675,4,TRUE)+75 -> 9602 | D31: =VLOOKUP($B$19,Tablas!$A$652:$H$675,5,TRUE)+75 -> 9181 | E31: =VLOOKUP($B$19,Tablas!$A$652:$H$675,6,TRUE)+75 -> 4720 | F31: =VLOOKUP($B$19,Tablas!$A$652:$H$675,7,TRUE)+75 -> 5166 | G31: =VLOOKUP($B$19,Tablas!$A$652:$H$675,8,TRUE)+75 -> 3952
A32: Prima de Cónyuge | B32: =IF($B$17=1,0,(VLOOKUP($G$19,Tablas!$A$652:$H$675,3,TRUE))) -> 12902 | C32: =IF($B$17=1,0,(VLOOKUP($G$19,Tablas!$A$652:$H$675,4,TRUE))) -> 9527 | D32: =IF($B$17=1,0,(VLOOKUP($G$19,Tablas!$A$652:$H$675,5,TRUE))) -> 9106 | E32: =IF($B$17=1,0,(VLOOKUP($G$19,Tablas!$A$652:$H$675,6,TRUE))) -> 4645 | F32: =IF($B$17=1,0,(VLOOKUP($G$19,Tablas!$A$652:$H$675,7,TRUE))) -> 5091 | G32: =IF($B$17=1,0,(VLOOKUP($G$19,Tablas!$A$652:$H$675,8,TRUE))) -> 3877
A33: Primas Hijos | B33: =IF($G$17=0,0,(VLOOKUP($G$17,Tablas!$A$676:$H$678,3,TRUE))) -> 0 | C33: =IF($G$17=0,0,(VLOOKUP($G$17,Tablas!$A$676:$H$678,4,TRUE))) -> 0 | D33: =IF($G$17=0,0,(VLOOKUP($G$17,Tablas!$A$676:$H$678,5,TRUE))) -> 0 | E33: =IF($G$17=0,0,(VLOOKUP($G$17,Tablas!$A$676:$H$678,6,TRUE))) -> 0 | F33: =IF($G$17=0,0,(VLOOKUP($G$17,Tablas!$A$676:$H$678,7,TRUE))) -> 0 | G33: =IF($G$17=0,0,(VLOOKUP($G$17,Tablas!$A$676:$H$678,8,TRUE))) -> 0
A34: Rider: Complicaciones de Maternidad | B34: =+IF($B$1=FALSE,0,Tablas!C$679) -> 0 | C34: =+IF($B$1=FALSE,0,Tablas!D$679) -> 0 | D34: =+IF($B$1=FALSE,0,Tablas!E$679) -> 0 | E34: =+IF($B$1=FALSE,0,Tablas!F$679) -> 0 | F34: =+IF($B$1=FALSE,0,Tablas!G$679) -> 0 | G34: =+IF($B$1=FALSE,0,Tablas!H$679) -> 0
A35: Rider: Trasplante Organos | B35: =IF($C$1=FALSE,0,Tablas!C$680) -> 0 | C35: =IF($C$1=FALSE,0,Tablas!D$680) -> 0 | D35: =IF($C$1=FALSE,0,Tablas!E$680) -> 0 | E35: =IF($C$1=FALSE,0,Tablas!F$680) -> 0 | F35: =IF($C$1=FALSE,0,Tablas!G$680) -> 0 | G35: =IF($C$1=FALSE,0,Tablas!H$680) -> 0
A36: TOTAL PRIMA NETA | B36: =SUM(B31:B35) -> 25879 | C36: =SUM(C31:C35) -> 19129 | D36: 18287 | E36: 9365 | F36: 10257 | G36: 7829
A37: Contrib. 3.5% Super. Bancos : | B37: =B36*3.5% -> 905.765 | C37: =C36*3.5% -> 669.515 | D37: 640.045 | E37: 327.775 | F37: 358.995 | G37: 274.015
A38: Contrib 0.5% Seg.Soc.Campes: | B38: =B36*0.5% -> 129.395 | C38: =C36*0.5% -> 95.645 | D38: 91.435 | E38: 46.825 | F38: =F36*0.5% -> 51.285 | G38: 39.145
A39: GRAN TOTAL : | B39: =SUM(B36:B38) -> 26914.16 | C39: =SUM(C36:C38) -> 19894.16 | D39: 19018.48 | E39: 9739.6 | F39: 10667.28 | G39: =SUM(G36:G38) -> 8142.16
A41: TARIFAS SEMESTRALES
A42: Prima de Titular | B42: =VLOOKUP($B$19,Tablas!$A$688:$H$711,3,TRUE)+75 -> 6913.06 | C42: =VLOOKUP($B$19,Tablas!$A$688:$H$711,4,TRUE)+75 -> 5124.31 | D42: =VLOOKUP($B$19,Tablas!$A$688:$H$711,5,TRUE)+75 -> 4901.18 | E42: =VLOOKUP($B$19,Tablas!$A$688:$H$711,6,TRUE)+75 -> 2536.85 | F42: =VLOOKUP($B$19,Tablas!$A$688:$H$711,7,TRUE)+75 -> 2773.23 | G42: =VLOOKUP($B$19,Tablas!$A$688:$H$711,8,TRUE)+75 -> 2129.81
A43: Prima de Cónyuge | B43: =IF($B$17=1,0,(VLOOKUP($G$19,Tablas!$A$688:$H$711,3,TRUE))) -> 6838.06 | C43: =IF($B$17=1,0,(VLOOKUP($G$19,Tablas!$A$688:$H$711,4,TRUE))) -> 5049.31 | D43: =IF($B$17=1,0,(VLOOKUP($G$19,Tablas!$A$688:$H$711,5,TRUE))) -> 4826.18 | E43: =IF($B$17=1,0,(VLOOKUP($G$19,Tablas!$A$688:$H$711,6,TRUE))) -> 2461.85 | F43: =IF($B$17=1,0,(VLOOKUP($G$19,Tablas!$A$688:$H$711,7,TRUE))) -> 2698.23 | G43: =IF($B$17=1,0,(VLOOKUP($G$19,Tablas!$A$688:$H$711,8,TRUE))) -> 2054.81
A44: Primas Hijos | B44: =IF($G$17=0,0,(VLOOKUP($G$17,Tablas!$A$712:$H$714,3,TRUE))) -> 0 | C44: =IF($G$17=0,0,(VLOOKUP($G$17,Tablas!$A$712:$H$714,4,TRUE))) -> 0 | D44: =IF($G$17=0,0,(VLOOKUP($G$17,Tablas!$A$712:$H$714,5,TRUE))) -> 0 | E44: =IF($G$17=0,0,(VLOOKUP($G$17,Tablas!$A$712:$H$714,6,TRUE))) -> 0 | F44: =IF($G$17=0,0,(VLOOKUP($G$17,Tablas!$A$712:$H$714,7,TRUE))) -> 0 | G44: =IF($G$17=0,0,(VLOOKUP($G$17,Tablas!$A$712:$H$714,8,TRUE))) -> 0
A45: Rider: Complicaciones de Maternidad | B45: =+IF($B$1=FALSE,0,Tablas!C$715) -> 0 | C45: =+IF($B$1=FALSE,0,Tablas!D$715) -> 0 | D45: =+IF($B$1=FALSE,0,Tablas!E$715) -> 0 | E45: =+IF($B$1=FALSE,0,Tablas!F$715) -> 0 | F45: =+IF($B$1=FALSE,0,Tablas!G$715) -> 0 | G45: =+IF($B$1=FALSE,0,Tablas!H$715) -> 0
A46: Rider: Trasplante Organos | B46: =IF($C$1=FALSE,0,Tablas!C$716) -> 0 | C46: =IF($C$1=FALSE,0,Tablas!D$716) -> 0 | D46: =IF($C$1=FALSE,0,Tablas!E$716) -> 0 | E46: =IF($C$1=FALSE,0,Tablas!F$716) -> 0 | F46: =IF($C$1=FALSE,0,Tablas!G$716) -> 0 | G46: =IF($C$1=FALSE,0,Tablas!H$716) -> 0
A47: TOTAL PRIMA NETA | B47: =SUM(B42:B46) -> 13751.12 | C47: =SUM(C42:C46) -> 10173.62 | D47: 9727.36 | E47: 4998.7 | F47: 5471.46 | G47: 4184.62
A48: Contrib. 3.5% Super. Bancos : | B48: =B47*3.5% -> 481.2892 | C48: =C47*3.5% -> 356.0767 | D48: 340.4576 | E48: 174.9545 | F48: 191.5011 | G48: 146.4617
A49: Contrib 0.5% Seg.Soc.Campes: | B49: =B47*0.5% -> 68.7556 | C49: =C47*0.5% -> 50.8681 | D49: 48.6368 | E49: 24.9935 | F49: 27.3573 | G49: 20.9231
A50: GRAN TOTAL (1ra Cuota) | B50: =SUM(B47:B49) -> 14301.1648 | C50: =SUM(C47:C49) -> 10580.5648 | D50: 10116.4544 | E50: 5198.648 | F50: 5690.3184 | G50: =SUM(G47:G49) -> 4352.0048
A51: GRAN TOTAL (2da Cuota) | B51: =(B47+B48+B49)*1-78 -> 14223.1648 | C51: =(C47+C48+C49)*1-78 -> 10502.5648 | D51: 10038.4544 | E51: 5120.648 | F51: 5612.3184 | G51: =(G47+G48+G49)*1-78 -> 4274.0048
A53: Este presupuesto solamente tiene carácter informativo y en ningún momento expresa compromiso legal para suministrarle cobertura de seguro. La emisión de una póliza de seguro Bupa está sujeta a todas las evaluaciones de riesgo por parte de Bupa y a la recepción de todos los pagos de prima requeridos.

Sheet Bupa Essential Care
B1: FALSE | C1: FALSE | I1: RESUMEN DE BENEFICIOS
A5: Cotización de Seguro Médico Internacional Bupa Essential Care Tarifas en US$ | Validas: 1 de enero de 2025 | G5: REGIÓN
G7: ='INGRESO DE DATOS'!W14 -> Guayas/Santa Elena
A13: Nombre del asegurado principal | B13: =+'INGRESO DE DATOS'!$C$36 -> John Doe
A15: Broker/Agente | B15: =+'INGRESO DE DATOS'!$C$44 -> Agencia
A17: Número de Adultos en la Póliza | B17: =+'INGRESO DE DATOS'!$C$38 -> 2 | D17: Dependientes (menores de 24 años) | G17: =+'INGRESO DE DATOS'!$G$38 -> 0
D18: =IF('INGRESO DE DATOS'!$P$2=TRUE, "Cotización para dependiente de 24 años","") -> 
A19: Edad del Titular | B19: =+'INGRESO DE DATOS'!$C$40 -> 32 | D19: Edad del Cónyuge | G19: =+'INGRESO DE DATOS'!$G$40 -> 32
D21: Fecha de Cotización: | F21: =NOW() -> 2024-12-04T14:21:37.550
A25: DEDUCIBLES | B25: PLAN 1 | C25: PLAN 2 | D25: PLAN 3 | E25: PLAN 4 | F25: PLAN 5 | G25: PLAN 6
A26: Dentro del pais de residencia | B26: 0 | C26: 1000 | D26: 2000 | E26: 5000 | F26: 10000 | G26: 20000
A27: Fuera del pais de residencia | B27: 1000 | C27: 2000 | D27: 3000 | E27: 5000 | F27: 10000 | G27: 20000
A30: TARIFAS ANUALES
A31: Prima de Titular | B31: =VLOOKUP($B$19,Tablas!$A$725:$H$748,3,TRUE)+75 -> 7045 | C31: =VLOOKUP($B$19,Tablas!$A$725:$H$748,4,TRUE)+75 -> 6464 | D31: =VLOOKUP($B$19,Tablas!$A$725:$H$748,5,TRUE)+75 -> 6106 | E31: =VLOOKUP($B$19,Tablas!$A$725:$H$748,6,TRUE)+75 -> 4382 | F31: =VLOOKUP($B$19,Tablas!$A$725:$H$748,7,TRUE)+75 -> 3456 | G31: =VLOOKUP($B$19,Tablas!$A$725:$H$748,8,TRUE)+75 -> 2652
A32: Prima de Cónyuge | B32: =IF($B$17=1,0,(VLOOKUP($G$19,Tablas!$A$725:$H$748,3,TRUE))) -> 6970 | C32: =IF($B$17=1,0,(VLOOKUP($G$19,Tablas!$A$725:$H$748,4,TRUE))) -> 6389 | D32: =IF($B$17=1,0,(VLOOKUP($G$19,Tablas!$A$725:$H$748,5,TRUE))) -> 6031 | E32: =IF($B$17=1,0,(VLOOKUP($G$19,Tablas!$A$725:$H$748,6,TRUE))) -> 4307 | F32: =IF($B$17=1,0,(VLOOKUP($G$19,Tablas!$A$725:$H$748,7,TRUE))) -> 3381 | G32: =IF($B$17=1,0,(VLOOKUP($G$19,Tablas!$A$725:$H$748,8,TRUE))) -> 2577
A33: Primas Hijos | B33: =IF($G$17=0,0,(VLOOKUP($G$17,Tablas!$A$749:$H$751,3,TRUE))) -> 0 | C33: =IF($G$17=0,0,(VLOOKUP($G$17,Tablas!$A$749:$H$751,4,TRUE))) -> 0 | D33: =IF($G$17=0,0,(VLOOKUP($G$17,Tablas!$A$749:$H$751,5,TRUE))) -> 0 | E33: =IF($G$17=0,0,(VLOOKUP($G$17,Tablas!$A$749:$H$751,6,TRUE))) -> 0 | F33: =IF($G$17=0,0,(VLOOKUP($G$17,Tablas!$A$749:$H$751,7,TRUE))) -> 0 | G33: =IF($G$17=0,0,(VLOOKUP($G$17,Tablas!$A$749:$H$751,8,TRUE))) -> 0
A34: Rider: Complicaciones de Maternidad | B34: =+IF($B$1=FALSE,0,Tablas!C$752) -> 0 | C34: =+IF($B$1=FALSE,0,Tablas!D$752) -> 0 | D34: =+IF($B$1=FALSE,0,Tablas!E$752) -> 0 | E34: =+IF($B$1=FALSE,0,Tablas!F$752) -> 0 | F34: =+IF($B$1=FALSE,0,Tablas!G$752) -> 0 | G34: =+IF($B$1=FALSE,0,Tablas!H$752) -> 0
A35: Rider: Trasplante Organos | B35: =IF($C$1=FALSE,0,Tablas!C$753) -> 0 | C35: =IF($C$1=FALSE,0,Tablas!D$753) -> 0 | D35: =IF($C$1=FALSE,0,Tablas!E$753) -> 0 | E35: =IF($C$1=FALSE,0,Tablas!F$753) -> 0 | F35: =IF($C$1=FALSE,0,Tablas!G$753) -> 0 | G35: =IF($C$1=FALSE,0,Tablas!H$753) -> 0
A36: TOTAL PRIMA NETA | B36: =SUM(B31:B35) -> 14015 | C36: =SUM(C31:C35) -> 12853 | D36: 12137 | E36: 8689 | F36: 6837 | G36: 5229
A37: Contrib. 3.5% Super. Bancos : | B37: =B36*3.5% -> 490.525 | C37: =C36*3.5% -> 449.855 | D37: 424.795 | E37: 304.115 | F37: 239.295 | G37: 183.015
A38: Contrib 0.5% Seg.Soc.Campes: | B38: =B36*0.5% -> 70.075 | C38: =C36*0.5% -> 64.265 | D38: 60.685 | E38: 43.445 | F38: 34.185 | G38: 26.145
A39: GRAN TOTAL : | B39: =SUM(B36:B38) -> 14575.6 | C39: =SUM(C36:C38) -> 13367.12 | D39: 12622.48 | E39: 9036.56 | F39: 7110.48 | G39: =SUM(G36:G38) -> 5438.16
A42: TARIFAS SEMESTRALES
A43: Prima de Titular | B43: =VLOOKUP($B$19,Tablas!$A$760:$H$783,3,TRUE)+75 -> 3769.1 | C43: =VLOOKUP($B$19,Tablas!$A$760:$H$783,4,TRUE)+75 -> 3461.17 | D43: =VLOOKUP($B$19,Tablas!$A$760:$H$783,5,TRUE)+75 -> 3271.43 | E43: =VLOOKUP($B$19,Tablas!$A$760:$H$783,6,TRUE)+75 -> 2357.71 | F43: =VLOOKUP($B$19,Tablas!$A$760:$H$783,7,TRUE)+75 -> 1866.93 | G43: =VLOOKUP($B$19,Tablas!$A$760:$H$783,8,TRUE)+75 -> 1440.81
A44: Prima de Cónyuge | B44: =IF($B$17=1,0,(VLOOKUP($G$19,Tablas!$A$760:$H$783,3,TRUE))) -> 3694.1 | C44: =IF($B$17=1,0,(VLOOKUP($G$19,Tablas!$A$760:$H$783,4,TRUE))) -> 3386.17 | D44: =IF($B$17=1,0,(VLOOKUP($G$19,Tablas!$A$760:$H$783,5,TRUE))) -> 3196.43 | E44: =IF($B$17=1,0,(VLOOKUP($G$19,Tablas!$A$760:$H$783,6,TRUE))) -> 2282.71 | F44: =IF($B$17=1,0,(VLOOKUP($G$19,Tablas!$A$760:$H$783,7,TRUE))) -> 1791.93 | G44: =IF($B$17=1,0,(VLOOKUP($G$19,Tablas!$A$760:$H$783,8,TRUE))) -> 1365.81
A45: Primas Hijos | B45: =IF($G$17=0,0,(VLOOKUP($G$17,Tablas!$A$784:$H$786,3,TRUE))) -> 0 | C45: =IF($G$17=0,0,(VLOOKUP($G$17,Tablas!$A$784:$H$786,4,TRUE))) -> 0 | D45: =IF($G$17=0,0,(VLOOKUP($G$17,Tablas!$A$784:$H$786,5,TRUE))) -> 0 | E45: =IF($G$17=0,0,(VLOOKUP($G$17,Tablas!$A$784:$H$786,6,TRUE))) -> 0 | F45: =IF($G$17=0,0,(VLOOKUP($G$17,Tablas!$A$784:$H$786,7,TRUE))) -> 0 | G45: =IF($G$17=0,0,(VLOOKUP($G$17,Tablas!$A$784:$H$786,8,TRUE))) -> 0
A46: Rider: Complicaciones de Maternidad | B46: =+IF($B$1=FALSE,0,Tablas!C$787) -> 0 | C46: =+IF($B$1=FALSE,0,Tablas!D$787) -> 0 | D46: =+IF($B$1=FALSE,0,Tablas!E$787) -> 0 | E46: =+IF($B$1=FALSE,0,Tablas!F$787) -> 0 | F46: =+IF($B$1=FALSE,0,Tablas!G$787) -> 0 | G46: =+IF($B$1=FALSE,0,Tablas!H$787) -> 0
A47: Rider: Trasplante Organos | B47: =IF($C$1=FALSE,0,Tablas!C$788) -> 0 | C47: =IF($C$1=FALSE,0,Tablas!D$788) -> 0 | D47: =IF($C$1=FALSE,0,Tablas!E$788) -> 0 | E47: =IF($C$1=FALSE,0,Tablas!F$788) -> 0 | F47: =IF($C$1=FALSE,0,Tablas!G$788) -> 0 | G47: =IF($C$1=FALSE,0,Tablas!H$788) -> 0
A48: TOTAL PRIMA NETA | B48: =SUM(B43:B47) -> 7463.2 | C48: =SUM(C43:C47) -> 6847.34 | D48: 6467.86 | E48: 4640.42 | F48: 3658.86 | G48: 2806.62
A49: Contrib. 3.5% Super. Bancos : | B49: =B48*3.5% -> 261.212 | C49: =C48*3.5% -> 239.6569 | D49: 226.3751 | E49: 162.4147 | F49: 128.0601 | G49: 98.2317
A50: Contrib 0.5% Seg.Soc.Campes: | B50: =B48*0.5% -> 37.316 | C50: =C48*0.5% -> 34.2367 | D50: 32.3393 | E50: 23.2021 | F50: 18.2943 | G50: 14.0331
A51: GRAN TOTAL (1ra Cuota) | B51: =SUM(B48:B50) -> 7761.728 | C51: =SUM(C48:C50) -> 7121.2336 | D51: 6726.5744 | E51: 4826.0368 | F51: 3805.2144 | G51: =SUM(G48:G50) -> 2918.8848
A52: GRAN TOTAL (2da Cuota) | B52: =(B48+B49+B50)*1-78 -> 7683.728 | C52: =(C48+C49+C50)*1-78 -> 7043.2336 | D52: 6648.5744 | E52: 4748.0368 | F52: 3727.2144 | G52: =(G48+G49+G50)*1-78 -> 2840.8848
A54: Este presupuesto solamente tiene carácter informativo y en ningún momento expresa compromiso legal para suministrarle cobertura de seguro. La emisión de una póliza de seguro Bupa está sujeta a todas las evaluaciones de riesgo por parte de Bupa y a la recepción de todos los pagos de prima requeridos.

Sheet Bupa Crititcal
B1: TRUE | J1: RESUMEN DE BENEFICIOS | W1: RESUMEN DE BENEFICIOS
A5: Cotización de Seguro Médico Internacional Bupa Critical Care Tarifas en US$ | Validas: 1 de enero de 2025 | H5: REGIÓN
H7: ='INGRESO DE DATOS'!W14 -> Guayas/Santa Elena
A13: Nombre del asegurado principal | B13: =+'INGRESO DE DATOS'!$C$36 -> John Doe
A15: Broker/Agente | B15: =+'INGRESO DE DATOS'!$C$44 -> Agencia
A17: Número de Adultos en la Póliza | B17: =+'INGRESO DE DATOS'!$C$38 -> 2 | D17: Dependientes (menores de 24 años) | H17: =+'INGRESO DE DATOS'!$G$38 -> 0
D18: =IF('INGRESO DE DATOS'!$P$2=TRUE, "Cotización para dependiente de 24 años","") -> 
A19: Edad del Titular | B19: =+'INGRESO DE DATOS'!$C$40 -> 32 | D19: Edad del Cónyuge | H19: =+'INGRESO DE DATOS'!$G$40 -> 32
D21: Edad del adulto mayor en la pareja | H21: =IF(B19>=H19,B19,H19) -> 32
A24: CONDICION CRÍTICA CUBIERTA | D24: MÁXIMO (Por asegurado, por año Póliza) | F24: TRASPLANTE DE ÓRGANOS
F26: Tipo de trasplante | H26: Máximo Vitalicio por persona
A27: Enfermedades neurológicas y accidentes cerebro-vasculares | D27: 150000
A29: Cirugías cardíacas y angioplastías | D29: 150000 | F29: Corazón | H29: 300000
F30: Corazón y Pulmón (simultáneamente) | H30: 300000
A31: Tratamiento de cáncer | D31: 200000 | F31: Pulmón | H31: 250000
F32: Pancreas | H32: 250000
A33: Trauma grave (Politraumatismos) | D33: 150000 | F33: Pancreas y Riñón (simultáneamente) | H33: 300000
F34: Riñón | H34: 200000
A35: Insuficiencia renal crónica (Diálisis) | D35: 100000 | F35: Hígado | H35: 200000
F36: Médula ósea | H36: 250000
A37: Quemaduras graves | D37: 300000 | F37: La cobertura de trasplante de órganos está limitada a la Red de Proveedores para Procedimiento de Trasplante de la Compañía y no se proporcionará cobertura en proveedores fuera de esta Red especializada.
A38: Desorden infeccioso grave (Septicemia) | D38: 150000
A41: Deducibles | C41: PLAN 1 | D41: PLAN 2 | E41: PLAN 3 | F41: PLAN 4 | G41: PLAN 5 | H41: PLAN 6
A42: Dentro del pais de residencia | C42: 2000 | D42: 3500 | E42: 5000 | F42: 10000 | G42: 20000 | H42: 50000
A43: Fuera del pais de residencia | C43: 2000 | D43: 3500 | E43: 5000 | F43: 10000 | G43: 20000 | H43: 50000
A45: TARIFAS ANUALES
A46: Prima por plan individual | C46: =IF((($B$17+$H$17)=1),(VLOOKUP($H$21,Tablas!$A$799:$T$800,3,TRUE)),0) -> 0 | D46: =IF((($B$17+$H$17)=1),(VLOOKUP($H$21,Tablas!$A$799:$T$800,6,TRUE)),0) -> 0 | E46: =IF((($B$17+$H$17)=1),(VLOOKUP($H$21,Tablas!$A$799:$T$800,9,TRUE)),0) -> 0 | F46: =IF((($B$17+$H$17)=1),(VLOOKUP($H$21,Tablas!$A$799:$T$800,12,TRUE)),0) -> 0 | G46: =IF((($B$17+$H$17)=1),(VLOOKUP($H$21,Tablas!$A$799:$T$800,15,TRUE)),0) -> 0 | H46: =IF((($B$17+$H$17)=1),(VLOOKUP($H$21,Tablas!$A$799:$T$800,18,TRUE)),0) -> 0
A47: Prima por plan para 2 personas | C47: =IF((($B$17+$H$17)=2),(VLOOKUP($H$21,Tablas!$A$799:$T$800,4,TRUE)),0) -> 9954 | D47: =IF((($B$17+$H$17)=2),(VLOOKUP($H$21,Tablas!$A$799:$T$800,7,TRUE)),0) -> 9078 | E47: =IF((($B$17+$H$17)=2),(VLOOKUP($H$21,Tablas!$A$799:$T$800,10,TRUE)),0) -> 7347 | F47: =IF((($B$17+$H$17)=2),(VLOOKUP($H$21,Tablas!$A$799:$T$800,13,TRUE)),0) -> 5393 | G47: =IF((($B$17+$H$17)=2),(VLOOKUP($H$21,Tablas!$A$799:$T$800,16,TRUE)),0) -> 4122 | H47: =IF((($B$17+$H$17)=2),(VLOOKUP($H$21,Tablas!$A$799:$T$800,19,TRUE)),0) -> 2266
A48: Prima por plan familiar | C48: =IF((($B$17+$H$17)>=3),(VLOOKUP($H$21,Tablas!$A$799:$T$800,5,TRUE)),0) -> 0 | D48: =IF((($B$17+$H$17)>=3),(VLOOKUP($H$21,Tablas!$A$799:$T$800,8,TRUE)),0) -> 0 | E48: =IF((($B$17+$H$17)>=3),(VLOOKUP($H$21,Tablas!$A$799:$T$800,11,TRUE)),0) -> 0 | F48: =IF((($B$17+$H$17)>=3),(VLOOKUP($H$21,Tablas!$A$799:$T$800,14,TRUE)),0) -> 0 | G48: =IF((($B$17+$H$17)>=3),(VLOOKUP($H$21,Tablas!$A$799:$T$800,17,TRUE)),0) -> 0 | H48: =IF((($B$17+$H$17)>=3),(VLOOKUP($H$21,Tablas!$A$799:$T$800,20,TRUE)),0) -> 0
A49: TOTAL PRIMA NETA | C49: =SUM(C46:C48) -> 9954 | D49: =SUM(D46:D48) -> 9078 | E49: 7347 | F49: 5393 | G49: 4122 | H49: 2266
A50: Contrib. 3.5% Super. Bancos : | C50: =C49*3.5% -> 348.39 | D50: =D49*3.5% -> 317.73 | E50: 257.145 | F50: 188.755 | G50: 144.27 | H50: 79.31
A51: Contrib 0.5% Seg.Soc.Campes: | C51: =C49*0.5% -> 49.77 | D51: =D49*0.5% -> 45.39 | E51: 36.735 | F51: 26.965 | G51: 20.61 | H51: 11.33
A52: GRAN TOTAL | C52: =SUM(C49:C51) -> 10352.16 | D52: =SUM(D49:D51) -> 9441.12 | E52: 7640.88 | F52: 5608.72 | G52: 4286.88 | H52: 2356.64
A54: Este presupuesto solamente tiene carácter informativo y en ningún momento expresa compromiso legal para suministrarle cobertura de seguro. La emisión de una póliza de seguro Bupa está sujeta a todas las evaluaciones de riesgo por parte de Bupa y a la recepción de todos los pagos de prima requeridos.

Sheet Resumen tarifas anuales
A5: Cotización de Seguro Médico Internacional Bupa Critical Care Tarifas en US$ | Validas: 1 de enero de 2025 | H5: REGIÓN
H7: ='INGRESO DE DATOS'!W14 -> Guayas/Santa Elena
A13: Nombre del asegurado principal | B13: =+'INGRESO DE DATOS'!$C$36 -> John Doe
A15: Broker/Agente | B15: =+'INGRESO DE DATOS'!$C$44 -> Agencia
A17: Número de Adultos en la Póliza | B17: =+'INGRESO DE DATOS'!$C$38 -> 2 | F17: Dependientes (menores de 24 años) | H17: =+'INGRESO DE DATOS'!$G$38 -> 0
F18: =IF('INGRESO DE DATOS'!$P$2=TRUE, "Cotización para dependiente de 24 años","") -> 
A19: Edad del Titular | B19: =+'INGRESO DE DATOS'!$C$40 -> 32 | F19: Edad del Cónyuge | H19: =+'INGRESO DE DATOS'!$G$40 -> 32
A22: DEDUCIBLES | C22: PLAN 1 | D22: PLAN 2 | E22: PLAN 3 | F22: PLAN 4 | G22: PLAN 5 | H22: PLAN 6
A23: Dentro del pais de residencia | C23: 0 | D23: 1000 | E23: 2000 | F23: 5000 | G23: 10000 | H23: 20000
A24: Fuera del pais de residencia | C24: 1000 | D24: 2000 | E24: 3000 | F24: 5000 | G24: 10000 | H24: 20000
A26: PRODUCTOS | C26: TARIFAS ANUALES
A27: Bupa Diamond Care (Mundial) | C27: ='Bupa Diamond Care (Mundial)'!G42 -> 77258.48 | D27: ='Bupa Diamond Care (Mundial)'!H42 -> 48051.12 | E27: ='Bupa Diamond Care (Mundial)'!I42 -> 34578.96 | F27: ='Bupa Diamond Care (Mundial)'!J42 -> 25009.92 | G27: ='Bupa Diamond Care (Mundial)'!K42 -> 17272.32 | H27: ='Bupa Diamond Care (Mundial)'!L42 -> 13732.16
A28: Bupa Diamond Care (Latino América) | C28: ='Bupa Diamond Care (LA)'!G42 -> 60918 | D28: ='Bupa Diamond Care (LA)'!H42 -> 37805.04 | E28: ='Bupa Diamond Care (LA)'!I42 -> 27132.56 | F28: ='Bupa Diamond Care (LA)'!J42 -> 19417.84 | G28: ='Bupa Diamond Care (LA)'!K42 -> 13265.2 | H28: ='Bupa Diamond Care (LA)'!L42 -> 10457.2
A29: Bupa Complete Care (Mundial) | C29: ='Bupa Complete Care (Mundial)'!G42 -> 66209.52 | D29: ='Bupa Complete Care (Mundial)'!H42 -> 37782.16 | E29: ='Bupa Complete Care (Mundial)'!I42 -> 26390 | F29: ='Bupa Complete Care (Mundial)'!J42 -> 17021.68 | G29: ='Bupa Complete Care (Mundial)'!K42 -> 13737.36 | H29: ='Bupa Complete Care (Mundial)'!L42 -> 11384.88
A30: Bupa Complete Care (Latino América) | C30: ='Bupa Complete Care (LA)'!G42 -> 52469.04 | D30: ='Bupa Complete Care (LA)'!H42 -> 31929.04 | E30: ='Bupa Complete Care (LA)'!I42 -> 23721.36 | F30: ='Bupa Complete Care (LA)'!J42 -> 16874 | G30: ='Bupa Complete Care (LA)'!K42 -> 11624.08 | H30: ='Bupa Complete Care (LA)'!L42 -> 8855.6
A31: Bupa Advantage Care (Mundial) | C31: ='Bupa Advantage Care (Mundial)'!B39 -> 43864.08 | D31: ='Bupa Advantage Care (Mundial)'!C39 -> 30966 | E31: ='Bupa Advantage Care (Mundial)'!D39 -> 23769.2 | F31: ='Bupa Advantage Care (Mundial)'!E39 -> 12580.88 | G31: ='Bupa Advantage Care (Mundial)'!F39 -> 11917.36 | H31: ='Bupa Advantage Care (Mundial)'!G39 -> 9419.28
A32: Bupa Advantage Care (Latino América) | C32: ='Bupa Advantage Care (LA)'!B39 -> 34772.4 | D32: ='Bupa Advantage Care (LA)'!C39 -> 24482.64 | E32: ='Bupa Advantage Care (LA)'!D39 -> 18733.52 | F32: ='Bupa Advantage Care (LA)'!E39 -> 13724.88 | G32: ='Bupa Advantage Care (LA)'!F39 -> 9471.28 | H32: ='Bupa Advantage Care (LA)'!G39 -> 7318.48
A33: Bupa Secure Care | C33: ='Bupa Secure Care'!B39 -> 26914.16 | D33: ='Bupa Secure Care'!C39 -> 19894.16 | E33: ='Bupa Secure Care'!D39 -> 19018.48 | F33: ='Bupa Secure Care'!E39 -> 9739.6 | G33: ='Bupa Secure Care'!F39 -> 10667.28 | H33: ='Bupa Secure Care'!G39 -> 8142.16
A34: Bupa Essential Care | C34: ='Bupa Essential Care'!B39 -> 14575.6 | D34: ='Bupa Essential Care'!C39 -> 13367.12 | E34: ='Bupa Essential Care'!D39 -> 12622.48 | F34: ='Bupa Essential Care'!E39 -> 9036.56 | G34: ='Bupa Essential Care'!F39 -> 7110.48 | H34: ='Bupa Essential Care'!G39 -> 5438.16
A36: BUPA CRITICAL CARE
A37: DEDUCIBLES | C37: PLAN 1 | D37: PLAN 2 | E37: PLAN 3 | F37: PLAN 4 | G37: PLAN 5 | H37: PLAN 6
A38: Dentro del pais de residencia | C38: 2000 | D38: 3500 | E38: 5000 | F38: 10000 | G38: 20000 | H38: 50000
A39: Fuera del pais de residencia | C39: 2000 | D39: 3500 | E39: 5000 | F39: 10000 | G39: 20000 | H39: 50000
C42: TARIFAS ANUALES
A43: Bupa Critical Care | C43: ='Bupa Crititcal'!C52 -> 10352.16 | D43: ='Bupa Crititcal'!D52 -> 9441.12 | E43: ='Bupa Crititcal'!E52 -> 7640.88 | F43: ='Bupa Crititcal'!F52 -> 5608.72 | G43: ='Bupa Crititcal'!G52 -> 4286.88 | H43: ='Bupa Crititcal'!H52 -> 2356.64

Sheet Comparacion de Beneficios (hidden)
A1: 2023 BUPA CARE COMPARACION DE BENEFICIOS

Sheet Tablas (hidden)
K1: Critical | L1: Diamond | M1: Complete | N1: Advantage | O1: Secure | P1: Essential
B2: REGIÓN | C2: ='INGRESO DE DATOS'!W14 -> Guayas/Santa Elena | E2: FACTOR SEMESTRAL : | G2: 0.53 | I2: TOTAL DISCOUNT | K2: ='INGRESO DE DATOS'!O42 -> 1 | L2: ='INGRESO DE DATOS'!P42 -> 1 | M2: ='INGRESO DE DATOS'!Q42 -> 1 | N2: ='INGRESO DE DATOS'!R42 -> 1 | O2: ='INGRESO DE DATOS'!S42 -> 1 | P2: ='INGRESO DE DATOS'!T42 -> 1 | T2: Impuesto (14.94%) | V2: 1
A5: BUPA DIAMOND CARE (MUNDIAL) | K5: ORIGINAL RATES | Q5: DISCOUNTS APPLIED
A6: TARIFAS ANUALES
A7: EDAD
C8: DW1 | D8: DW2 | E8: DW3 | F8: DW4 | G8: DW5 | H8: DW6
A9: 18 | B9: 18-24 | C9: =P9*$V$2 -> 31872 | D9: =Q9*$V$2 -> 21147 | E9: =R9*$V$2 -> 12204 | F9: 9598 | G9: 6177 | H9: 4885 | J9: =IF('INGRESO DE DATOS'!$W$13=1,'Tablas Guyanas y Santa Elena'!C9,'Tablas Resto de Ecuador'!C9) -> 31872 | K9: =IF('INGRESO DE DATOS'!$W$13=1,'Tablas Guyanas y Santa Elena'!D9,'Tablas Resto de Ecuador'!D9) -> 21147 | L9: =IF('INGRESO DE DATOS'!$W$13=1,'Tablas Guyanas y Santa Elena'!E9,'Tablas Resto de Ecuador'!E9) -> 12204 | M9: =IF('INGRESO DE DATOS'!$W$13=1,'Tablas Guyanas y Santa Elena'!F9,'Tablas Resto de Ecuador'!F9) -> 9598 | N9: =IF('INGRESO DE DATOS'!$W$13=1,'Tablas Guyanas y Santa Elena'!G9,'Tablas Resto de Ecuador'!G9) -> 6177 | O9: =IF('INGRESO DE DATOS'!$W$13=1,'Tablas Guyanas y Santa Elena'!H9,'Tablas Resto de Ecuador'!H9) -> 4885 | P9: =(J9-50)*$L$2+50 -> 31872 | Q9: =(K9-50)*$L$2+50 -> 21147 | R9: =(L9-50)*$L$2+50 -> 12204 | S9: 9598 | T9: 6177 | U9: 4885
A10: 25 | B10: 25-29 | C10: =P10*$V$2 -> 35835 | D10: =Q10*$V$2 -> 22172 | E10: =R10*$V$2 -> 15110 | F10: =S10*$V$2 -> 10622 | G10: =T10*$V$2 -> 6828 | H10: =U10*$V$2 -> 5395 | J10: =IF('INGRESO DE DATOS'!$W$13=1,'Tablas Guyanas y Santa Elena'!C10,'Tablas Resto de Ecuador'!C10) -> 35835 | K10: =IF('INGRESO DE DATOS'!$W$13=1,'Tablas Guyanas y Santa Elena'!D10,'Tablas Resto de Ecuador'!D10) -> 22172 | L10: =IF('INGRESO DE DATOS'!$W$13=1,'Tablas Guyanas y Santa Elena'!E10,'Tablas Resto de Ecuador'!E10) -> 15110 | M10: =IF('INGRESO DE DATOS'!$W$13=1,'Tablas Guyanas y Santa Elena'!F10,'Tablas Resto de Ecuador'!F10) -> 10622 | N10: =IF('INGRESO DE DATOS'!$W$13=1,'Tablas Guyanas y Santa Elena'!G10,'Tablas Resto de Ecuador'!G10) -> 6828 | O10: =IF('INGRESO DE DATOS'!$W$13=1,'Tablas Guyanas y Santa Elena'!H10,'Tablas Resto de Ecuador'!H10) -> 5395 | P10: =(J10-50)*$L$2+50 -> 35835 | Q10: =(K10-50)*$L$2+50 -> 22172 | R10: =(L10-50)*$L$2+50 -> 15110 | S10: =(M10-50)*$L$2+50 -> 10622 | T10: =(N10-50)*$L$2+50 -> 6828 | U10: =(O10-50)*$L$2+50 -> 5395
A11: 30 | B11: 30-34 | C11: 37106 | D11: 23064 | E11: 16587 | F11: 11874 | G11: 8154 | H11: 6452 | J11: =IF('INGRESO DE DATOS'!$W$13=1,'Tablas Guyanas y Santa Elena'!C11,'Tablas Resto de Ecuador'!C11) -> 37106 | K11: =IF('INGRESO DE DATOS'!$W$13=1,'Tablas Guyanas y Santa Elena'!D11,'Tablas Resto de Ecuador'!D11) -> 23064 | L11: =IF('INGRESO DE DATOS'!$W$13=1,'Tablas Guyanas y Santa Elena'!E11,'Tablas Resto de Ecuador'!E11) -> 16587 | M11: =IF('INGRESO DE DATOS'!$W$13=1,'Tablas Guyanas y Santa Elena'!F11,'Tablas Resto de Ecuador'!F11) -> 11874 | N11: =IF('INGRESO DE DATOS'!$W$13=1,'Tablas Guyanas y Santa Elena'!G11,'Tablas Resto de Ecuador'!G11) -> 8154 | O11: =IF('INGRESO DE DATOS'!$W$13=1,'Tablas Guyanas y Santa Elena'!H11,'Tablas Resto de Ecuador'!H11) -> 6452 | P11: 37106 | Q11: 23064 | R11: 16587 | S11: 11874 | T11: 8154 | U11: 6452
A12: 35 | B12: 35-39 | C12: 41470 | D12: 25811 | E12: 18553 | F12: 13293 | G12: 9124 | H12: 7221 | J12: =IF('INGRESO DE DATOS'!$W$13=1,'Tablas Guyanas y Santa Elena'!C12,'Tablas Resto de Ecuador'!C12) -> 41470 | K12: =IF('INGRESO DE DATOS'!$W$13=1,'Tablas Guyanas y Santa Elena'!D12,'Tablas Resto de Ecuador'!D12) -> 25811 | L12: =IF('INGRESO DE DATOS'!$W$13=1,'Tablas Guyanas y Santa Elena'!E12,'Tablas Resto de Ecuador'!E12) -> 18553 | M12: =IF('INGRESO DE DATOS'!$W$13=1,'Tablas Guyanas y Santa Elena'!F12,'Tablas Resto de Ecuador'!F12) -> 13293 | N12: =IF('INGRESO DE DATOS'!$W$13=1,'Tablas Guyanas y Santa Elena'!G12,'Tablas Resto de Ecuador'!G12) -> 9124 | O12: =IF('INGRESO DE DATOS'!$W$13=1,'Tablas Guyanas y Santa Elena'!H12,'Tablas Resto de Ecuador'!H12) -> 7221 | P12: 41470 | Q12: 25811 | R12: 18553 | S12: 13293 | T12: 9124 | U12: 7221
A13: 40 | B13: 40-44 | C13: 47986 | D13: 29895 | E13: 20279 | F13: 14737 | G13: 10013 | H13: 7917 | J13: =IF('INGRESO DE DATOS'!$W$13=1,'Tablas Guyanas y Santa Elena'!C13,'Tablas Resto de Ecuador'!C13) -> 47986 | K13: =IF('INGRESO DE DATOS'!$W$13=1,'Tablas Guyanas y Santa Elena'!D13,'Tablas Resto de Ecuador'!D13) -> 29895 | L13: =IF('INGRESO DE DATOS'!$W$13=1,'Tablas Guyanas y Santa Elena'!E13,'Tablas Resto de Ecuador'!E13) -> 20279 | M13: =IF('INGRESO DE DATOS'!$W$13=1,'Tablas Guyanas y Santa Elena'!F13,'Tablas Resto de Ecuador'!F13) -> 14737 | N13: =IF('INGRESO DE DATOS'!$W$13=1,'Tablas Guyanas y Santa Elena'!G13,'Tablas Resto de Ecuador'!G13) -> 10013 | O13: =IF('INGRESO DE DATOS'!$W$13=1,'Tablas Guyanas y Santa Elena'!H13,'Tablas Resto de Ecuador'!H13) -> 7917 | P13: 47986 | Q13: 29895 | R13: 20279 | S13: 14737 | T13: 10013 | U13: 7917
A14: 45 | B14: 45-49 | C14: 53561 | D14: 33409 | E14: 22669 | F14: 16448 | G14: 11181 | H14: 8831 | J14: =IF('INGRESO DE DATOS'!$W$13=1,'Tablas Guyanas y Santa Elena'!C14,'Tablas Resto de Ecuador'!C14) -> 53561 | K14: =IF('INGRESO DE DATOS'!$W$13=1,'Tablas Guyanas y Santa Elena'!D14,'Tablas Resto de Ecuador'!D14) -> 33409 | L14: =IF('INGRESO DE DATOS'!$W$13=1,'Tablas Guyanas y Santa Elena'!E14,'Tablas Resto de Ecuador'!E14) -> 22669 | M14: =IF('INGRESO DE DATOS'!$W$13=1,'Tablas Guyanas y Santa Elena'!F14,'Tablas Resto de Ecuador'!F14) -> 16448 | N14: =IF('INGRESO DE DATOS'!$W$13=1,'Tablas Guyanas y Santa Elena'!G14,'Tablas Resto de Ecuador'!G14) -> 11181 | O14: =IF('INGRESO DE DATOS'!$W$13=1,'Tablas Guyanas y Santa Elena'!H14,'Tablas Resto de Ecuador'!H14) -> 8831 | P14: 53561 | Q14: 33409 | R14: 22669 | S14: 16448 | T14: 11181 | U14: 8831
A15: 50 | B15: 50-54 | C15: 63729 | D15: 42730 | E15: 29690 | F15: 21438 | G15: 15734 | H15: 12439 | J15: =IF('INGRESO DE DATOS'!$W$13=1,'Tablas Guyanas y Santa Elena'!C15,'Tablas Resto de Ecuador'!C15) -> 63729 | K15: =IF('INGRESO DE DATOS'!$W$13=1,'Tablas Guyanas y Santa Elena'!D15,'Tablas Resto de Ecuador'!D15) -> 42730 | L15: =IF('INGRESO DE DATOS'!$W$13=1,'Tablas Guyanas y Santa Elena'!E15,'Tablas Resto de Ecuador'!E15) -> 29690 | M15: =IF('INGRESO DE DATOS'!$W$13=1,'Tablas Guyanas y Santa Elena'!F15,'Tablas Resto de Ecuador'!F15) -> 21438 | N15: =IF('INGRESO DE DATOS'!$W$13=1,'Tablas Guyanas y Santa Elena'!G15,'Tablas Resto de Ecuador'!G15) -> 15734 | O15: =IF('INGRESO DE DATOS'!$W$13=1,'Tablas Guyanas y Santa Elena'!H15,'Tablas Resto de Ecuador'!H15) -> 12439 | P15: 63729 | Q15: 42730 | R15: 29690 | S15: 21438 | T15: 15734 | U15: 12439
A16: 55 | B16: 55-59 | C16: 69390 | D16: 45443 | E16: 31593 | F16: 22796 | G16: 16746 | H16: 13233 | J16: =IF('INGRESO DE DATOS'!$W$13=1,'Tablas Guyanas y Santa Elena'!C16,'Tablas Resto de Ecuador'!C16) -> 69390 | K16: =IF('INGRESO DE DATOS'!$W$13=1,'Tablas Guyanas y Santa Elena'!D16,'Tablas Resto de Ecuador'!D16) -> 45443 | L16: =IF('INGRESO DE DATOS'!$W$13=1,'Tablas Guyanas y Santa Elena'!E16,'Tablas Resto de Ecuador'!E16) -> 31593 | M16: =IF('INGRESO DE DATOS'!$W$13=1,'Tablas Guyanas y Santa Elena'!F16,'Tablas Resto de Ecuador'!F16) -> 22796 | N16: =IF('INGRESO DE DATOS'!$W$13=1,'Tablas Guyanas y Santa Elena'!G16,'Tablas Resto de Ecuador'!G16) -> 16746 | O16: =IF('INGRESO DE DATOS'!$W$13=1,'Tablas Guyanas y Santa Elena'!H16,'Tablas Resto de Ecuador'!H16) -> 13233 | P16: 69390 | Q16: 45443 | R16: 31593 | S16: 22796 | T16: 16746 | U16: 13233
A17: 60 | B17: 60 | C17: 71322 | D17: 49491 | E17: 34455 | F17: 26211 | G17: 20140 | H17: 16409 | J17: =IF('INGRESO DE DATOS'!$W$13=1,'Tablas Guyanas y Santa Elena'!C17,'Tablas Resto de Ecuador'!C17) -> 71322 | K17: =IF('INGRESO DE DATOS'!$W$13=1,'Tablas Guyanas y Santa Elena'!D17,'Tablas Resto de Ecuador'!D17) -> 49491 | L17: =IF('INGRESO DE DATOS'!$W$13=1,'Tablas Guyanas y Santa Elena'!E17,'Tablas Resto de Ecuador'!E17) -> 34455 | M17: =IF('INGRESO DE DATOS'!$W$13=1,'Tablas Guyanas y Santa Elena'!F17,'Tablas Resto de Ecuador'!F17) -> 26211 | N17: =IF('INGRESO DE DATOS'!$W$13=1,'Tablas Guyanas y Santa Elena'!G17,'Tablas Resto de Ecuador'!G17) -> 20140 | O17: =IF('INGRESO DE DATOS'!$W$13=1,'Tablas Guyanas y Santa Elena'!H17,'Tablas Resto de Ecuador'!H17) -> 16409 | P17: 71322 | Q17: 49491 | R17: 34455 | S17: 26211 | T17: 20140 | U17: 16409
A18: 61 | B18: 61 | C18: 77401 | D18: 53168 | E18: 37015 | F18: 28132 | G18: 21635 | H18: 17612 | J18: =IF('INGRESO DE DATOS'!$W$13=1,'Tablas Guyanas y Santa Elena'!C18,'Tablas Resto de Ecuador'!C18) -> 77401 | K18: =IF('INGRESO DE DATOS'!$W$13=1,'Tablas Guyanas y Santa Elena'!D18,'Tablas Resto de Ecuador'!D18) -> 53168 | L18: =IF('INGRESO DE DATOS'!$W$13=1,'Tablas Guyanas y Santa Elena'!E18,'Tablas Resto de Ecuador'!E18) -> 37015 | M18: =IF('INGRESO DE DATOS'!$W$13=1,'Tablas Guyanas y Santa Elena'!F18,'Tablas Resto de Ecuador'!F18) -> 28132 | N18: =IF('INGRESO DE DATOS'!$W$13=1,'Tablas Guyanas y Santa Elena'!G18,'Tablas Resto de Ecuador'!G18) -> 21635 | O18: =IF('INGRESO DE DATOS'!$W$13=1,'Tablas Guyanas y Santa Elena'!H18,'Tablas Resto de Ecuador'!H18) -> 17612 | P18: 77401 | Q18: 53168 | R18: 37015 | S18: 28132 | T18: 21635 | U18: 17612
A19: 62 | B19: 62 | C19: 85147 | D19: 58197 | E19: 40513 | F19: 30806 | G19: 23668 | H19: 19275 | J19: =IF('INGRESO DE DATOS'!$W$13=1,'Tablas Guyanas y Santa Elena'!C19,'Tablas Resto de Ecuador'!C19) -> 85147 | K19: =IF('INGRESO DE DATOS'!$W$13=1,'Tablas Guyanas y Santa Elena'!D19,'Tablas Resto de Ecuador'!D19) -> 58197 | L19: =IF('INGRESO DE DATOS'!$W$13=1,'Tablas Guyanas y Santa Elena'!E19,'Tablas Resto de Ecuador'!E19) -> 40513 | M19: =IF('INGRESO DE DATOS'!$W$13=1,'Tablas Guyanas y Santa Elena'!F19,'Tablas Resto de Ecuador'!F19) -> 30806 | N19: =IF('INGRESO DE DATOS'!$W$13=1,'Tablas Guyanas y Santa Elena'!G19,'Tablas Resto de Ecuador'!G19) -> 23668 | O19: =IF('INGRESO DE DATOS'!$W$13=1,'Tablas Guyanas y Santa Elena'!H19,'Tablas Resto de Ecuador'!H19) -> 19275 | P19: 85147 | Q19: 58197 | R19: 40513 | S19: 30806 | T19: 23668 | U19: 19275
A20: 63 | B20: 63 | C20: 93920 | D20: 61868 | E20: 43068 | F20: 32735 | G20: 25165 | H20: 20487 | J20: =IF('INGRESO DE DATOS'!$W$13=1,'Tablas Guyanas y Santa Elena'!C20,'Tablas Resto de Ecuador'!C20) -> 93920 | K20: =IF('INGRESO DE DATOS'!$W$13=1,'Tablas Guyanas y Santa Elena'!D20,'Tablas Resto de Ecuador'!D20) -> 61868 | L20: =IF('INGRESO DE DATOS'!$W$13=1,'Tablas Guyanas y Santa Elena'!E20,'Tablas Resto de Ecuador'!E20) -> 43068 | M20: =IF('INGRESO DE DATOS'!$W$13=1,'Tablas Guyanas y Santa Elena'!F20,'Tablas Resto de Ecuador'!F20) -> 32735 | N20: =IF('INGRESO DE DATOS'!$W$13=1,'Tablas Guyanas y Santa Elena'!G20,'Tablas Resto de Ecuador'!G20) -> 25165 | O20: =IF('INGRESO DE DATOS'!$W$13=1,'Tablas Guyanas y Santa Elena'!H20,'Tablas Resto de Ecuador'!H20) -> 20487 | P20: 93920 | Q20: 61868 | R20: 43068 | S20: 32735 | T20: 25165 | U20: 20487
A21: 64 | B21: 64 | C21: 103076 | D21: 66911 | E21: 46603 | F21: 35411 | G21: 27211 | H21: 22157 | J21: =IF('INGRESO DE DATOS'!$W$13=1,'Tablas Guyanas y Santa Elena'!C21,'Tablas Resto de Ecuador'!C21) -> 103076 | K21: =IF('INGRESO DE DATOS'!$W$13=1,'Tablas Guyanas y Santa Elena'!D21,'Tablas Resto de Ecuador'!D21) -> 66911 | L21: =IF('INGRESO DE DATOS'!$W$13=1,'Tablas Guyanas y Santa Elena'!E21,'Tablas Resto de Ecuador'!E21) -> 46603 | M21: =IF('INGRESO DE DATOS'!$W$13=1,'Tablas Guyanas y Santa Elena'!F21,'Tablas Resto de Ecuador'!F21) -> 35411 | N21: =IF('INGRESO DE DATOS'!$W$13=1,'Tablas Guyanas y Santa Elena'!G21,'Tablas Resto de Ecuador'!G21) -> 27211 | O21: =IF('INGRESO DE DATOS'!$W$13=1,'Tablas Guyanas y Santa Elena'!H21,'Tablas Resto de Ecuador'!H21) -> 22157 | P21: 103076 | Q21: 66911 | R21: 46603 | S21: 35411 | T21: 27211 | U21: 22157
A22: 65 | B22: 65 | C22: 111321 | D22: 82616 | E22: 60730 | F22: 44734 | G22: 36242 | H22: 31197 | J22: =IF('INGRESO DE DATOS'!$W$13=1,'Tablas Guyanas y Santa Elena'!C22,'Tablas Resto de Ecuador'!C22) -> 111321 | K22: =IF('INGRESO DE DATOS'!$W$13=1,'Tablas Guyanas y Santa Elena'!D22,'Tablas Resto de Ecuador'!D22) -> 82616 | L22: =IF('INGRESO DE DATOS'!$W$13=1,'Tablas Guyanas y Santa Elena'!E22,'Tablas Resto de Ecuador'!E22) -> 60730 | M22: =IF('INGRESO DE DATOS'!$W$13=1,'Tablas Guyanas y Santa Elena'!F22,'Tablas Resto de Ecuador'!F22) -> 44734 | N22: =IF('INGRESO DE DATOS'!$W$13=1,'Tablas Guyanas y Santa Elena'!G22,'Tablas Resto de Ecuador'!G22) -> 36242 | O22: =IF('INGRESO DE DATOS'!$W$13=1,'Tablas Guyanas y Santa Elena'!H22,'Tablas Resto de Ecuador'!H22) -> 31197 | P22: 111321 | Q22: 82616 | R22: 60730 | S22: 44734 | T22: 36242 | U22: 31197
A23: 66 | B23: 66 | C23: 116363 | D23: 89246 | E23: 66856 | F23: 51967 | G23: 42106 | H23: 36224 | J23: =IF('INGRESO DE DATOS'!$W$13=1,'Tablas Guyanas y Santa Elena'!C23,'Tablas Resto de Ecuador'!C23) -> 116363 | K23: =IF('INGRESO DE DATOS'!$W$13=1,'Tablas Guyanas y Santa Elena'!D23,'Tablas Resto de Ecuador'!D23) -> 89246 | L23: =IF('INGRESO DE DATOS'!$W$13=1,'Tablas Guyanas y Santa Elena'!E23,'Tablas Resto de Ecuador'!E23) -> 66856 | M23: =IF('INGRESO DE DATOS'!$W$13=1,'Tablas Guyanas y Santa Elena'!F23,'Tablas Resto de Ecuador'!F23) -> 51967 | N23: =IF('INGRESO DE DATOS'!$W$13=1,'Tablas Guyanas y Santa Elena'!G23,'Tablas Resto de Ecuador'!G23) -> 42106 | O23: =IF('INGRESO DE DATOS'!$W$13=1,'Tablas Guyanas y Santa Elena'!H23,'Tablas Resto de Ecuador'!H23) -> 36224 | P23: 116363 | Q23: 89246 | R23: 66856 | S23: 51967 | T23: 42106 | U23: 36224
A24: 67 | B24: 67 | C24: 127056 | D24: 95996 | E24: 71543 | F24: 56743 | G24: 45972 | H24: 39550 | J24: =IF('INGRESO DE DATOS'!$W$13=1,'Tablas Guyanas y Santa Elena'!C24,'Tablas Resto de Ecuador'!C24) -> 127056 | K24: =IF('INGRESO DE DATOS'!$W$13=1,'Tablas Guyanas y Santa Elena'!D24,'Tablas Resto de Ecuador'!D24) -> 95996 | L24: =IF('INGRESO DE DATOS'!$W$13=1,'Tablas Guyanas y Santa Elena'!E24,'Tablas Resto de Ecuador'!E24) -> 71543 | M24: =IF('INGRESO DE DATOS'!$W$13=1,'Tablas Guyanas y Santa Elena'!F24,'Tablas Resto de Ecuador'!F24) -> 56743 | N24: =IF('INGRESO DE DATOS'!$W$13=1,'Tablas Guyanas y Santa Elena'!G24,'Tablas Resto de Ecuador'!G24) -> 45972 | O24: =IF('INGRESO DE DATOS'!$W$13=1,'Tablas Guyanas y Santa Elena'!H24,'Tablas Resto de Ecuador'!H24) -> 39550 | P24: 127056 | Q24: 95996 | R24: 71543 | S24: 56743 | T24: 45972 | U24: 39550
A25: 68 | B25: 68 | C25: 137763 | D25: 102909 | E25: 76319 | F25: 60959 | G25: 50897 | H25: 43794 | J25: =IF('INGRESO DE DATOS'!$W$13=1,'Tablas Guyanas y Santa Elena'!C25,'Tablas Resto de Ecuador'!C25) -> 137763 | K25: =IF('INGRESO DE DATOS'!$W$13=1,'Tablas Guyanas y Santa Elena'!D25,'Tablas Resto de Ecuador'!D25) -> 102909 | L25: =IF('INGRESO DE DATOS'!$W$13=1,'Tablas Guyanas y Santa Elena'!E25,'Tablas Resto de Ecuador'!E25) -> 76319 | M25: =IF('INGRESO DE DATOS'!$W$13=1,'Tablas Guyanas y Santa Elena'!F25,'Tablas Resto de Ecuador'!F25) -> 60959 | N25: =IF('INGRESO DE DATOS'!$W$13=1,'Tablas Guyanas y Santa Elena'!G25,'Tablas Resto de Ecuador'!G25) -> 50897 | O25: =IF('INGRESO DE DATOS'!$W$13=1,'Tablas Guyanas y Santa Elena'!H25,'Tablas Resto de Ecuador'!H25) -> 43794 | P25: 137763 | Q25: 102909 | R25: 76319 | S25: 60959 | T25: 50897 | U25: 43794
A26: 69 | B26: 69 | C26: 146981 | D26: 110024 | E26: 81222 | F26: 65159 | G26: 55984 | H26: 48170 | J26: =IF('INGRESO DE DATOS'!$W$13=1,'Tablas Guyanas y Santa Elena'!C26,'Tablas Resto de Ecuador'!C26) -> 146981 | K26: =IF('INGRESO DE DATOS'!$W$13=1,'Tablas Guyanas y Santa Elena'!D26,'Tablas Resto de Ecuador'!D26) -> 110024 | L26: =IF('INGRESO DE DATOS'!$W$13=1,'Tablas Guyanas y Santa Elena'!E26,'Tablas Resto de Ecuador'!E26) -> 81222 | M26: =IF('INGRESO DE DATOS'!$W$13=1,'Tablas Guyanas y Santa Elena'!F26,'Tablas Resto de Ecuador'!F26) -> 65159 | N26: =IF('INGRESO DE DATOS'!$W$13=1,'Tablas Guyanas y Santa Elena'!G26,'Tablas Resto de Ecuador'!G26) -> 55984 | O26: =IF('INGRESO DE DATOS'!$W$13=1,'Tablas Guyanas y Santa Elena'!H26,'Tablas Resto de Ecuador'!H26) -> 48170 | P26: 146981 | Q26: 110024 | R26: 81222 | S26: 65159 | T26: 55984 | U26: 48170
A27: 70 | B27: 70 | C27: 156864 | D27: 117383 | E27: 86292 | F27: 69492 | G27: 62686 | H27: 53209 | J27: =IF('INGRESO DE DATOS'!$W$13=1,'Tablas Guyanas y Santa Elena'!C27,'Tablas Resto de Ecuador'!C27) -> 156864 | K27: =IF('INGRESO DE DATOS'!$W$13=1,'Tablas Guyanas y Santa Elena'!D27,'Tablas Resto de Ecuador'!D27) -> 117383 | L27: =IF('INGRESO DE DATOS'!$W$13=1,'Tablas Guyanas y Santa Elena'!E27,'Tablas Resto de Ecuador'!E27) -> 86292 | M27: =IF('INGRESO DE DATOS'!$W$13=1,'Tablas Guyanas y Santa Elena'!F27,'Tablas Resto de Ecuador'!F27) -> 69492 | N27: =IF('INGRESO DE DATOS'!$W$13=1,'Tablas Guyanas y Santa Elena'!G27,'Tablas Resto de Ecuador'!G27) -> 62686 | O27: =IF('INGRESO DE DATOS'!$W$13=1,'Tablas Guyanas y Santa Elena'!H27,'Tablas Resto de Ecuador'!H27) -> 53209 | P27: 156864 | Q27: 117383 | R27: 86292 | S27: 69492 | T27: 62686 | U27: 53209
A28: 71 | B28: 71 | C28: 167620 | D28: 125073 | E28: 91584 | F28: 74014 | G28: 67244 | H28: 56776 | J28: =IF('INGRESO DE DATOS'!$W$13=1,'Tablas Guyanas y Santa Elena'!C28,'Tablas Resto de Ecuador'!C28) -> 167620 | K28: =IF('INGRESO DE DATOS'!$W$13=1,'Tablas Guyanas y Santa Elena'!D28,'Tablas Resto de Ecuador'!D28) -> 125073 | L28: =IF('INGRESO DE DATOS'!$W$13=1,'Tablas Guyanas y Santa Elena'!E28,'Tablas Resto de Ecuador'!E28) -> 91584 | M28: =IF('INGRESO DE DATOS'!$W$13=1,'Tablas Guyanas y Santa Elena'!F28,'Tablas Resto de Ecuador'!F28) -> 74014 | N28: =IF('INGRESO DE DATOS'!$W$13=1,'Tablas Guyanas y Santa Elena'!G28,'Tablas Resto de Ecuador'!G28) -> 67244 | O28: =IF('INGRESO DE DATOS'!$W$13=1,'Tablas Guyanas y Santa Elena'!H28,'Tablas Resto de Ecuador'!H28) -> 56776 | P28: 167620 | Q28: 125073 | R28: 91584 | S28: 74014 | T28: 67244 | U28: 56776
A29: 72 | B29: 72 | C29: 179108 | D29: 133066 | E29: 97073 | F29: 78737 | G29: 69688 | H29: 60516 | J29: =IF('INGRESO DE DATOS'!$W$13=1,'Tablas Guyanas y Santa Elena'!C29,'Tablas Resto de Ecuador'!C29) -> 179108 | K29: =IF('INGRESO DE DATOS'!$W$13=1,'Tablas Guyanas y Santa Elena'!D29,'Tablas Resto de Ecuador'!D29) -> 133066 | L29: =IF('INGRESO DE DATOS'!$W$13=1,'Tablas Guyanas y Santa Elena'!E29,'Tablas Resto de Ecuador'!E29) -> 97073 | M29: =IF('INGRESO DE DATOS'!$W$13=1,'Tablas Guyanas y Santa Elena'!F29,'Tablas Resto de Ecuador'!F29) -> 78737 | N29: =IF('INGRESO DE DATOS'!$W$13=1,'Tablas Guyanas y Santa Elena'!G29,'Tablas Resto de Ecuador'!G29) -> 69688 | O29: =IF('INGRESO DE DATOS'!$W$13=1,'Tablas Guyanas y Santa Elena'!H29,'Tablas Resto de Ecuador'!H29) -> 60516 | P29: 179108 | Q29: 133066 | R29: 97073 | S29: 78737 | T29: 69688 | U29: 60516
A30: 73 | B30: 73 | C30: 191015 | D30: 141233 | E30: 102674 | F30: 83574 | G30: 72253 | H30: 62735 | J30: =IF('INGRESO DE DATOS'!$W$13=1,'Tablas Guyanas y Santa Elena'!C30,'Tablas Resto de Ecuador'!C30) -> 191015 | K30: =IF('INGRESO DE DATOS'!$W$13=1,'Tablas Guyanas y Santa Elena'!D30,'Tablas Resto de Ecuador'!D30) -> 141233 | L30: =IF('INGRESO DE DATOS'!$W$13=1,'Tablas Guyanas y Santa Elena'!E30,'Tablas Resto de Ecuador'!E30) -> 102674 | M30: =IF('INGRESO DE DATOS'!$W$13=1,'Tablas Guyanas y Santa Elena'!F30,'Tablas Resto de Ecuador'!F30) -> 83574 | N30: =IF('INGRESO DE DATOS'!$W$13=1,'Tablas Guyanas y Santa Elena'!G30,'Tablas Resto de Ecuador'!G30) -> 72253 | O30: =IF('INGRESO DE DATOS'!$W$13=1,'Tablas Guyanas y Santa Elena'!H30,'Tablas Resto de Ecuador'!H30) -> 62735 | P30: 191015 | Q30: 141233 | R30: 102674 | S30: 83574 | T30: 72253 | U30: 62735
A31: 74 | B31: 74 | C31: 203026 | D31: 149442 | E31: 108303 | F31: 88440 | G31: 73519 | H31: 63846 | J31: =IF('INGRESO DE DATOS'!$W$13=1,'Tablas Guyanas y Santa Elena'!C31,'Tablas Resto de Ecuador'!C31) -> 203026 | K31: =IF('INGRESO DE DATOS'!$W$13=1,'Tablas Guyanas y Santa Elena'!D31,'Tablas Resto de Ecuador'!D31) -> 149442 | L31: =IF('INGRESO DE DATOS'!$W$13=1,'Tablas Guyanas y Santa Elena'!E31,'Tablas Resto de Ecuador'!E31) -> 108303 | M31: =IF('INGRESO DE DATOS'!$W$13=1,'Tablas Guyanas y Santa Elena'!F31,'Tablas Resto de Ecuador'!F31) -> 88440 | N31: =IF('INGRESO DE DATOS'!$W$13=1,'Tablas Guyanas y Santa Elena'!G31,'Tablas Resto de Ecuador'!G31) -> 73519 | O31: =IF('INGRESO DE DATOS'!$W$13=1,'Tablas Guyanas y Santa Elena'!H31,'Tablas Resto de Ecuador'!H31) -> 63846 | P31: 203026 | Q31: 149442 | R31: 108303 | S31: 88440 | T31: 73519 | U31: 63846
A32: 75 | B32: 75+ | C32: 214828 | D32: 157566 | E32: 113876 | F32: 93248 | G32: 76722 | H32: 66623 | J32: =IF('INGRESO DE DATOS'!$W$13=1,'Tablas Guyanas y Santa Elena'!C32,'Tablas Resto de Ecuador'!C32) -> 214828 | K32: =IF('INGRESO DE DATOS'!$W$13=1,'Tablas Guyanas y Santa Elena'!D32,'Tablas Resto de Ecuador'!D32) -> 157566 | L32: =IF('INGRESO DE DATOS'!$W$13=1,'Tablas Guyanas y Santa Elena'!E32,'Tablas Resto de Ecuador'!E32) -> 113876 | M32: =IF('INGRESO DE DATOS'!$W$13=1,'Tablas Guyanas y Santa Elena'!F32,'Tablas Resto de Ecuador'!F32) -> 93248 | N32: =IF('INGRESO DE DATOS'!$W$13=1,'Tablas Guyanas y Santa Elena'!G32,'Tablas Resto de Ecuador'!G32) -> 76722 | O32: =IF('INGRESO DE DATOS'!$W$13=1,'Tablas Guyanas y Santa Elena'!H32,'Tablas Resto de Ecuador'!H32) -> 66623 | P32: 214828 | Q32: 157566 | R32: 113876 | S32: 93248 | T32: 76722 | U32: 66623
A33: 1 | B33: 1 Child | C33: 6954 | D33: 4549 | E33: 3111 | F33: 2376 | G33: 2304 | H33: 2005 | J33: =IF('INGRESO DE DATOS'!$W$13=1,'Tablas Guyanas y Santa Elena'!C33,'Tablas Resto de Ecuador'!C33) -> 6954 | K33: =IF('INGRESO DE DATOS'!$W$13=1,'Tablas Guyanas y Santa Elena'!D33,'Tablas Resto de Ecuador'!D33) -> 4549 | L33: =IF('INGRESO DE DATOS'!$W$13=1,'Tablas Guyanas y Santa Elena'!E33,'Tablas Resto de Ecuador'!E33) -> 3111 | M33: =IF('INGRESO DE DATOS'!$W$13=1,'Tablas Guyanas y Santa Elena'!F33,'Tablas Resto de Ecuador'!F33) -> 2376 | N33: =IF('INGRESO DE DATOS'!$W$13=1,'Tablas Guyanas y Santa Elena'!G33,'Tablas Resto de Ecuador'!G33) -> 2304 | O33: =IF('INGRESO DE DATOS'!$W$13=1,'Tablas Guyanas y Santa Elena'!H33,'Tablas Resto de Ecuador'!H33) -> 2005 | P33: 6954 | Q33: =(K33)*$L$2 -> 4549 | R33: =(L33)*$L$2 -> 3111 | S33: 2376 | T33: 2304 | U33: 2005
A34: 2 | B34: 2 Children | C34: 11533 | D34: 7606 | E34: 5355 | F34: 4104 | G34: 3978 | H34: 3436 | J34: =IF('INGRESO DE DATOS'!$W$13=1,'Tablas Guyanas y Santa Elena'!C34,'Tablas Resto de Ecuador'!C34) -> 11533 | K34: =IF('INGRESO DE DATOS'!$W$13=1,'Tablas Guyanas y Santa Elena'!D34,'Tablas Resto de Ecuador'!D34) -> 7606 | L34: =IF('INGRESO DE DATOS'!$W$13=1,'Tablas Guyanas y Santa Elena'!E34,'Tablas Resto de Ecuador'!E34) -> 5355 | M34: =IF('INGRESO DE DATOS'!$W$13=1,'Tablas Guyanas y Santa Elena'!F34,'Tablas Resto de Ecuador'!F34) -> 4104 | N34: =IF('INGRESO DE DATOS'!$W$13=1,'Tablas Guyanas y Santa Elena'!G34,'Tablas Resto de Ecuador'!G34) -> 3978 | O34: =IF('INGRESO DE DATOS'!$W$13=1,'Tablas Guyanas y Santa Elena'!H34,'Tablas Resto de Ecuador'!H34) -> 3436 | P34: 11533 | Q34: =(K34)*$L$2 -> 7606 | R34: =(L34)*$L$2 -> 5355 | S34: =(M34)*$L$2 -> 4104 | T34: =(N34)*$L$2 -> 3978 | U34: =(O34)*$L$2 -> 3436
A35: 3 | B35: 3+ Children | C35: 15658 | D35: =Q35*$V$2 -> 10421 | E35: 7437 | F35: 5726 | G35: 5533 | H35: 4763 | J35: =IF('INGRESO DE DATOS'!$W$13=1,'Tablas Guyanas y Santa Elena'!C35,'Tablas Resto de Ecuador'!C35) -> 15658 | K35: =IF('INGRESO DE DATOS'!$W$13=1,'Tablas Guyanas y Santa Elena'!D35,'Tablas Resto de Ecuador'!D35) -> 10421 | L35: =IF('INGRESO DE DATOS'!$W$13=1,'Tablas Guyanas y Santa Elena'!E35,'Tablas Resto de Ecuador'!E35) -> 7437 | M35: =IF('INGRESO DE DATOS'!$W$13=1,'Tablas Guyanas y Santa Elena'!F35,'Tablas Resto de Ecuador'!F35) -> 5726 | N35: =IF('INGRESO DE DATOS'!$W$13=1,'Tablas Guyanas y Santa Elena'!G35,'Tablas Resto de Ecuador'!G35) -> 5533 | O35: =IF('INGRESO DE DATOS'!$W$13=1,'Tablas Guyanas y Santa Elena'!H35,'Tablas Resto de Ecuador'!H35) -> 4763 | P35: 15658 | Q35: 10421 | R35: 7437 | S35: 5726 | T35: 5533 | U35: 4763
A36: 1 | B36: Rider Comp. Maternidad | C36: =J36*$V$2 -> 0 | D36: =K36*$V$2 -> 0 | E36: =L36*$V$2 -> 0 | F36: 225 | G36: 225 | H36: 225 | J36: =IF('INGRESO DE DATOS'!$W$13=1,'Tablas Guyanas y Santa Elena'!C36,'Tablas Resto de Ecuador'!C36) -> 0 | K36: 0 | L36: 0 | M36: 225 | N36: 225 | O36: 225
A37: 1 | B37: Transplante de organos | C37: =J37*$V$2 -> 0 | D37: =K37*$V$2 -> 0 | E37: =L37*$V$2 -> 0 | F37: =M37*$V$2 -> 0 | G37: =N37*$V$2 -> 0 | H37: =O37*$V$2 -> 0 | J37: =IF('INGRESO DE DATOS'!$W$13=1,'Tablas Guyanas y Santa Elena'!C37,'Tablas Resto de Ecuador'!C37) -> 0 | K37: 0 | L37: 0 | M37: 0 | N37: 0 | O37: 0
C38: 0 | D38: 0 | E38: 0 | F38: 0 | G38: 0 | H38: 0 | J38: =IF('INGRESO DE DATOS'!$W$13=1,'Tablas Guyanas y Santa Elena'!C38,'Tablas Resto de Ecuador'!C38) -> 0
A41: TARIFAS SEMESTRALES
A42: EDAD
C43: DW1 | D43: DW2 | E43: DW3 | F43: DW4 | G43: DW5 | H43: DW6
A44: 18 | B44: 18-24 | C44: =$G$2*C9 -> 16892.16 | D44: 11207.91 | E44: 6468.12 | F44: 5086.94 | G44: 3273.81 | H44: 2589.05
A45: 25 | B45: 25-29 | C45: =$G$2*C10 -> 18992.55 | D45: 11751.16 | E45: 8008.3 | F45: 5629.66 | G45: 3618.84 | H45: 2859.35
A46: 30 | B46: 30-34 | C46: =$G$2*C11 -> 19666.18 | D46: 12223.92 | E46: 8791.11 | F46: 6293.22 | G46: 4321.62 | H46: 3419.56
A47: 35 | B47: 35-39 | C47: =$G$2*C12 -> 21979.1 | D47: 13679.83 | E47: 9833.09 | F47: 7045.29 | G47: 4835.72 | H47: 3827.13
A48: 40 | B48: 40-44 | C48: =$G$2*C13 -> 25432.58 | D48: 15844.35 | E48: 10747.87 | F48: 7810.61 | G48: 5306.89 | H48: 4196.01
A49: 45 | B49: 45-49 | C49: =$G$2*C14 -> 28387.33 | D49: 17706.77 | E49: 12014.57 | F49: 8717.44 | G49: 5925.93 | H49: 4680.43
A50: 50 | B50: 50-54 | C50: =$G$2*C15 -> 33776.37 | D50: 22646.9 | E50: 15735.7 | F50: 11362.14 | G50: 8339.02 | H50: 6592.67
A51: 55 | B51: 55-59 | C51: =$G$2*C16 -> 36776.7 | D51: 24084.79 | E51: 16744.29 | F51: 12081.88 | G51: 8875.38 | H51: 7013.49
A52: 60 | B52: 60 | C52: =$G$2*C17 -> 37800.66 | D52: 26230.23 | E52: 18261.15 | F52: 13891.83 | G52: 10674.2 | H52: 8696.77
A53: 61 | B53: 61 | C53: =$G$2*C18 -> 41022.53 | D53: 28179.04 | E53: 19617.95 | F53: 14909.96 | G53: 11466.55 | H53: 9334.36
A54: 62 | B54: 62 | C54: =$G$2*C19 -> 45127.91 | D54: =$G$2*D19 -> 30844.41 | E54: 21471.89 | F54: 16327.18 | G54: 12544.04 | H54: 10215.75
A55: 63 | B55: 63 | C55: =$G$2*C20 -> 49777.6 | D55: 32790.04 | E55: 22826.04 | F55: 17349.55 | G55: 13337.45 | H55: 10858.11
A56: 64 | B56: 64 | C56: =$G$2*C21 -> 54630.28 | D56: 35462.83 | E56: 24699.59 | F56: 18767.83 | G56: 14421.83 | H56: 11743.21
A57: 65 | B57: 65 | C57: =$G$2*C22 -> 59000.13 | D57: 43786.48 | E57: 32186.9 | F57: 23709.02 | G57: 19208.26 | H57: 16534.41
A58: 66 | B58: 66 | C58: =$G$2*C23 -> 61672.39 | D58: 47300.38 | E58: 35433.68 | F58: 27542.51 | G58: 22316.18 | H58: 19198.72
A59: 67 | B59: 67 | C59: =$G$2*C24 -> 67339.68 | D59: 50877.88 | E59: 37917.79 | F59: 30073.79 | G59: 24365.16 | H59: 20961.5
A60: 68 | B60: 68 | C60: =$G$2*C25 -> 73014.39 | D60: 54541.77 | E60: 40449.07 | F60: 32308.27 | G60: 26975.41 | H60: 23210.82
A61: 69 | B61: 69 | C61: =$G$2*C26 -> 77899.93 | D61: 58312.72 | E61: 43047.66 | F61: 34534.27 | G61: 29671.52 | H61: 25530.1
A62: 70 | B62: 70 | C62: =$G$2*C27 -> 83137.92 | D62: 62212.99 | E62: 45734.76 | F62: 36830.76 | G62: 33223.58 | H62: 28200.77
A63: 71 | B63: 71 | C63: =$G$2*C28 -> 88838.6 | D63: 66288.69 | E63: 48539.52 | F63: 39227.42 | G63: 35639.32 | H63: 30091.28
A64: 72 | B64: 72 | C64: =$G$2*C29 -> 94927.24 | D64: =$G$2*D29 -> 70524.98 | E64: 51448.69 | F64: 41730.61 | G64: 36934.64 | H64: 32073.48
A65: 73 | B65: 73 | C65: =$G$2*C30 -> 101237.95 | D65: 74853.49 | E65: 54417.22 | F65: 44294.22 | G65: 38294.09 | H65: 33249.55
A66: 74 | B66: 74 | C66: =$G$2*C31 -> 107603.78 | D66: 79204.26 | E66: 57400.59 | F66: 46873.2 | G66: 38965.07 | H66: 33838.38
A67: 75 | B67: 75+ | C67: =$G$2*C32 -> 113858.84 | D67: 83509.98 | E67: 60354.28 | F67: 49421.44 | G67: 40662.66 | H67: 35310.19
A68: 1 | B68: 1 Child | C68: =$G$2*C33 -> 3685.62 | D68: 2410.97 | E68: 1648.83 | F68: 1259.28 | G68: 1221.12 | H68: 1062.65
A69: 2 | B69: 2 Children | C69: =$G$2*C34 -> 6112.49 | D69: 4031.18 | E69: 2838.15 | F69: 2175.12 | G69: 2108.34 | H69: 1821.08
A70: 3 | B70: 3+ Children | C70: =$G$2*C35 -> 8298.74 | D70: 5523.13 | E70: 3941.61 | F70: 3034.78 | G70: 2932.49 | H70: 2524.39
A71: 1 | B71: Rider Comp. Maternidad | C71: =$G$2*C36 -> 0 | D71: =+D36*$G$2 -> 0 | E71: 0 | F71: 119.25 | G71: 119.25 | H71: 119.25
A72: 1 | B72: Transplante de organos | C72: =$G$2*C37 -> 0 | D72: 0 | E72: 0 | F72: 0 | G72: 0 | H72: 0
A78: BUPA DIAMOND CARE (LATIN AMERICA) | K78: ORIGINAL RATES | Q78: DISCOUNTS APPLIED
A79: TARIFAS ANUALES
A80: EDAD
C81: DW1 | D81: DW2 | E81: DW3 | F81: DW4 | G81: DW5 | H81: DW6
A82: 18 | B82: 18-24 | C82: =P82*$V$2 -> 26963 | D82: =Q82*$V$2 -> 16608 | E82: =R82*$V$2 -> 10967 | F82: 7471 | G82: 4764 | H82: 3739 | J82: =IF('INGRESO DE DATOS'!$W$13=1,'Tablas Guyanas y Santa Elena'!C79,'Tablas Resto de Ecuador'!C79) -> 26963 | K82: =IF('INGRESO DE DATOS'!$W$13=1,'Tablas Guyanas y Santa Elena'!D79,'Tablas Resto de Ecuador'!D79) -> 16608 | L82: =IF('INGRESO DE DATOS'!$W$13=1,'Tablas Guyanas y Santa Elena'!E79,'Tablas Resto de Ecuador'!E79) -> 10967 | M82: =IF('INGRESO DE DATOS'!$W$13=1,'Tablas Guyanas y Santa Elena'!F79,'Tablas Resto de Ecuador'!F79) -> 7471 | N82: =IF('INGRESO DE DATOS'!$W$13=1,'Tablas Guyanas y Santa Elena'!G79,'Tablas Resto de Ecuador'!G79) -> 4764 | O82: =IF('INGRESO DE DATOS'!$W$13=1,'Tablas Guyanas y Santa Elena'!H79,'Tablas Resto de Ecuador'!H79) -> 3739 | P82: =(J82-50)*$L$2+50 -> 26963 | Q82: =(K82-50)*$L$2+50 -> 16608 | R82: =(L82-50)*$L$2+50 -> 10967 | S82: =(M82-50)*$L$2+50 -> 7471 | T82: =(N82-50)*$L$2+50 -> 4764 | U82: =(O82-50)*$L$2+50 -> 3739
A83: 25 | B83: 25-29 | C83: =P83*$V$2 -> 28282 | D83: =Q83*$V$2 -> 17419 | E83: =R83*$V$2 -> 12134 | F83: =S83*$V$2 -> 8284 | G83: =T83*$V$2 -> 5287 | H83: =U83*$V$2 -> 4160 | J83: =IF('INGRESO DE DATOS'!$W$13=1,'Tablas Guyanas y Santa Elena'!C80,'Tablas Resto de Ecuador'!C80) -> 28282 | K83: =IF('INGRESO DE DATOS'!$W$13=1,'Tablas Guyanas y Santa Elena'!D80,'Tablas Resto de Ecuador'!D80) -> 17419 | L83: =IF('INGRESO DE DATOS'!$W$13=1,'Tablas Guyanas y Santa Elena'!E80,'Tablas Resto de Ecuador'!E80) -> 12134 | M83: =IF('INGRESO DE DATOS'!$W$13=1,'Tablas Guyanas y Santa Elena'!F80,'Tablas Resto de Ecuador'!F80) -> 8284 | N83: =IF('INGRESO DE DATOS'!$W$13=1,'Tablas Guyanas y Santa Elena'!G80,'Tablas Resto de Ecuador'!G80) -> 5287 | O83: =IF('INGRESO DE DATOS'!$W$13=1,'Tablas Guyanas y Santa Elena'!H80,'Tablas Resto de Ecuador'!H80) -> 4160 | P83: =(J83-50)*$L$2+50 -> 28282 | Q83: =(K83-50)*$L$2+50 -> 17419 | R83: 12134 | S83: 8284 | T83: 5287 | U83: 4160
A84: 30 | B84: 30-34 | C84: 29250 | D84: 18138 | E84: 13007 | F84: 9298 | G84: 6340 | H84: 4990 | J84: =IF('INGRESO DE DATOS'!$W$13=1,'Tablas Guyanas y Santa Elena'!C81,'Tablas Resto de Ecuador'!C81) -> 29250 | K84: =IF('INGRESO DE DATOS'!$W$13=1,'Tablas Guyanas y Santa Elena'!D81,'Tablas Resto de Ecuador'!D81) -> 18138 | L84: =IF('INGRESO DE DATOS'!$W$13=1,'Tablas Guyanas y Santa Elena'!E81,'Tablas Resto de Ecuador'!E81) -> 13007 | M84: =IF('INGRESO DE DATOS'!$W$13=1,'Tablas Guyanas y Santa Elena'!F81,'Tablas Resto de Ecuador'!F81) -> 9298 | N84: =IF('INGRESO DE DATOS'!$W$13=1,'Tablas Guyanas y Santa Elena'!G81,'Tablas Resto de Ecuador'!G81) -> 6340 | O84: =IF('INGRESO DE DATOS'!$W$13=1,'Tablas Guyanas y Santa Elena'!H81,'Tablas Resto de Ecuador'!H81) -> 4990 | P84: 29250 | Q84: 18138 | R84: 13007 | S84: 9298 | T84: 6340 | U84: 4990
A85: 35 | B85: 35-39 | C85: 32709 | D85: 20303 | E85: 14574 | F85: 10400 | G85: 7104 | H85: 5594 | J85: =IF('INGRESO DE DATOS'!$W$13=1,'Tablas Guyanas y Santa Elena'!C82,'Tablas Resto de Ecuador'!C82) -> 32709 | K85: =IF('INGRESO DE DATOS'!$W$13=1,'Tablas Guyanas y Santa Elena'!D82,'Tablas Resto de Ecuador'!D82) -> 20303 | L85: =IF('INGRESO DE DATOS'!$W$13=1,'Tablas Guyanas y Santa Elena'!E82,'Tablas Resto de Ecuador'!E82) -> 14574 | M85: =IF('INGRESO DE DATOS'!$W$13=1,'Tablas Guyanas y Santa Elena'!F82,'Tablas Resto de Ecuador'!F82) -> 10400 | N85: =IF('INGRESO DE DATOS'!$W$13=1,'Tablas Guyanas y Santa Elena'!G82,'Tablas Resto de Ecuador'!G82) -> 7104 | O85: =IF('INGRESO DE DATOS'!$W$13=1,'Tablas Guyanas y Santa Elena'!H82,'Tablas Resto de Ecuador'!H82) -> 5594 | P85: 32709 | Q85: 20303 | R85: 14574 | S85: 10400 | T85: 7104 | U85: 5594
A86: 40 | B86: 40-44 | C86: 37872 | D86: 23542 | E86: 15925 | F86: 11558 | G86: 7811 | H86: 6159 | J86: =IF('INGRESO DE DATOS'!$W$13=1,'Tablas Guyanas y Santa Elena'!C83,'Tablas Resto de Ecuador'!C83) -> 37872 | K86: =IF('INGRESO DE DATOS'!$W$13=1,'Tablas Guyanas y Santa Elena'!D83,'Tablas Resto de Ecuador'!D83) -> 23542 | L86: =IF('INGRESO DE DATOS'!$W$13=1,'Tablas Guyanas y Santa Elena'!E83,'Tablas Resto de Ecuador'!E83) -> 15925 | M86: =IF('INGRESO DE DATOS'!$W$13=1,'Tablas Guyanas y Santa Elena'!F83,'Tablas Resto de Ecuador'!F83) -> 11558 | N86: =IF('INGRESO DE DATOS'!$W$13=1,'Tablas Guyanas y Santa Elena'!G83,'Tablas Resto de Ecuador'!G83) -> 7811 | O86: =IF('INGRESO DE DATOS'!$W$13=1,'Tablas Guyanas y Santa Elena'!H83,'Tablas Resto de Ecuador'!H83) -> 6159 | P86: 37872 | Q86: 23542 | R86: 15925 | S86: 11558 | T86: 7811 | U86: 6159
A87: 45 | B87: 45-49 | C87: 42285 | D87: 26327 | E87: 17820 | F87: 12931 | G87: 8737 | H87: 6883 | J87: =IF('INGRESO DE DATOS'!$W$13=1,'Tablas Guyanas y Santa Elena'!C84,'Tablas Resto de Ecuador'!C84) -> 42285 | K87: =IF('INGRESO DE DATOS'!$W$13=1,'Tablas Guyanas y Santa Elena'!D84,'Tablas Resto de Ecuador'!D84) -> 26327 | L87: =IF('INGRESO DE DATOS'!$W$13=1,'Tablas Guyanas y Santa Elena'!E84,'Tablas Resto de Ecuador'!E84) -> 17820 | M87: =IF('INGRESO DE DATOS'!$W$13=1,'Tablas Guyanas y Santa Elena'!F84,'Tablas Resto de Ecuador'!F84) -> 12931 | N87: =IF('INGRESO DE DATOS'!$W$13=1,'Tablas Guyanas y Santa Elena'!G84,'Tablas Resto de Ecuador'!G84) -> 8737 | O87: =IF('INGRESO DE DATOS'!$W$13=1,'Tablas Guyanas y Santa Elena'!H84,'Tablas Resto de Ecuador'!H84) -> 6883 | P87: 42285 | Q87: 26327 | R87: 17820 | S87: 12931 | T87: 8737 | U87: 6883
A88: 50 | B88: 50-54 | C88: 54963 | D88: 33703 | E88: 23387 | F88: 16873 | G88: 12352 | H88: 9740 | J88: =IF('INGRESO DE DATOS'!$W$13=1,'Tablas Guyanas y Santa Elena'!C85,'Tablas Resto de Ecuador'!C85) -> 54963 | K88: =IF('INGRESO DE DATOS'!$W$13=1,'Tablas Guyanas y Santa Elena'!D85,'Tablas Resto de Ecuador'!D85) -> 33703 | L88: =IF('INGRESO DE DATOS'!$W$13=1,'Tablas Guyanas y Santa Elena'!E85,'Tablas Resto de Ecuador'!E85) -> 23387 | M88: =IF('INGRESO DE DATOS'!$W$13=1,'Tablas Guyanas y Santa Elena'!F85,'Tablas Resto de Ecuador'!F85) -> 16873 | N88: =IF('INGRESO DE DATOS'!$W$13=1,'Tablas Guyanas y Santa Elena'!G85,'Tablas Resto de Ecuador'!G85) -> 12352 | O88: =IF('INGRESO DE DATOS'!$W$13=1,'Tablas Guyanas y Santa Elena'!H85,'Tablas Resto de Ecuador'!H85) -> 9740 | P88: 54963 | Q88: 33703 | R88: 23387 | S88: 16873 | T88: 12352 | U88: 9740
A89: 55 | B89: 55-59 | C89: 58464 | D89: 35845 | E89: 24895 | F89: 17937 | G89: 13145 | H89: 10368 | J89: =IF('INGRESO DE DATOS'!$W$13=1,'Tablas Guyanas y Santa Elena'!C86,'Tablas Resto de Ecuador'!C86) -> 58464 | K89: =IF('INGRESO DE DATOS'!$W$13=1,'Tablas Guyanas y Santa Elena'!D86,'Tablas Resto de Ecuador'!D86) -> 35845 | L89: =IF('INGRESO DE DATOS'!$W$13=1,'Tablas Guyanas y Santa Elena'!E86,'Tablas Resto de Ecuador'!E86) -> 24895 | M89: =IF('INGRESO DE DATOS'!$W$13=1,'Tablas Guyanas y Santa Elena'!F86,'Tablas Resto de Ecuador'!F86) -> 17937 | N89: =IF('INGRESO DE DATOS'!$W$13=1,'Tablas Guyanas y Santa Elena'!G86,'Tablas Resto de Ecuador'!G86) -> 13145 | O89: =IF('INGRESO DE DATOS'!$W$13=1,'Tablas Guyanas y Santa Elena'!H86,'Tablas Resto de Ecuador'!H86) -> 10368 | P89: 58464 | Q89: 35845 | R89: 24895 | S89: 17937 | T89: 13145 | U89: 10368
A90: 60 | B90: 60 | C90: 62187 | D90: 39059 | E90: 27157 | F90: 20640 | G90: 15846 | H90: 12879 | J90: =IF('INGRESO DE DATOS'!$W$13=1,'Tablas Guyanas y Santa Elena'!C87,'Tablas Resto de Ecuador'!C87) -> 62187 | K90: =IF('INGRESO DE DATOS'!$W$13=1,'Tablas Guyanas y Santa Elena'!D87,'Tablas Resto de Ecuador'!D87) -> 39059 | L90: =IF('INGRESO DE DATOS'!$W$13=1,'Tablas Guyanas y Santa Elena'!E87,'Tablas Resto de Ecuador'!E87) -> 27157 | M90: =IF('INGRESO DE DATOS'!$W$13=1,'Tablas Guyanas y Santa Elena'!F87,'Tablas Resto de Ecuador'!F87) -> 20640 | N90: =IF('INGRESO DE DATOS'!$W$13=1,'Tablas Guyanas y Santa Elena'!G87,'Tablas Resto de Ecuador'!G87) -> 15846 | O90: =IF('INGRESO DE DATOS'!$W$13=1,'Tablas Guyanas y Santa Elena'!H87,'Tablas Resto de Ecuador'!H87) -> 12879 | P90: 62187 | Q90: 39059 | R90: 27157 | S90: 20640 | T90: 15846 | U90: 12879
A91: 61 | B91: 61 | C91: 66796 | D91: 41978 | E91: 29179 | F91: 22166 | G91: 17031 | H91: 13826 | J91: =IF('INGRESO DE DATOS'!$W$13=1,'Tablas Guyanas y Santa Elena'!C88,'Tablas Resto de Ecuador'!C88) -> 66796 | K91: =IF('INGRESO DE DATOS'!$W$13=1,'Tablas Guyanas y Santa Elena'!D88,'Tablas Resto de Ecuador'!D88) -> 41978 | L91: =IF('INGRESO DE DATOS'!$W$13=1,'Tablas Guyanas y Santa Elena'!E88,'Tablas Resto de Ecuador'!E88) -> 29179 | M91: =IF('INGRESO DE DATOS'!$W$13=1,'Tablas Guyanas y Santa Elena'!F88,'Tablas Resto de Ecuador'!F88) -> 22166 | N91: =IF('INGRESO DE DATOS'!$W$13=1,'Tablas Guyanas y Santa Elena'!G88,'Tablas Resto de Ecuador'!G88) -> 17031 | O91: =IF('INGRESO DE DATOS'!$W$13=1,'Tablas Guyanas y Santa Elena'!H88,'Tablas Resto de Ecuador'!H88) -> 13826 | P91: 66796 | Q91: 41978 | R91: 29179 | S91: 22166 | T91: 17031 | U91: 13826
A92: 62 | B92: 62 | C92: 73073 | D92: 45963 | E92: 31967 | F92: 24294 | G92: 18648 | H92: 15144 | J92: =IF('INGRESO DE DATOS'!$W$13=1,'Tablas Guyanas y Santa Elena'!C89,'Tablas Resto de Ecuador'!C89) -> 73073 | K92: =IF('INGRESO DE DATOS'!$W$13=1,'Tablas Guyanas y Santa Elena'!D89,'Tablas Resto de Ecuador'!D89) -> 45963 | L92: =IF('INGRESO DE DATOS'!$W$13=1,'Tablas Guyanas y Santa Elena'!E89,'Tablas Resto de Ecuador'!E89) -> 31967 | M92: =IF('INGRESO DE DATOS'!$W$13=1,'Tablas Guyanas y Santa Elena'!F89,'Tablas Resto de Ecuador'!F89) -> 24294 | N92: =IF('INGRESO DE DATOS'!$W$13=1,'Tablas Guyanas y Santa Elena'!G89,'Tablas Resto de Ecuador'!G89) -> 18648 | O92: =IF('INGRESO DE DATOS'!$W$13=1,'Tablas Guyanas y Santa Elena'!H89,'Tablas Resto de Ecuador'!H89) -> 15144 | P92: 73073 | Q92: 45963 | R92: 31967 | S92: 24294 | T92: 18648 | U92: 15144
A93: 63 | B93: 63 | C93: 77677 | D93: 48860 | E93: 33985 | F93: 25821 | G93: 19828 | H93: 16108 | J93: =IF('INGRESO DE DATOS'!$W$13=1,'Tablas Guyanas y Santa Elena'!C90,'Tablas Resto de Ecuador'!C90) -> 77677 | K93: =IF('INGRESO DE DATOS'!$W$13=1,'Tablas Guyanas y Santa Elena'!D90,'Tablas Resto de Ecuador'!D90) -> 48860 | L93: =IF('INGRESO DE DATOS'!$W$13=1,'Tablas Guyanas y Santa Elena'!E90,'Tablas Resto de Ecuador'!E90) -> 33985 | M93: =IF('INGRESO DE DATOS'!$W$13=1,'Tablas Guyanas y Santa Elena'!F90,'Tablas Resto de Ecuador'!F90) -> 25821 | N93: =IF('INGRESO DE DATOS'!$W$13=1,'Tablas Guyanas y Santa Elena'!G90,'Tablas Resto de Ecuador'!G90) -> 19828 | O93: =IF('INGRESO DE DATOS'!$W$13=1,'Tablas Guyanas y Santa Elena'!H90,'Tablas Resto de Ecuador'!H90) -> 16108 | P93: 77677 | Q93: 48860 | R93: 33985 | S93: 25821 | T93: 19828 | U93: 16108
A94: 64 | B94: 64 | C94: 84009 | D94: 52845 | E94: 36782 | F94: 27944 | G94: 21436 | H94: 17438 | J94: =IF('INGRESO DE DATOS'!$W$13=1,'Tablas Guyanas y Santa Elena'!C91,'Tablas Resto de Ecuador'!C91) -> 84009 | K94: =IF('INGRESO DE DATOS'!$W$13=1,'Tablas Guyanas y Santa Elena'!D91,'Tablas Resto de Ecuador'!D91) -> 52845 | L94: =IF('INGRESO DE DATOS'!$W$13=1,'Tablas Guyanas y Santa Elena'!E91,'Tablas Resto de Ecuador'!E91) -> 36782 | M94: =IF('INGRESO DE DATOS'!$W$13=1,'Tablas Guyanas y Santa Elena'!F91,'Tablas Resto de Ecuador'!F91) -> 27944 | N94: =IF('INGRESO DE DATOS'!$W$13=1,'Tablas Guyanas y Santa Elena'!G91,'Tablas Resto de Ecuador'!G91) -> 21436 | O94: =IF('INGRESO DE DATOS'!$W$13=1,'Tablas Guyanas y Santa Elena'!H91,'Tablas Resto de Ecuador'!H91) -> 17438 | P94: 84009 | Q94: 52845 | R94: 36782 | S94: 27944 | T94: 21436 | U94: 17438
A95: 65 | B95: 65 | C95: 88022 | D95: 69112 | E95: 47981 | F95: 35333 | G95: 28613 | H95: 24615 | J95: =IF('INGRESO DE DATOS'!$W$13=1,'Tablas Guyanas y Santa Elena'!C92,'Tablas Resto de Ecuador'!C92) -> 88022 | K95: =IF('INGRESO DE DATOS'!$W$13=1,'Tablas Guyanas y Santa Elena'!D92,'Tablas Resto de Ecuador'!D92) -> 69112 | L95: =IF('INGRESO DE DATOS'!$W$13=1,'Tablas Guyanas y Santa Elena'!E92,'Tablas Resto de Ecuador'!E92) -> 47981 | M95: =IF('INGRESO DE DATOS'!$W$13=1,'Tablas Guyanas y Santa Elena'!F92,'Tablas Resto de Ecuador'!F92) -> 35333 | N95: =IF('INGRESO DE DATOS'!$W$13=1,'Tablas Guyanas y Santa Elena'!G92,'Tablas Resto de Ecuador'!G92) -> 28613 | O95: =IF('INGRESO DE DATOS'!$W$13=1,'Tablas Guyanas y Santa Elena'!H92,'Tablas Resto de Ecuador'!H92) -> 24615 | P95: 88022 | Q95: 69112 | R95: 47981 | S95: 35333 | T95: 28613 | U95: 24615
A96: 66 | B96: 66 | C96: 92027 | D96: 80288 | E96: 55744 | F96: 41059 | G96: 33255 | H96: 28586 | J96: =IF('INGRESO DE DATOS'!$W$13=1,'Tablas Guyanas y Santa Elena'!C93,'Tablas Resto de Ecuador'!C93) -> 92027 | K96: =IF('INGRESO DE DATOS'!$W$13=1,'Tablas Guyanas y Santa Elena'!D93,'Tablas Resto de Ecuador'!D93) -> 80288 | L96: =IF('INGRESO DE DATOS'!$W$13=1,'Tablas Guyanas y Santa Elena'!E93,'Tablas Resto de Ecuador'!E93) -> 55744 | M96: =IF('INGRESO DE DATOS'!$W$13=1,'Tablas Guyanas y Santa Elena'!F93,'Tablas Resto de Ecuador'!F93) -> 41059 | N96: =IF('INGRESO DE DATOS'!$W$13=1,'Tablas Guyanas y Santa Elena'!G93,'Tablas Resto de Ecuador'!G93) -> 33255 | O96: =IF('INGRESO DE DATOS'!$W$13=1,'Tablas Guyanas y Santa Elena'!H93,'Tablas Resto de Ecuador'!H93) -> 28586 | P96: 92027 | Q96: 80288 | R96: 55744 | S96: 41059 | T96: 33255 | U96: 28586
A97: 67 | B97: 67 | C97: 100488 | D97: 87712 | E97: 60892 | F97: 44854 | G97: 36315 | H97: 31236 | J97: =IF('INGRESO DE DATOS'!$W$13=1,'Tablas Guyanas y Santa Elena'!C94,'Tablas Resto de Ecuador'!C94) -> 100488 | K97: =IF('INGRESO DE DATOS'!$W$13=1,'Tablas Guyanas y Santa Elena'!D94,'Tablas Resto de Ecuador'!D94) -> 87712 | L97: =IF('INGRESO DE DATOS'!$W$13=1,'Tablas Guyanas y Santa Elena'!E94,'Tablas Resto de Ecuador'!E94) -> 60892 | M97: =IF('INGRESO DE DATOS'!$W$13=1,'Tablas Guyanas y Santa Elena'!F94,'Tablas Resto de Ecuador'!F94) -> 44854 | N97: =IF('INGRESO DE DATOS'!$W$13=1,'Tablas Guyanas y Santa Elena'!G94,'Tablas Resto de Ecuador'!G94) -> 36315 | O97: =IF('INGRESO DE DATOS'!$W$13=1,'Tablas Guyanas y Santa Elena'!H94,'Tablas Resto de Ecuador'!H94) -> 31236 | P97: 100488 | Q97: 87712 | R97: 60892 | S97: 44854 | T97: 36315 | U97: 31236
A98: 68 | B98: 68 | C98: 111245 | D98: 97121 | E98: 67414 | F98: 49673 | G98: 40226 | H98: 34585 | J98: =IF('INGRESO DE DATOS'!$W$13=1,'Tablas Guyanas y Santa Elena'!C95,'Tablas Resto de Ecuador'!C95) -> 111245 | K98: =IF('INGRESO DE DATOS'!$W$13=1,'Tablas Guyanas y Santa Elena'!D95,'Tablas Resto de Ecuador'!D95) -> 97121 | L98: =IF('INGRESO DE DATOS'!$W$13=1,'Tablas Guyanas y Santa Elena'!E95,'Tablas Resto de Ecuador'!E95) -> 67414 | M98: =IF('INGRESO DE DATOS'!$W$13=1,'Tablas Guyanas y Santa Elena'!F95,'Tablas Resto de Ecuador'!F95) -> 49673 | N98: =IF('INGRESO DE DATOS'!$W$13=1,'Tablas Guyanas y Santa Elena'!G95,'Tablas Resto de Ecuador'!G95) -> 40226 | O98: =IF('INGRESO DE DATOS'!$W$13=1,'Tablas Guyanas y Santa Elena'!H95,'Tablas Resto de Ecuador'!H95) -> 34585 | P98: 111245 | Q98: 97121 | R98: 67414 | S98: 49673 | T98: 40226 | U98: 34585
A99: 69 | B99: 69 | C99: 122369 | D99: 106855 | E99: 74191 | F99: 54651 | G99: 44256 | H99: 38054 | J99: =IF('INGRESO DE DATOS'!$W$13=1,'Tablas Guyanas y Santa Elena'!C96,'Tablas Resto de Ecuador'!C96) -> 122369 | K99: =IF('INGRESO DE DATOS'!$W$13=1,'Tablas Guyanas y Santa Elena'!D96,'Tablas Resto de Ecuador'!D96) -> 106855 | L99: =IF('INGRESO DE DATOS'!$W$13=1,'Tablas Guyanas y Santa Elena'!E96,'Tablas Resto de Ecuador'!E96) -> 74191 | M99: =IF('INGRESO DE DATOS'!$W$13=1,'Tablas Guyanas y Santa Elena'!F96,'Tablas Resto de Ecuador'!F96) -> 54651 | N99: =IF('INGRESO DE DATOS'!$W$13=1,'Tablas Guyanas y Santa Elena'!G96,'Tablas Resto de Ecuador'!G96) -> 44256 | O99: =IF('INGRESO DE DATOS'!$W$13=1,'Tablas Guyanas y Santa Elena'!H96,'Tablas Resto de Ecuador'!H96) -> 38054 | P99: 122369 | Q99: 106855 | R99: 74191 | S99: 54651 | T99: 44256 | U99: 38054
A100: 70 | B100: 70 | C100: 144805 | D100: 131517 | E100: 90333 | F100: 64333 | G100: 51576 | H100: 44761 | J100: =IF('INGRESO DE DATOS'!$W$13=1,'Tablas Guyanas y Santa Elena'!C97,'Tablas Resto de Ecuador'!C97) -> 144805 | K100: =IF('INGRESO DE DATOS'!$W$13=1,'Tablas Guyanas y Santa Elena'!D97,'Tablas Resto de Ecuador'!D97) -> 131517 | L100: =IF('INGRESO DE DATOS'!$W$13=1,'Tablas Guyanas y Santa Elena'!E97,'Tablas Resto de Ecuador'!E97) -> 90333 | M100: =IF('INGRESO DE DATOS'!$W$13=1,'Tablas Guyanas y Santa Elena'!F97,'Tablas Resto de Ecuador'!F97) -> 64333 | N100: =IF('INGRESO DE DATOS'!$W$13=1,'Tablas Guyanas y Santa Elena'!G97,'Tablas Resto de Ecuador'!G97) -> 51576 | O100: =IF('INGRESO DE DATOS'!$W$13=1,'Tablas Guyanas y Santa Elena'!H97,'Tablas Resto de Ecuador'!H97) -> 44761 | P100: 144805 | Q100: 131517 | R100: 90333 | S100: 64333 | T100: 51576 | U100: 44761
A101: 71 | B101: 71 | C101: 150496 | D101: 136682 | E101: 93871 | F101: 66865 | G101: 53594 | H101: 46539 | J101: =IF('INGRESO DE DATOS'!$W$13=1,'Tablas Guyanas y Santa Elena'!C98,'Tablas Resto de Ecuador'!C98) -> 150496 | K101: =IF('INGRESO DE DATOS'!$W$13=1,'Tablas Guyanas y Santa Elena'!D98,'Tablas Resto de Ecuador'!D98) -> 136682 | L101: =IF('INGRESO DE DATOS'!$W$13=1,'Tablas Guyanas y Santa Elena'!E98,'Tablas Resto de Ecuador'!E98) -> 93871 | M101: =IF('INGRESO DE DATOS'!$W$13=1,'Tablas Guyanas y Santa Elena'!F98,'Tablas Resto de Ecuador'!F98) -> 66865 | N101: =IF('INGRESO DE DATOS'!$W$13=1,'Tablas Guyanas y Santa Elena'!G98,'Tablas Resto de Ecuador'!G98) -> 53594 | O101: =IF('INGRESO DE DATOS'!$W$13=1,'Tablas Guyanas y Santa Elena'!H98,'Tablas Resto de Ecuador'!H98) -> 46539 | P101: 150496 | Q101: 136682 | R101: 93871 | S101: 66865 | T101: 53594 | U101: 46539
A102: 72 | B102: 72 | C102: 154732 | D102: 140547 | E102: 96533 | F102: 68753 | G102: 55117 | H102: 47835 | J102: =IF('INGRESO DE DATOS'!$W$13=1,'Tablas Guyanas y Santa Elena'!C99,'Tablas Resto de Ecuador'!C99) -> 154732 | K102: =IF('INGRESO DE DATOS'!$W$13=1,'Tablas Guyanas y Santa Elena'!D99,'Tablas Resto de Ecuador'!D99) -> 140547 | L102: =IF('INGRESO DE DATOS'!$W$13=1,'Tablas Guyanas y Santa Elena'!E99,'Tablas Resto de Ecuador'!E99) -> 96533 | M102: =IF('INGRESO DE DATOS'!$W$13=1,'Tablas Guyanas y Santa Elena'!F99,'Tablas Resto de Ecuador'!F99) -> 68753 | N102: =IF('INGRESO DE DATOS'!$W$13=1,'Tablas Guyanas y Santa Elena'!G99,'Tablas Resto de Ecuador'!G99) -> 55117 | O102: =IF('INGRESO DE DATOS'!$W$13=1,'Tablas Guyanas y Santa Elena'!H99,'Tablas Resto de Ecuador'!H99) -> 47835 | P102: 154732 | Q102: 140547 | R102: 96533 | S102: 68753 | T102: 55117 | U102: 47835
A103: 73 | B103: 73 | C103: 160422 | D103: 145725 | E103: 100073 | F103: 71284 | G103: 57143 | H103: 49609 | J103: =IF('INGRESO DE DATOS'!$W$13=1,'Tablas Guyanas y Santa Elena'!C100,'Tablas Resto de Ecuador'!C100) -> 160422 | K103: =IF('INGRESO DE DATOS'!$W$13=1,'Tablas Guyanas y Santa Elena'!D100,'Tablas Resto de Ecuador'!D100) -> 145725 | L103: =IF('INGRESO DE DATOS'!$W$13=1,'Tablas Guyanas y Santa Elena'!E100,'Tablas Resto de Ecuador'!E100) -> 100073 | M103: =IF('INGRESO DE DATOS'!$W$13=1,'Tablas Guyanas y Santa Elena'!F100,'Tablas Resto de Ecuador'!F100) -> 71284 | N103: =IF('INGRESO DE DATOS'!$W$13=1,'Tablas Guyanas y Santa Elena'!G100,'Tablas Resto de Ecuador'!G100) -> 57143 | O103: =IF('INGRESO DE DATOS'!$W$13=1,'Tablas Guyanas y Santa Elena'!H100,'Tablas Resto de Ecuador'!H100) -> 49609 | P103: 160422 | Q103: 145725 | R103: 100073 | S103: 71284 | T103: 57143 | U103: 49609
A104: 74 | B104: 74 | C104: 163238 | D104: 148290 | E104: 101857 | F104: 72527 | G104: 58160 | H104: 50479 | J104: =IF('INGRESO DE DATOS'!$W$13=1,'Tablas Guyanas y Santa Elena'!C101,'Tablas Resto de Ecuador'!C101) -> 163238 | K104: =IF('INGRESO DE DATOS'!$W$13=1,'Tablas Guyanas y Santa Elena'!D101,'Tablas Resto de Ecuador'!D101) -> 148290 | L104: =IF('INGRESO DE DATOS'!$W$13=1,'Tablas Guyanas y Santa Elena'!E101,'Tablas Resto de Ecuador'!E101) -> 101857 | M104: =IF('INGRESO DE DATOS'!$W$13=1,'Tablas Guyanas y Santa Elena'!F101,'Tablas Resto de Ecuador'!F101) -> 72527 | N104: =IF('INGRESO DE DATOS'!$W$13=1,'Tablas Guyanas y Santa Elena'!G101,'Tablas Resto de Ecuador'!G101) -> 58160 | O104: =IF('INGRESO DE DATOS'!$W$13=1,'Tablas Guyanas y Santa Elena'!H101,'Tablas Resto de Ecuador'!H101) -> 50479 | P104: 163238 | Q104: 148290 | R104: 101857 | S104: 72527 | T104: 58160 | U104: 50479
A105: 75 | B105: 75+ | C105: 170338 | D105: 154745 | E105: 106284 | F105: 75707 | G105: 60683 | H105: 52696 | J105: =IF('INGRESO DE DATOS'!$W$13=1,'Tablas Guyanas y Santa Elena'!C102,'Tablas Resto de Ecuador'!C102) -> 170338 | K105: =IF('INGRESO DE DATOS'!$W$13=1,'Tablas Guyanas y Santa Elena'!D102,'Tablas Resto de Ecuador'!D102) -> 154745 | L105: =IF('INGRESO DE DATOS'!$W$13=1,'Tablas Guyanas y Santa Elena'!E102,'Tablas Resto de Ecuador'!E102) -> 106284 | M105: =IF('INGRESO DE DATOS'!$W$13=1,'Tablas Guyanas y Santa Elena'!F102,'Tablas Resto de Ecuador'!F102) -> 75707 | N105: =IF('INGRESO DE DATOS'!$W$13=1,'Tablas Guyanas y Santa Elena'!G102,'Tablas Resto de Ecuador'!G102) -> 60683 | O105: =IF('INGRESO DE DATOS'!$W$13=1,'Tablas Guyanas y Santa Elena'!H102,'Tablas Resto de Ecuador'!H102) -> 52696 | P105: 170338 | Q105: 154745 | R105: 106284 | S105: 75707 | T105: 60683 | U105: 52696
A106: 1 | B106: 1 Child | C106: 9350 | D106: 5785 | E106: 4269 | F106: 3351 | G106: 2526 | H106: 1985 | J106: =IF('INGRESO DE DATOS'!$W$13=1,'Tablas Guyanas y Santa Elena'!C103,'Tablas Resto de Ecuador'!C103) -> 9350 | K106: =IF('INGRESO DE DATOS'!$W$13=1,'Tablas Guyanas y Santa Elena'!D103,'Tablas Resto de Ecuador'!D103) -> 5785 | L106: =IF('INGRESO DE DATOS'!$W$13=1,'Tablas Guyanas y Santa Elena'!E103,'Tablas Resto de Ecuador'!E103) -> 4269 | M106: =IF('INGRESO DE DATOS'!$W$13=1,'Tablas Guyanas y Santa Elena'!F103,'Tablas Resto de Ecuador'!F103) -> 3351 | N106: =IF('INGRESO DE DATOS'!$W$13=1,'Tablas Guyanas y Santa Elena'!G103,'Tablas Resto de Ecuador'!G103) -> 2526 | O106: =IF('INGRESO DE DATOS'!$W$13=1,'Tablas Guyanas y Santa Elena'!H103,'Tablas Resto de Ecuador'!H103) -> 1985 | P106: 9350 | Q106: =(K106)*$L$2 -> 5785 | R106: =(L106)*$L$2 -> 4269 | S106: =(M106)*$L$2 -> 3351 | T106: =(N106)*$L$2 -> 2526 | U106: =(O106)*$L$2 -> 1985
A107: 2 | B107: 2 Children | C107: 14673 | D107: 9196 | E107: 6780 | F107: 5334 | G107: 4034 | H107: 3146 | J107: =IF('INGRESO DE DATOS'!$W$13=1,'Tablas Guyanas y Santa Elena'!C104,'Tablas Resto de Ecuador'!C104) -> 14673 | K107: =IF('INGRESO DE DATOS'!$W$13=1,'Tablas Guyanas y Santa Elena'!D104,'Tablas Resto de Ecuador'!D104) -> 9196 | L107: =IF('INGRESO DE DATOS'!$W$13=1,'Tablas Guyanas y Santa Elena'!E104,'Tablas Resto de Ecuador'!E104) -> 6780 | M107: =IF('INGRESO DE DATOS'!$W$13=1,'Tablas Guyanas y Santa Elena'!F104,'Tablas Resto de Ecuador'!F104) -> 5334 | N107: =IF('INGRESO DE DATOS'!$W$13=1,'Tablas Guyanas y Santa Elena'!G104,'Tablas Resto de Ecuador'!G104) -> 4034 | O107: =IF('INGRESO DE DATOS'!$W$13=1,'Tablas Guyanas y Santa Elena'!H104,'Tablas Resto de Ecuador'!H104) -> 3146 | P107: 14673 | Q107: =(K107)*$L$2 -> 9196 | R107: 6780 | S107: 5334 | T107: 4034 | U107: 3146
A108: 3 | B108: 3+ Children | C108: 21365 | D108: 13471 | E108: 9940 | F108: 7816 | G108: 5915 | H108: 4608 | J108: =IF('INGRESO DE DATOS'!$W$13=1,'Tablas Guyanas y Santa Elena'!C105,'Tablas Resto de Ecuador'!C105) -> 21365 | K108: =IF('INGRESO DE DATOS'!$W$13=1,'Tablas Guyanas y Santa Elena'!D105,'Tablas Resto de Ecuador'!D105) -> 13471 | L108: =IF('INGRESO DE DATOS'!$W$13=1,'Tablas Guyanas y Santa Elena'!E105,'Tablas Resto de Ecuador'!E105) -> 9940 | M108: =IF('INGRESO DE DATOS'!$W$13=1,'Tablas Guyanas y Santa Elena'!F105,'Tablas Resto de Ecuador'!F105) -> 7816 | N108: =IF('INGRESO DE DATOS'!$W$13=1,'Tablas Guyanas y Santa Elena'!G105,'Tablas Resto de Ecuador'!G105) -> 5915 | O108: =IF('INGRESO DE DATOS'!$W$13=1,'Tablas Guyanas y Santa Elena'!H105,'Tablas Resto de Ecuador'!H105) -> 4608 | P108: 21365 | Q108: 13471 | R108: 9940 | S108: 7816 | T108: 5915 | U108: 4608
A109: 1 | B109: Rider Comp. Maternidad | C109: =J109*$V$2 -> 0 | D109: =K109*$V$2 -> 0 | E109: =L109*$V$2 -> 0 | F109: 225 | G109: 225 | H109: 225 | J109: =IF('INGRESO DE DATOS'!$W$13=1,'Tablas Guyanas y Santa Elena'!C106,'Tablas Resto de Ecuador'!C106) -> 0 | K109: 0 | L109: 0 | M109: 225 | N109: 225 | O109: 225
A110: 1 | B110: Transplante de organos | C110: =J110*$V$2 -> 0 | D110: =K110*$V$2 -> 0 | E110: =L110*$V$2 -> 0 | F110: =M110*$V$2 -> 0 | G110: =N110*$V$2 -> 0 | H110: =O110*$V$2 -> 0 | J110: =IF('INGRESO DE DATOS'!$W$13=1,'Tablas Guyanas y Santa Elena'!C107,'Tablas Resto de Ecuador'!C107) -> 0 | K110: 0 | L110: 0 | M110: 0 | N110: 0 | O110: 0
C111: 0 | D111: 0 | E111: 0 | F111: 0 | G111: 0 | H111: 0 | J111: =IF('INGRESO DE DATOS'!$W$13=1,'Tablas Guyanas y Santa Elena'!C108,'Tablas Resto de Ecuador'!C108) -> 0
A114: TARIFAS SEMESTRALES
A115: EDAD
C116: DW1 | D116: DW2 | E116: DW3 | F116: DW4 | G116: DW5 | H116: DW6
A117: 18 | B117: 18-24 | C117: =$G$2*C82 -> 14290.39 | D117: 8802.24 | E117: 5812.51 | F117: 3959.63 | G117: 2524.92 | H117: 1981.67
A118: 25 | B118: 25-29 | C118: =$G$2*C83 -> 14989.46 | D118: =$G$2*D83 -> 9232.07 | E118: 6431.02 | F118: 4390.52 | G118: 2802.11 | H118: 2204.8
A119: 30 | B119: 30-34 | C119: =$G$2*C84 -> 15502.5 | D119: =$G$2*D84 -> 9613.14 | E119: 6893.71 | F119: 4927.94 | G119: 3360.2 | H119: 2644.7
A120: 35 | B120: 35-39 | C120: =$G$2*C85 -> 17335.77 | D120: =$G$2*D85 -> 10760.59 | E120: 7724.22 | F120: 5512 | G120: 3765.12 | H120: 2964.82
A121: 40 | B121: 40-44 | C121: =$G$2*C86 -> 20072.16 | D121: =$G$2*D86 -> 12477.26 | E121: 8440.25 | F121: 6125.74 | G121: 4139.83 | H121: 3264.27
A122: 45 | B122: 45-49 | C122: =$G$2*C87 -> 22411.05 | D122: =$G$2*D87 -> 13953.31 | E122: 9444.6 | F122: 6853.43 | G122: 4630.61 | H122: 3647.99
A123: 50 | B123: 50-54 | C123: =$G$2*C88 -> 29130.39 | D123: =$G$2*D88 -> 17862.59 | E123: 12395.11 | F123: 8942.69 | G123: 6546.56 | H123: 5162.2
A124: 55 | B124: 55-59 | C124: =$G$2*C89 -> 30985.92 | D124: =$G$2*D89 -> 18997.85 | E124: 13194.35 | F124: 9506.61 | G124: 6966.85 | H124: 5495.04
A125: 60 | B125: 60 | C125: =$G$2*C90 -> 32959.11 | D125: =$G$2*D90 -> 20701.27 | E125: 14393.21 | F125: 10939.2 | G125: 8398.38 | H125: 6825.87
A126: 61 | B126: 61 | C126: =$G$2*C91 -> 35401.88 | D126: =$G$2*D91 -> 22248.34 | E126: 15464.87 | F126: 11747.98 | G126: 9026.43 | H126: 7327.78
A127: 62 | B127: 62 | C127: =$G$2*C92 -> 38728.69 | D127: =$G$2*D92 -> 24360.39 | E127: 16942.51 | F127: 12875.82 | G127: 9883.44 | H127: 8026.32
A128: 63 | B128: 63 | C128: =$G$2*C93 -> 41168.81 | D128: =$G$2*D93 -> 25895.8 | E128: 18012.05 | F128: 13685.13 | G128: 10508.84 | H128: 8537.24
A129: 64 | B129: 64 | C129: =$G$2*C94 -> 44524.77 | D129: =$G$2*D94 -> 28007.85 | E129: 19494.46 | F129: 14810.32 | G129: 11361.08 | H129: 9242.14
A130: 65 | B130: 65 | C130: =$G$2*C95 -> 46651.66 | D130: =$G$2*D95 -> 36629.36 | E130: 25429.93 | F130: 18726.49 | G130: 15164.89 | H130: 13045.95
A131: 66 | B131: 66 | C131: =$G$2*C96 -> 48774.31 | D131: =$G$2*D96 -> 42552.64 | E131: 29544.32 | F131: 21761.27 | G131: 17625.15 | H131: 15150.58
A132: 67 | B132: 67 | C132: =$G$2*C97 -> 53258.64 | D132: =$G$2*D97 -> 46487.36 | E132: 32272.76 | F132: 23772.62 | G132: 19246.95 | H132: 16555.08
A133: 68 | B133: 68 | C133: =$G$2*C98 -> 58959.85 | D133: =$G$2*D98 -> 51474.13 | E133: 35729.42 | F133: 26326.69 | G133: 21319.78 | H133: 18330.05
A134: 69 | B134: 69 | C134: =$G$2*C99 -> 64855.57 | D134: =$G$2*D99 -> 56633.15 | E134: 39321.23 | F134: 28965.03 | G134: 23455.68 | H134: 20168.62
A135: 70 | B135: 70 | C135: =$G$2*C100 -> 76746.65 | D135: =$G$2*D100 -> 69704.01 | E135: 47876.49 | F135: 34096.49 | G135: 27335.28 | H135: 23723.33
A136: 71 | B136: 71 | C136: =$G$2*C101 -> 79762.88 | D136: =$G$2*D101 -> 72441.46 | E136: 49751.63 | F136: 35438.45 | G136: 28404.82 | H136: 24665.67
A137: 72 | B137: 72 | C137: =$G$2*C102 -> 82007.96 | D137: =$G$2*D102 -> 74489.91 | E137: 51162.49 | F137: 36439.09 | G137: 29212.01 | H137: 25352.55
A138: 73 | B138: 73 | C138: =$G$2*C103 -> 85023.66 | D138: =$G$2*D103 -> 77234.25 | E138: 53038.69 | F138: 37780.52 | G138: 30285.79 | H138: 26292.77
A139: 74 | B139: 74 | C139: =$G$2*C104 -> 86516.14 | D139: =$G$2*D104 -> 78593.7 | E139: 53984.21 | F139: 38439.31 | G139: 30824.8 | H139: 26753.87
A140: 75 | B140: 75+ | C140: =$G$2*C105 -> 90279.14 | D140: =$G$2*D105 -> 82014.85 | E140: 56330.52 | F140: 40124.71 | G140: 32161.99 | H140: 27928.88
A141: 1 | B141: 1 Child | C141: =$G$2*C106 -> 4955.5 | D141: =$G$2*D106 -> 3066.05 | E141: 2262.57 | F141: 1776.03 | G141: 1338.78 | H141: 1052.05
A142: 2 | B142: 2 Children | C142: =$G$2*C107 -> 7776.69 | D142: =$G$2*D107 -> 4873.88 | E142: 3593.4 | F142: 2827.02 | G142: 2138.02 | H142: 1667.38
A143: 3 | B143: 3+ Children | C143: =$G$2*C108 -> 11323.45 | D143: =$G$2*D108 -> 7139.63 | E143: 5268.2 | F143: 4142.48 | G143: 3134.95 | H143: 2442.24
A144: 1 | B144: Rider Comp. Maternidad | C144: =$G$2*C109 -> 0 | D144: =+D109*$G$2 -> 0 | E144: 0 | F144: 119.25 | G144: 119.25 | H144: 119.25
A145: 1 | B145: Transplante de organos | C145: =$G$2*C110 -> 0 | D145: =+D110*$G$2 -> 0 | E145: 0 | F145: 0 | G145: 0 | H145: 0
A151: DIAMOND (LATINAMERICA ONLY)
A152: TARIFAS ANUALES
A153: EDAD
C154: DL1 | D154: DL2 | E154: DL3 | F154: DL4 | G154: DL5 | H154: DL6
A155: 18 | B155: - 24
A156: 25 | B156: - 29
A157: 30 | B157: - 34
A158: 35 | B158: - 39
A159: 40 | B159: - 44
A160: 45 | B160: - 49
A161: 50 | B161: - 54
A162: 55 | B162: - 59
A163: 60
A164: 61
A165: 62
A166: 63
A167: 64
A168: 65
A169: 66
A170: 67
A171: 68
A172: 69
A173: 70
A174: 71
A175: 72
A176: 73
A177: 74
A178: 75 | B178: o más
A179: 1 | B179: Hijo
A180: 2 | B180: Hijos
A181: 3 | B181: Hijos o más
A182: 1 | B182: Rider Comp. Maternidad
A183: 1 | B183: Transplante de organos | C183: 0 | D183: 0 | E183: 0 | F183: 0 | G183: 0 | H183: 0
A185: TARIFAS SEMESTRALES
A186: EDAD
C187: DL1 | D187: DL2 | E187: DL3 | F187: DL4 | G187: DL5 | H187: DL6
A188: 18 | B188: - 24 | C188: =+C155*$G$2 -> 0 | D188: 0 | E188: 0 | F188: 0 | G188: 0 | H188: 0
A189: 25 | B189: - 29 | C189: 0 | D189: 0 | E189: 0 | F189: 0 | G189: 0 | H189: 0
A190: 30 | B190: - 34 | C190: 0 | D190: 0 | E190: 0 | F190: 0 | G190: 0 | H190: 0
A191: 35 | B191: - 39 | C191: 0 | D191: 0 | E191: 0 | F191: 0 | G191: 0 | H191: 0
A192: 40 | B192: - 44 | C192: 0 | D192: 0 | E192: 0 | F192: 0 | G192: 0 | H192: 0
A193: 45 | B193: - 49 | C193: 0 | D193: 0 | E193: 0 | F193: 0 | G193: 0 | H193: 0
A194: 50 | B194: - 54 | C194: 0 | D194: 0 | E194: 0 | F194: 0 | G194: 0 | H194: 0
A195: 55 | B195: - 59 | C195: 0 | D195: 0 | E195: 0 | F195: 0 | G195: 0 | H195: 0
A196: 60 | C196: 0 | D196: 0 | E196: 0 | F196: 0 | G196: 0 | H196: 0
A197: 61 | C197: 0 | D197: 0 | E197: 0 | F197: 0 | G197: 0 | H197: 0
A198: 62 | C198: =+C165*$G$2 -> 0 | D198: 0 | E198: 0 | F198: 0 | G198: 0 | H198: 0
A199: 63 | C199: 0 | D199: 0 | E199: 0 | F199: 0 | G199: 0 | H199: 0
A200: 64 | C200: 0 | D200: 0 | E200: 0 | F200: 0 | G200: 0 | H200: 0
A201: 65 | C201: 0 | D201: 0 | E201: 0 | F201: 0 | G201: 0 | H201: 0
A202: 66 | C202: 0 | D202: 0 | E202: 0 | F202: 0 | G202: 0 | H202: 0
A203: 67 | C203: 0 | D203: 0 | E203: 0 | F203: 0 | G203: 0 | H203: 0
A204: 68 | C204: 0 | D204: 0 | E204: 0 | F204: 0 | G204: 0 | H204: 0
A205: 69 | C205: 0 | D205: 0 | E205: 0 | F205: 0 | G205: 0 | H205: 0
A206: 70 | C206: 0 | D206: 0 | E206: 0 | F206: 0 | G206: 0 | H206: 0
A207: 71 | C207: 0 | D207: 0 | E207: 0 | F207: 0 | G207: 0 | H207: 0
A208: 72 | C208: =+C175*$G$2 -> 0 | D208: 0 | E208: 0 | F208: 0 | G208: 0 | H208: 0
A209: 73 | C209: 0 | D209: 0 | E209: 0 | F209: 0 | G209: 0 | H209: 0
A210: 74 | C210: 0 | D210: 0 | E210: 0 | F210: 0 | G210: 0 | H210: 0
A211: 75 | B211: o más | C211: 0 | D211: 0 | E211: 0 | F211: 0 | G211: 0 | H211: 0
A212: 1 | B212: Hijo | C212: 0 | D212: 0 | E212: 0 | F212: 0 | G212: 0 | H212: 0
A213: 2 | B213: Hijos | C213: 0 | D213: 0 | E213: 0 | F213: 0 | G213: 0 | H213: 0
A214: 3 | B214: Hijos o más | C214: 0 | D214: 0 | E214: 0 | F214: 0 | G214: 0 | H214: 0
A215: 1 | B215: Rider Comp. Maternidad | C215: 0 | D215: 0 | E215: 0 | F215: 0 | G215: 0 | H215: 0
A216: 1 | B216: Transplante de organos | C216: 0 | D216: 0 | E216: 0 | F216: 0 | G216: 0 | H216: 0
A221: BUPA COMPLETE CARE (MUNDIAL)
... 534 more rows

Sheet Tablas Guyanas y Santa Elena (hidden)
K1: D1 | L1: D2 | M1: D3 | N1: D4 | O1: D5 | P1: D6
B2: REGIÓN | C2: ='INGRESO DE DATOS'!W14 -> Guayas/Santa Elena | E2: FACTOR SEMESTRAL : | G2: 0.53 | I2: NEW BUSINESS DISCUOUNTS | K2: ='INGRESO DE DATOS'!O42 -> 1 | L2: ='INGRESO DE DATOS'!P42 -> 1 | M2: ='INGRESO DE DATOS'!Q42 -> 1 | N2: ='INGRESO DE DATOS'!R42 -> 1 | O2: ='INGRESO DE DATOS'!S42 -> 1 | P2: ='INGRESO DE DATOS'!T42 -> 1
A5: BUPA DIAMOND CARE (MUNDIAL)
A6: TARIFAS ANUALES
A7: EDAD
C8: DW1 | D8: DW2 | E8: DW3 | F8: DW4 | G8: DW5 | H8: DW6
A9: 18 | B9: 18-24 | C9: 31872 | D9: 21147 | E9: 12204 | F9: 9598 | G9: 6177 | H9: 4885
A10: 25 | B10: 25-29 | C10: 35835 | D10: 22172 | E10: 15110 | F10: 10622 | G10: 6828 | H10: 5395
A11: 30 | B11: 30-34 | C11: 37106 | D11: 23064 | E11: 16587 | F11: 11874 | G11: 8154 | H11: 6452
A12: 35 | B12: 35-39 | C12: 41470 | D12: 25811 | E12: 18553 | F12: 13293 | G12: 9124 | H12: 7221
A13: 40 | B13: 40-44 | C13: 47986 | D13: 29895 | E13: 20279 | F13: 14737 | G13: 10013 | H13: 7917
A14: 45 | B14: 45-49 | C14: 53561 | D14: 33409 | E14: 22669 | F14: 16448 | G14: 11181 | H14: 8831
A15: 50 | B15: 50-54 | C15: 63729 | D15: 42730 | E15: 29690 | F15: 21438 | G15: 15734 | H15: 12439
A16: 55 | B16: 55-59 | C16: 69390 | D16: 45443 | E16: 31593 | F16: 22796 | G16: 16746 | H16: 13233
A17: 60 | B17: 60 | C17: 71322 | D17: 49491 | E17: 34455 | F17: 26211 | G17: 20140 | H17: 16409
A18: 61 | B18: 61 | C18: 77401 | D18: 53168 | E18: 37015 | F18: 28132 | G18: 21635 | H18: 17612
A19: 62 | B19: 62 | C19: 85147 | D19: 58197 | E19: 40513 | F19: 30806 | G19: 23668 | H19: 19275
A20: 63 | B20: 63 | C20: 93920 | D20: 61868 | E20: 43068 | F20: 32735 | G20: 25165 | H20: 20487
A21: 64 | B21: 64 | C21: 103076 | D21: 66911 | E21: 46603 | F21: 35411 | G21: 27211 | H21: 22157
A22: 65 | B22: 65 | C22: 111321 | D22: 82616 | E22: 60730 | F22: 44734 | G22: 36242 | H22: 31197
A23: 66 | B23: 66 | C23: 116363 | D23: 89246 | E23: 66856 | F23: 51967 | G23: 42106 | H23: 36224
A24: 67 | B24: 67 | C24: 127056 | D24: 95996 | E24: 71543 | F24: 56743 | G24: 45972 | H24: 39550
A25: 68 | B25: 68 | C25: 137763 | D25: 102909 | E25: 76319 | F25: 60959 | G25: 50897 | H25: 43794
A26: 69 | B26: 69 | C26: 146981 | D26: 110024 | E26: 81222 | F26: 65159 | G26: 55984 | H26: 48170
A27: 70 | B27: 70 | C27: 156864 | D27: 117383 | E27: 86292 | F27: 69492 | G27: 62686 | H27: 53209
A28: 71 | B28: 71 | C28: 167620 | D28: 125073 | E28: 91584 | F28: 74014 | G28: 67244 | H28: 56776
A29: 72 | B29: 72 | C29: 179108 | D29: 133066 | E29: 97073 | F29: 78737 | G29: 69688 | H29: 60516
A30: 73 | B30: 73 | C30: 191015 | D30: 141233 | E30: 102674 | F30: 83574 | G30: 72253 | H30: 62735
A31: 74 | B31: 74 | C31: 203026 | D31: 149442 | E31: 108303 | F31: 88440 | G31: 73519 | H31: 63846
A32: 75 | B32: 75+ | C32: 214828 | D32: 157566 | E32: 113876 | F32: 93248 | G32: 76722 | H32: 66623
A33: 1 | B33: 1 Child | C33: 6954 | D33: 4549 | E33: 3111 | F33: 2376 | G33: 2304 | H33: 2005
A34: 2 | B34: 2 Children | C34: 11533 | D34: 7606 | E34: 5355 | F34: 4104 | G34: 3978 | H34: 3436
A35: 3 | B35: 3+ Children | C35: 15658 | D35: 10421 | E35: 7437 | F35: 5726 | G35: 5533 | H35: 4763
A36: 1 | B36: Rider Comp. Maternidad | C36: 0 | D36: 0 | E36: 0 | F36: 225 | G36: 225 | H36: 225
A37: 1 | B37: Transplante de organos | C37: 0 | D37: 0 | E37: 0 | F37: 0 | G37: 0 | H37: 0
A41: TARIFAS SEMESTRALES
A42: EDAD
D43: DW2 | E43: DW3 | F43: DW4 | G43: DW5 | H43: DW6
A44: 18 | B44: 18-24 | D44: =$G$2*D9 -> 11207.91 | E44: 6468.12 | F44: 5086.94 | G44: 3273.81 | H44: 2589.05
A45: 25 | B45: 25-29 | D45: 11751.16 | E45: 8008.3 | F45: 5629.66 | G45: 3618.84 | H45: 2859.35
A46: 30 | B46: 30-34 | D46: 12223.92 | E46: 8791.11 | F46: 6293.22 | G46: 4321.62 | H46: 3419.56
A47: 35 | B47: 35-39 | D47: 13679.83 | E47: 9833.09 | F47: 7045.29 | G47: 4835.72 | H47: 3827.13
A48: 40 | B48: 40-44 | D48: 15844.35 | E48: 10747.87 | F48: 7810.61 | G48: 5306.89 | H48: 4196.01
A49: 45 | B49: 45-49 | D49: 17706.77 | E49: 12014.57 | F49: 8717.44 | G49: 5925.93 | H49: 4680.43
A50: 50 | B50: 50-54 | D50: 22646.9 | E50: 15735.7 | F50: 11362.14 | G50: 8339.02 | H50: 6592.67
A51: 55 | B51: 55-59 | D51: 24084.79 | E51: 16744.29 | F51: 12081.88 | G51: 8875.38 | H51: 7013.49
A52: 60 | B52: 60 | D52: 26230.23 | E52: 18261.15 | F52: 13891.83 | G52: 10674.2 | H52: 8696.77
A53: 61 | B53: 61 | D53: 28179.04 | E53: 19617.95 | F53: 14909.96 | G53: 11466.55 | H53: 9334.36
A54: 62 | B54: 62 | D54: =$G$2*D19 -> 30844.41 | E54: 21471.89 | F54: 16327.18 | G54: 12544.04 | H54: 10215.75
A55: 63 | B55: 63 | D55: 32790.04 | E55: 22826.04 | F55: 17349.55 | G55: 13337.45 | H55: 10858.11
A56: 64 | B56: 64 | D56: 35462.83 | E56: 24699.59 | F56: 18767.83 | G56: 14421.83 | H56: 11743.21
A57: 65 | B57: 65 | D57: 43786.48 | E57: 32186.9 | F57: 23709.02 | G57: 19208.26 | H57: 16534.41
A58: 66 | B58: 66 | D58: 47300.38 | E58: 35433.68 | F58: 27542.51 | G58: 22316.18 | H58: 19198.72
A59: 67 | B59: 67 | D59: 50877.88 | E59: 37917.79 | F59: 30073.79 | G59: 24365.16 | H59: 20961.5
A60: 68 | B60: 68 | D60: 54541.77 | E60: 40449.07 | F60: 32308.27 | G60: 26975.41 | H60: 23210.82
A61: 69 | B61: 69 | D61: 58312.72 | E61: 43047.66 | F61: 34534.27 | G61: 29671.52 | H61: 25530.1
A62: 70 | B62: 70 | D62: 62212.99 | E62: 45734.76 | F62: 36830.76 | G62: 33223.58 | H62: 28200.77
A63: 71 | B63: 71 | D63: 66288.69 | E63: 48539.52 | F63: 39227.42 | G63: 35639.32 | H63: 30091.28
A64: 72 | B64: 72 | D64: =$G$2*D29 -> 70524.98 | E64: 51448.69 | F64: 41730.61 | G64: 36934.64 | H64: 32073.48
A65: 73 | B65: 73 | D65: 74853.49 | E65: 54417.22 | F65: 44294.22 | G65: 38294.09 | H65: 33249.55
A66: 74 | B66: 74 | D66: 79204.26 | E66: 57400.59 | F66: 46873.2 | G66: 38965.07 | H66: 33838.38
A67: 75 | B67: 75+ | D67: 83509.98 | E67: 60354.28 | F67: 49421.44 | G67: 40662.66 | H67: 35310.19
A68: 1 | B68: 1 Child | D68: 2410.97 | E68: 1648.83 | F68: 1259.28 | G68: 1221.12 | H68: 1062.65
A69: 2 | B69: 2 Children | D69: 4031.18 | E69: 2838.15 | F69: 2175.12 | G69: 2108.34 | H69: 1821.08
A70: 3 | B70: 3+ Children | D70: 5523.13 | E70: 3941.61 | F70: 3034.78 | G70: 2932.49 | H70: 2524.39
A71: 1 | B71: Rider Comp. Maternidad | D71: =+D36*$G$2 -> 0 | E71: 0 | F71: 119.25 | G71: 119.25 | H71: 119.25
A72: 1 | B72: Transplante de organos | D72: 0 | E72: 0 | F72: 0 | G72: 0 | H72: 0
A75: BUPA DIAMOND CARE (LATIN AMERICA)
A76: TARIFAS ANUALES
A77: EDAD
C78: DW1 | D78: DW2 | E78: DW3 | F78: DW4 | G78: DW5 | H78: DW6
A79: 18 | B79: 18-24 | C79: 26963 | D79: 16608 | E79: 10967 | F79: 7471 | G79: 4764 | H79: 3739
A80: 25 | B80: 25-29 | C80: 28282 | D80: 17419 | E80: 12134 | F80: 8284 | G80: 5287 | H80: 4160
A81: 30 | B81: 30-34 | C81: 29250 | D81: 18138 | E81: 13007 | F81: 9298 | G81: 6340 | H81: 4990
A82: 35 | B82: 35-39 | C82: 32709 | D82: 20303 | E82: 14574 | F82: 10400 | G82: 7104 | H82: 5594
A83: 40 | B83: 40-44 | C83: 37872 | D83: 23542 | E83: 15925 | F83: 11558 | G83: 7811 | H83: 6159
A84: 45 | B84: 45-49 | C84: 42285 | D84: 26327 | E84: 17820 | F84: 12931 | G84: 8737 | H84: 6883
A85: 50 | B85: 50-54 | C85: 54963 | D85: 33703 | E85: 23387 | F85: 16873 | G85: 12352 | H85: 9740
A86: 55 | B86: 55-59 | C86: 58464 | D86: 35845 | E86: 24895 | F86: 17937 | G86: 13145 | H86: 10368
A87: 60 | B87: 60 | C87: 62187 | D87: 39059 | E87: 27157 | F87: 20640 | G87: 15846 | H87: 12879
A88: 61 | B88: 61 | C88: 66796 | D88: 41978 | E88: 29179 | F88: 22166 | G88: 17031 | H88: 13826
A89: 62 | B89: 62 | C89: 73073 | D89: 45963 | E89: 31967 | F89: 24294 | G89: 18648 | H89: 15144
A90: 63 | B90: 63 | C90: 77677 | D90: 48860 | E90: 33985 | F90: 25821 | G90: 19828 | H90: 16108
A91: 64 | B91: 64 | C91: 84009 | D91: 52845 | E91: 36782 | F91: 27944 | G91: 21436 | H91: 17438
A92: 65 | B92: 65 | C92: 88022 | D92: 69112 | E92: 47981 | F92: 35333 | G92: 28613 | H92: 24615
A93: 66 | B93: 66 | C93: 92027 | D93: 80288 | E93: 55744 | F93: 41059 | G93: 33255 | H93: 28586
A94: 67 | B94: 67 | C94: 100488 | D94: 87712 | E94: 60892 | F94: 44854 | G94: 36315 | H94: 31236
A95: 68 | B95: 68 | C95: 111245 | D95: 97121 | E95: 67414 | F95: 49673 | G95: 40226 | H95: 34585
A96: 69 | B96: 69 | C96: 122369 | D96: 106855 | E96: 74191 | F96: 54651 | G96: 44256 | H96: 38054
A97: 70 | B97: 70 | C97: 144805 | D97: 131517 | E97: 90333 | F97: 64333 | G97: 51576 | H97: 44761
A98: 71 | B98: 71 | C98: 150496 | D98: 136682 | E98: 93871 | F98: 66865 | G98: 53594 | H98: 46539
A99: 72 | B99: 72 | C99: 154732 | D99: 140547 | E99: 96533 | F99: 68753 | G99: 55117 | H99: 47835
A100: 73 | B100: 73 | C100: 160422 | D100: 145725 | E100: 100073 | F100: 71284 | G100: 57143 | H100: 49609
A101: 74 | B101: 74 | C101: 163238 | D101: 148290 | E101: 101857 | F101: 72527 | G101: 58160 | H101: 50479
A102: 75 | B102: 75+ | C102: 170338 | D102: 154745 | E102: 106284 | F102: 75707 | G102: 60683 | H102: 52696
A103: 1 | B103: 1 Child | C103: 9350 | D103: 5785 | E103: 4269 | F103: 3351 | G103: 2526 | H103: 1985
A104: 2 | B104: 2 Children | C104: 14673 | D104: 9196 | E104: 6780 | F104: 5334 | G104: 4034 | H104: 3146
A105: 3 | B105: 3+ Children | C105: 21365 | D105: 13471 | E105: 9940 | F105: 7816 | G105: 5915 | H105: 4608
A106: 1 | B106: Rider Comp. Maternidad | C106: 0 | D106: 0 | E106: 0 | F106: 225 | G106: 225 | H106: 225
A107: 1 | B107: Transplante de organos | C107: 0 | D107: 0 | E107: 0 | F107: 0 | G107: 0 | H107: 0
A114: DIAMOND (LATINAMERICA ONLY)
A115: TARIFAS ANUALES
A116: EDAD
C117: DL1 | D117: DL2 | E117: DL3 | F117: DL4 | G117: DL5 | H117: DL6
A118: 18 | B118: - 24
A119: 25 | B119: - 29
A120: 30 | B120: - 34
A121: 35 | B121: - 39
A122: 40 | B122: - 44
A123: 45 | B123: - 49
A124: 50 | B124: - 54
A125: 55 | B125: - 59
A126: 60
A127: 61
A128: 62
A129: 63
A130: 64
A131: 65
A132: 66
A133: 67
A134: 68
A135: 69
A136: 70
A137: 71
A138: 72
A139: 73
A140: 74
A141: 75 | B141: o más
A142: 1 | B142: Hijo
A143: 2 | B143: Hijos
A144: 3 | B144: Hijos o más
A145: 1 | B145: Rider Comp. Maternidad
A146: 1 | B146: Transplante de organos | C146: 0 | D146: 0 | E146: 0 | F146: 0 | G146: 0 | H146: 0
A148: TARIFAS SEMESTRALES
A149: EDAD
C150: DL1 | D150: DL2 | E150: DL3 | F150: DL4 | G150: DL5 | H150: DL6
A151: 18 | B151: - 24 | C151: =+C118*$G$2 -> 0 | D151: 0 | E151: 0 | F151: 0 | G151: 0 | H151: 0
A152: 25 | B152: - 29 | C152: 0 | D152: 0 | E152: 0 | F152: 0 | G152: 0 | H152: 0
A153: 30 | B153: - 34 | C153: 0 | D153: 0 | E153: 0 | F153: 0 | G153: 0 | H153: 0
A154: 35 | B154: - 39 | C154: 0 | D154: 0 | E154: 0 | F154: 0 | G154: 0 | H154: 0
A155: 40 | B155: - 44 | C155: 0 | D155: 0 | E155: 0 | F155: 0 | G155: 0 | H155: 0
A156: 45 | B156: - 49 | C156: 0 | D156: 0 | E156: 0 | F156: 0 | G156: 0 | H156: 0
A157: 50 | B157: - 54 | C157: 0 | D157: 0 | E157: 0 | F157: 0 | G157: 0 | H157: 0
A158: 55 | B158: - 59 | C158: 0 | D158: 0 | E158: 0 | F158: 0 | G158: 0 | H158: 0
A159: 60 | C159: 0 | D159: 0 | E159: 0 | F159: 0 | G159: 0 | H159: 0
A160: 61 | C160: 0 | D160: 0 | E160: 0 | F160: 0 | G160: 0 | H160: 0
A161: 62 | C161: =+C128*$G$2 -> 0 | D161: 0 | E161: 0 | F161: 0 | G161: 0 | H161: 0
A162: 63 | C162: 0 | D162: 0 | E162: 0 | F162: 0 | G162: 0 | H162: 0
A163: 64 | C163: 0 | D163: 0 | E163: 0 | F163: 0 | G163: 0 | H163: 0
A164: 65 | C164: 0 | D164: 0 | E164: 0 | F164: 0 | G164: 0 | H164: 0
A165: 66 | C165: 0 | D165: 0 | E165: 0 | F165: 0 | G165: 0 | H165: 0
A166: 67 | C166: 0 | D166: 0 | E166: 0 | F166: 0 | G166: 0 | H166: 0
A167: 68 | C167: 0 | D167: 0 | E167: 0 | F167: 0 | G167: 0 | H167: 0
A168: 69 | C168: 0 | D168: 0 | E168: 0 | F168: 0 | G168: 0 | H168: 0
A169: 70 | C169: 0 | D169: 0 | E169: 0 | F169: 0 | G169: 0 | H169: 0
A170: 71 | C170: 0 | D170: 0 | E170: 0 | F170: 0 | G170: 0 | H170: 0
A171: 72 | C171: =+C138*$G$2 -> 0 | D171: 0 | E171: 0 | F171: 0 | G171: 0 | H171: 0
A172: 73 | C172: 0 | D172: 0 | E172: 0 | F172: 0 | G172: 0 | H172: 0
A173: 74 | C173: 0 | D173: 0 | E173: 0 | F173: 0 | G173: 0 | H173: 0
A174: 75 | B174: o más | C174: 0 | D174: 0 | E174: 0 | F174: 0 | G174: 0 | H174: 0
A175: 1 | B175: Hijo | C175: 0 | D175: 0 | E175: 0 | F175: 0 | G175: 0 | H175: 0
A176: 2 | B176: Hijos | C176: 0 | D176: 0 | E176: 0 | F176: 0 | G176: 0 | H176: 0
A177: 3 | B177: Hijos o más | C177: 0 | D177: 0 | E177: 0 | F177: 0 | G177: 0 | H177: 0
A178: 1 | B178: Rider Comp. Maternidad | C178: 0 | D178: 0 | E178: 0 | F178: 0 | G178: 0 | H178: 0
A179: 1 | B179: Transplante de organos | C179: 0 | D179: 0 | E179: 0 | F179: 0 | G179: 0 | H179: 0
A184: BUPA COMPLETE CARE (MUNDIAL)
A185: TARIFAS ANUALES
A186: EDAD
C187: CW1 | D187: CW2 | E187: CW3 | F187: CW4 | G187: CW5 | H187: CW6
A188: 18 | B188: 18-24 | C188: 27050 | D188: 14057 | E188: 8171 | F188: 4544 | G188: 3906 | H188: 4104
A189: 25 | B189: 25-29 | C189: 29422 | D189: 16092 | E189: 10410 | F189: 6345 | G189: 5236 | H189: 4542
A190: 30 | B190: 30-34 | C190: 31794 | D190: 18127 | E190: 12650 | F190: 8146 | G190: 6567 | H190: 5436
A191: 35 | B191: 35-39 | C191: 34165 | D191: 20099 | E191: 14889 | F191: 9947 | G191: 7897 | H191: 5938
A192: 40 | B192: 40-44 | C192: 34710 | D192: 22374 | E192: 16955 | F192: 10237 | G192: 8016 | H192: 6695
A193: 45 | B193: 45-49 | C193: 36759 | D193: 25728 | E193: 19858 | F193: 14337 | G193: 9820 | H193: 7534
A194: 50 | B194: 50-54 | C194: 45153 | D194: 32016 | E194: 26159 | F194: 18825 | G194: 13977 | H194: 10706
A195: 55 | B195: 55-59 | C195: 54031 | D195: 38486 | E195: 27823 | F195: 20026 | G195: 14858 | H195: 11390
A196: 60 | B196: 60 | C196: 67246 | D196: 42633 | E196: 30216 | F196: 22772 | G196: 17664 | H196: 14196
A197: 61 | B197: 61 | C197: 72215 | D197: 45802 | E197: 32436 | F197: 24453 | G197: 18963 | H197: 15249
A198: 62 | B198: 62 | C198: 79003 | D198: 50126 | E198: 35516 | F198: 26776 | G198: 20751 | H198: 16688
A199: 63 | B199: 63 | C199: 82569 | D199: 53294 | E199: 37748 | F199: 28449 | G199: 22058 | H199: 17727
A200: 64 | B200: 64 | C200: 84815 | D200: 57629 | E200: 40828 | F200: 30769 | G200: 23847 | H200: 19183
A201: 65 | B201: 65 | C201: 89126 | D201: 65223 | E201: 53220 | F201: 38873 | G201: 31761 | H201: 24360
A202: 66 | B202: 66 | C202: 95116 | D202: 68914 | E202: 58158 | F202: 44664 | G202: 36899 | H202: 25902
A203: 67 | B203: 67 | C203: 101536 | D203: 72663 | E203: 61463 | F203: 47406 | G203: 38886 | H203: 27497
A204: 68 | B204: 68 | C204: 108965 | D204: 76955 | E204: 65104 | F204: 50399 | G204: 40486 | H204: 29321
A205: 69 | B205: 69 | C205: 117982 | D205: 82272 | E205: 69347 | F205: 53817 | G205: 42529 | H205: 31553
A206: 70 | B206: 70 | C206: 129166 | D206: 89096 | E206: 74454 | F206: 57830 | G206: 45376 | H206: 34370
A207: 71 | B207: 71 | C207: 143229 | D207: 97902 | E207: 80702 | F207: 62633 | G207: 49253 | H207: 37958
A208: 72 | B208: 72 | C208: 159786 | D208: 108368 | E208: 87914 | F208: 68109 | G208: 53920 | H208: 42199
A209: 73 | B209: 73 | C209: 173157 | D209: 119782 | E209: 95678 | F209: 73971 | G209: 59038 | H209: 46813
A210: 74 | B210: 74 | C210: 176215 | D210: 131433 | E210: 103579 | F210: 79643 | G210: 64268 | H210: 51520
A211: 75 | B211: 75+ | C211: 183865 | D211: 142610 | E211: 111205 | F211: 83114 | G211: 67228 | H211: 56041
A212: 1 | B212: 1 Child | C212: 9870 | D212: 6141 | E212: 4491 | F212: 2926 | G212: 2436 | H212: 1877
A213: 2 | B213: 2 Children | C213: 15468 | D213: 9142 | E213: 6153 | F213: 3928 | G213: 3128 | H213: 2829
A214: 3 | B214: 3+ Children | C214: 22487 | D214: 11105 | E214: 7504 | F214: 4825 | G214: 3762 | H214: 3376
A215: 1 | B215: Rider Comp. Maternidad | C215: 0 | D215: 0 | E215: 0 | F215: 225 | G215: 225 | H215: 225
A216: 1 | B216: Transplante de organos | C216: 0 | D216: 0 | E216: 0 | F216: 0 | G216: 0 | H216: 0
A220: TARIFAS SEMESTRALES
A221: EDAD
... 434 more rows

Sheet Tablas Resto de Ecuador (hidden)
K1: D1 | L1: D2 | M1: D3 | N1: D4 | O1: D5 | P1: D6
B2: REGIÓN | C2: ='INGRESO DE DATOS'!W14 -> Guayas/Santa Elena | E2: FACTOR SEMESTRAL : | G2: 0.53 | I2: NEW BUSINESS DISCUOUNTS | K2: ='INGRESO DE DATOS'!O42 -> 1 | L2: ='INGRESO DE DATOS'!P42 -> 1 | M2: ='INGRESO DE DATOS'!Q42 -> 1 | N2: ='INGRESO DE DATOS'!R42 -> 1 | O2: ='INGRESO DE DATOS'!S42 -> 1 | P2: ='INGRESO DE DATOS'!T42 -> 1
A5: BUPA DIAMOND CARE (MUNDIAL)
A6: TARIFAS ANUALES
A7: EDAD
C8: DW1 | D8: DW2 | E8: DW3 | F8: DW4 | G8: DW5 | H8: DW6
A9: 18 | B9: 18-24 | C9: 31719 | D9: 19610 | E9: 12204 | F9: 8880 | G9: 5699 | H9: 4509
A10: 25 | B10: 25-29 | C10: 33285 | D10: 20562 | E10: 14355 | F10: 9825 | G10: 6297 | H10: 4979
A11: 30 | B11: 30-34 | C11: 34404 | D11: 21387 | E11: 15387 | F11: 10984 | G11: 7520 | H11: 5954
A12: 35 | B12: 35-39 | C12: 38452 | D12: 23936 | E12: 17206 | F12: 12295 | G12: 8414 | H12: 6661
A13: 40 | B13: 40-44 | C13: 44490 | D13: 27720 | E13: 18808 | F13: 13630 | G13: 9233 | H13: 7304
A14: 45 | B14: 45-49 | C14: 49659 | D14: 30978 | E14: 21023 | F14: 15210 | G14: 10308 | H14: 8144
A15: 50 | B15: 50-54 | C15: 63729 | D15: 39619 | E15: 27529 | F15: 19822 | G15: 14503 | H15: 11467
A16: 55 | B16: 55-59 | C16: 68594 | D16: 42134 | E16: 29295 | F16: 21077 | G16: 15435 | H16: 12200
A17: 60 | B17: 60 | C17: 71322 | D17: 45886 | E17: 31947 | F17: 24234 | G17: 18563 | H17: 15126
A18: 61 | B18: 61 | C18: 77401 | D18: 49294 | E18: 34321 | F18: 26010 | G18: 19939 | H18: 16234
A19: 62 | B19: 62 | C19: 85147 | D19: 53956 | E19: 37564 | F19: 28480 | G19: 21812 | H19: 17767
A20: 63 | B20: 63 | C20: 91087 | D20: 57360 | E20: 39933 | F20: 30262 | G20: 23190 | H20: 18883
A21: 64 | B21: 64 | C21: 98495 | D21: 62036 | E21: 43210 | F21: 32736 | G21: 25077 | H21: 20420
A22: 65 | B22: 65 | C22: 103205 | D22: 81045 | E22: 56306 | F22: 41354 | G22: 33397 | H22: 28750
A23: 66 | B23: 66 | C23: 107877 | D23: 89246 | E23: 65401 | F23: 48038 | G23: 38800 | H23: 33380
A24: 67 | B24: 67 | C24: 117790 | D24: 95996 | E24: 71420 | F24: 52454 | G24: 42362 | H24: 36443
A25: 68 | B25: 68 | C25: 130368 | D25: 102909 | E25: 76319 | F25: 58065 | G25: 46898 | H25: 40354
A26: 69 | B26: 69 | C26: 143383 | D26: 110024 | E26: 81222 | F26: 63872 | G26: 51585 | H26: 44385
A27: 70 | B27: 70 | C27: 156864 | D27: 117383 | E27: 86292 | F27: 69492 | G27: 60093 | H27: 52182
A28: 71 | B28: 71 | C28: 167620 | D28: 125073 | E28: 91584 | F28: 74014 | G28: 62448 | H28: 54224
A29: 72 | B29: 72 | C29: 179108 | D29: 133066 | E29: 97073 | F29: 78737 | G29: 64209 | H29: 55760
A30: 73 | B30: 73 | C30: 187936 | D30: 141233 | E30: 102674 | F30: 83272 | G30: 66571 | H30: 57803
A31: 74 | B31: 74 | C31: 191245 | D31: 149442 | E31: 108303 | F31: 84744 | G31: 67738 | H31: 58829
A32: 75 | B32: 75+ | C32: 199547 | D32: 157566 | E32: 113876 | F32: 88427 | G32: 70691 | H32: 61385
A33: 1 | B33: 1 Child | C33: 6954 | D33: 4549 | E33: 3111 | F33: 2376 | G33: 2304 | H33: 2005
A34: 2 | B34: 2 Children | C34: 11533 | D34: 7606 | E34: 5355 | F34: 4104 | G34: 3978 | H34: 3436
A35: 3 | B35: 3+ Children | C35: 15658 | D35: 10421 | E35: 7437 | F35: 5726 | G35: 5533 | H35: 4763
A36: 1 | B36: Rider Comp. Maternidad | C36: 0 | D36: 0 | E36: 0 | F36: 225 | G36: 225 | H36: 225
A37: 1 | B37: Transplante de organos | C37: 0 | D37: 0 | E37: 0 | F37: 0 | G37: 0 | H37: 0
A41: TARIFAS SEMESTRALES
A42: EDAD
D43: DW2 | E43: DW3 | F43: DW4 | G43: DW5 | H43: DW6
A44: 18 | B44: 18-24 | D44: =$G$2*D9 -> 10393.3 | E44: 6468.12 | F44: 4706.4 | G44: 3020.47 | H44: 2389.77
A45: 25 | B45: 25-29 | D45: 10897.86 | E45: 7608.15 | F45: 5207.25 | G45: 3337.41 | H45: 2638.87
A46: 30 | B46: 30-34 | D46: 11335.11 | E46: 8155.11 | F46: 5821.52 | G46: 3985.6 | H46: 3155.62
A47: 35 | B47: 35-39 | D47: 12686.08 | E47: 9119.18 | F47: 6516.35 | G47: 4459.42 | H47: 3530.33
A48: 40 | B48: 40-44 | D48: 14691.6 | E48: 9968.24 | F48: 7223.9 | G48: 4893.49 | H48: 3871.12
A49: 45 | B49: 45-49 | D49: 16418.34 | E49: 11142.19 | F49: 8061.3 | G49: 5463.24 | H49: 4316.32
A50: 50 | B50: 50-54 | D50: 20998.07 | E50: 14590.37 | F50: 10505.66 | G50: 7686.59 | H50: 6077.51
A51: 55 | B51: 55-59 | D51: 22331.02 | E51: 15526.35 | F51: 11170.81 | G51: 8180.55 | H51: 6466
A52: 60 | B52: 60 | D52: 24319.58 | E52: 16931.91 | F52: 12844.02 | G52: 9838.39 | H52: 8016.78
A53: 61 | B53: 61 | D53: 26125.82 | E53: 18190.13 | F53: 13785.3 | G53: 10567.67 | H53: 8604.02
A54: 62 | B54: 62 | D54: 28596.68 | E54: 19908.92 | F54: 15094.4 | G54: 11560.36 | H54: 9416.51
A55: 63 | B55: 63 | D55: 30400.8 | E55: 21164.49 | F55: 16038.86 | G55: 12290.7 | H55: 10007.99
A56: 64 | B56: 64 | D56: 32879.08 | E56: 22901.3 | F56: 17350.08 | G56: 13290.81 | H56: 10822.6
A57: 65 | B57: 65 | D57: 42953.85 | E57: 29842.18 | F57: 21917.62 | G57: 17700.41 | H57: 15237.5
A58: 66 | B58: 66 | D58: 47300.38 | E58: 34662.53 | F58: 25460.14 | G58: 20564 | H58: 17691.4
A59: 67 | B59: 67 | D59: 50877.88 | E59: 37852.6 | F59: 27800.62 | G59: 22451.86 | H59: 19314.79
A60: 68 | B60: 68 | D60: =$G$2*D25 -> 54541.77 | E60: 40449.07 | F60: 30774.45 | G60: 24855.94 | H60: 21387.62
A61: 69 | B61: 69 | D61: 58312.72 | E61: 43047.66 | F61: 33852.16 | G61: 27340.05 | H61: 23524.05
A62: 70 | B62: 70 | D62: 62212.99 | E62: 45734.76 | F62: 36830.76 | G62: 31849.29 | H62: 27656.46
A63: 71 | B63: 71 | D63: 66288.69 | E63: 48539.52 | F63: 39227.42 | G63: 33097.44 | H63: 28738.72
A64: 72 | B64: 72 | D64: 70524.98 | E64: 51448.69 | F64: 41730.61 | G64: 34030.77 | H64: 29552.8
A65: 73 | B65: 73 | D65: 74853.49 | E65: 54417.22 | F65: 44134.16 | G65: 35282.63 | H65: 30635.59
A66: 74 | B66: 74 | D66: 79204.26 | E66: 57400.59 | F66: 44914.32 | G66: 35901.14 | H66: 31179.37
A67: 75 | B67: 75+ | D67: 83509.98 | E67: 60354.28 | F67: 46866.31 | G67: 37466.23 | H67: 32534.05
A68: 1 | B68: 1 Child | D68: 2410.97 | E68: 1648.83 | F68: 1259.28 | G68: 1221.12 | H68: 1062.65
A69: 2 | B69: 2 Children | D69: 4031.18 | E69: 2838.15 | F69: 2175.12 | G69: 2108.34 | H69: 1821.08
A70: 3 | B70: 3+ Children | D70: 5523.13 | E70: 3941.61 | F70: 3034.78 | G70: 2932.49 | H70: 2524.39
A71: 1 | B71: Rider Comp. Maternidad | D71: =+D36*$G$2 -> 0 | E71: 0 | F71: 119.25 | G71: 119.25 | H71: 119.25
A72: 1 | B72: Transplante de organos | D72: 0 | E72: 0 | F72: 0 | G72: 0 | H72: 0
A75: BUPA DIAMOND CARE (LATIN AMERICA)
A76: TARIFAS ANUALES
A77: EDAD
C78: DW1 | D78: DW2 | E78: DW3 | F78: DW4 | G78: DW5 | H78: DW6
A79: 18 | B79: 18-24 | C79: 24996 | D79: 15396 | E79: 10167 | F79: 6905 | G79: 4389 | H79: 3445
A80: 25 | B80: 25-29 | C80: 26219 | D80: 16147 | E80: 11248 | F80: 7657 | G80: 4872 | H80: 3833
A81: 30 | B81: 30-34 | C81: 27114 | D81: 16816 | E81: 12058 | F81: 8593 | G81: 5843 | H81: 4597
A82: 35 | B82: 35-39 | C82: 30321 | D82: 18821 | E82: 13510 | F82: 9612 | G82: 6545 | H82: 5154
A83: 40 | B83: 40-44 | C83: 35108 | D83: 21822 | E83: 14763 | F83: 10682 | G83: 7195 | H83: 5674
A84: 45 | B84: 45-49 | C84: 39199 | D84: 24405 | E84: 16520 | F84: 11952 | G84: 8049 | H84: 6340
A85: 50 | B85: 50-54 | C85: 50951 | D85: 31243 | E85: 21680 | F85: 15595 | G85: 11380 | H85: 8974
A86: 55 | B86: 55-59 | C86: 54196 | D86: 33229 | E86: 23079 | F86: 16579 | G86: 12111 | H86: 9551
A87: 60 | B87: 60 | C87: 57649 | D87: 36207 | E87: 25175 | F87: 19075 | G87: 14600 | H87: 11866
A88: 61 | B88: 61 | C88: 61922 | D88: 38912 | E88: 27048 | F88: 20487 | G88: 15690 | H88: 12738
A89: 62 | B89: 62 | C89: 67740 | D89: 42608 | E89: 29635 | F89: 22453 | G89: 17179 | H89: 13951
A90: 63 | B90: 63 | C90: 72008 | D90: 45294 | E90: 31503 | F90: 23865 | G90: 18266 | H90: 14840
A91: 64 | B91: 64 | C91: 77878 | D91: 48988 | E91: 34098 | F91: 25826 | G91: 19748 | H91: 16065
A92: 65 | B92: 65 | C92: 81599 | D92: 64067 | E92: 44479 | F92: 32656 | G92: 26361 | H92: 22677
A93: 66 | B93: 66 | C93: 85312 | D93: 74428 | E93: 51674 | F93: 37949 | G93: 30638 | H93: 26334
A94: 67 | B94: 67 | C94: 93155 | D94: 81308 | E94: 56449 | F94: 41456 | G94: 33455 | H94: 28776
A95: 68 | B95: 68 | C95: 103126 | D95: 90031 | E95: 62492 | F95: 45911 | G95: 37059 | H95: 31862
A96: 69 | B96: 69 | C96: 113437 | D96: 99057 | E96: 68777 | F96: 50510 | G96: 40772 | H96: 35058
A97: 70 | B97: 70 | C97: 134235 | D97: 121916 | E97: 83740 | F97: 59461 | G97: 47513 | H97: 41236
A98: 71 | B98: 71 | C98: 139510 | D98: 126706 | E98: 87018 | F98: 61799 | G98: 49374 | H98: 42874
A99: 72 | B99: 72 | C99: 143438 | D99: 130289 | E99: 89486 | F99: 63545 | G99: 50778 | H99: 44067
A100: 73 | B100: 73 | C100: 148713 | D100: 135087 | E100: 92769 | F100: 65884 | G100: 52642 | H100: 45703
A101: 74 | B101: 74 | C101: 151323 | D101: 137464 | E101: 94423 | F101: 67034 | G101: 53581 | H101: 46504
A102: 75 | B102: 75+ | C102: 157905 | D102: 143449 | E102: 98525 | F102: 69971 | G102: 55906 | H102: 48547
A103: 1 | B103: 1 Child | C103: 8667 | D103: 5361 | E103: 3957 | F103: 3097 | G103: 2327 | H103: 1829
A104: 2 | B104: 2 Children | C104: 13601 | D104: 8526 | E104: 6286 | F104: 4930 | G104: 3717 | H104: 2898
A105: 3 | B105: 3+ Children | C105: 19806 | D105: 12487 | E105: 9214 | F105: 7224 | G105: 5451 | H105: 4245
A106: 1 | B106: Rider Comp. Maternidad | C106: 0 | D106: 0 | E106: 0 | F106: 225 | G106: 225 | H106: 225
A107: 1 | B107: Transplante de organos | C107: 0 | D107: 0 | E107: 0 | F107: 0 | G107: 0 | H107: 0
A114: DIAMOND (LATINAMERICA ONLY)
A115: TARIFAS ANUALES
A116: EDAD
C117: DL1 | D117: DL2 | E117: DL3 | F117: DL4 | G117: DL5 | H117: DL6
A118: 18 | B118: - 24
A119: 25 | B119: - 29
A120: 30 | B120: - 34
A121: 35 | B121: - 39
A122: 40 | B122: - 44
A123: 45 | B123: - 49
A124: 50 | B124: - 54
A125: 55 | B125: - 59
A126: 60
A127: 61
A128: 62
A129: 63
A130: 64
A131: 65
A132: 66
A133: 67
A134: 68
A135: 69
A136: 70
A137: 71
A138: 72
A139: 73
A140: 74
A141: 75 | B141: o más
A142: 1 | B142: Hijo
A143: 2 | B143: Hijos
A144: 3 | B144: Hijos o más
A145: 1 | B145: Rider Comp. Maternidad
A146: 1 | B146: Transplante de organos | C146: 0 | D146: 0 | E146: 0 | F146: 0 | G146: 0 | H146: 0
A148: TARIFAS SEMESTRALES
A149: EDAD
C150: DL1 | D150: DL2 | E150: DL3 | F150: DL4 | G150: DL5 | H150: DL6
A151: 18 | B151: - 24 | C151: =+C118*$G$2 -> 0 | D151: 0 | E151: 0 | F151: 0 | G151: 0 | H151: 0
A152: 25 | B152: - 29 | C152: 0 | D152: 0 | E152: 0 | F152: 0 | G152: 0 | H152: 0
A153: 30 | B153: - 34 | C153: 0 | D153: 0 | E153: 0 | F153: 0 | G153: 0 | H153: 0
A154: 35 | B154: - 39 | C154: 0 | D154: 0 | E154: 0 | F154: 0 | G154: 0 | H154: 0
A155: 40 | B155: - 44 | C155: 0 | D155: 0 | E155: 0 | F155: 0 | G155: 0 | H155: 0
A156: 45 | B156: - 49 | C156: 0 | D156: 0 | E156: 0 | F156: 0 | G156: 0 | H156: 0
A157: 50 | B157: - 54 | C157: 0 | D157: 0 | E157: 0 | F157: 0 | G157: 0 | H157: 0
A158: 55 | B158: - 59 | C158: 0 | D158: 0 | E158: 0 | F158: 0 | G158: 0 | H158: 0
A159: 60 | C159: 0 | D159: 0 | E159: 0 | F159: 0 | G159: 0 | H159: 0
A160: 61 | C160: 0 | D160: 0 | E160: 0 | F160: 0 | G160: 0 | H160: 0
A161: 62 | C161: 0 | D161: 0 | E161: 0 | F161: 0 | G161: 0 | H161: 0
A162: 63 | C162: 0 | D162: 0 | E162: 0 | F162: 0 | G162: 0 | H162: 0
A163: 64 | C163: 0 | D163: 0 | E163: 0 | F163: 0 | G163: 0 | H163: 0
A164: 65 | C164: 0 | D164: 0 | E164: 0 | F164: 0 | G164: 0 | H164: 0
A165: 66 | C165: 0 | D165: 0 | E165: 0 | F165: 0 | G165: 0 | H165: 0
A166: 67 | C166: 0 | D166: 0 | E166: 0 | F166: 0 | G166: 0 | H166: 0
A167: 68 | C167: =+C134*$G$2 -> 0 | D167: 0 | E167: 0 | F167: 0 | G167: 0 | H167: 0
A168: 69 | C168: 0 | D168: 0 | E168: 0 | F168: 0 | G168: 0 | H168: 0
A169: 70 | C169: 0 | D169: 0 | E169: 0 | F169: 0 | G169: 0 | H169: 0
A170: 71 | C170: 0 | D170: 0 | E170: 0 | F170: 0 | G170: 0 | H170: 0
A171: 72 | C171: 0 | D171: 0 | E171: 0 | F171: 0 | G171: 0 | H171: 0
A172: 73 | C172: 0 | D172: 0 | E172: 0 | F172: 0 | G172: 0 | H172: 0
A173: 74 | C173: 0 | D173: 0 | E173: 0 | F173: 0 | G173: 0 | H173: 0
A174: 75 | B174: o más | C174: 0 | D174: 0 | E174: 0 | F174: 0 | G174: 0 | H174: 0
A175: 1 | B175: Hijo | C175: 0 | D175: 0 | E175: 0 | F175: 0 | G175: 0 | H175: 0
A176: 2 | B176: Hijos | C176: 0 | D176: 0 | E176: 0 | F176: 0 | G176: 0 | H176: 0
A177: 3 | B177: Hijos o más | C177: 0 | D177: 0 | E177: 0 | F177: 0 | G177: 0 | H177: 0
A178: 1 | B178: Rider Comp. Maternidad | C178: 0 | D178: 0 | E178: 0 | F178: 0 | G178: 0 | H178: 0
A179: 1 | B179: Transplante de organos | C179: 0 | D179: 0 | E179: 0 | F179: 0 | G179: 0 | H179: 0
A184: BUPA COMPLETE CARE (MUNDIAL)
A185: TARIFAS ANUALES
A186: EDAD
C187: CW1 | D187: CW2 | E187: CW3 | F187: CW4 | G187: CW5 | H187: CW6
A188: 18 | B188: 18-24 | C188: 27050 | D188: 14057 | E188: 8171 | F188: 4544 | G188: 3906 | H188: 3788
A189: 25 | B189: 25-29 | C189: 28437 | D189: 16092 | E189: 10410 | F189: 6345 | G189: 5236 | H189: 4194
A190: 30 | B190: 30-34 | C190: 29659 | D190: 18091 | E190: 12650 | F190: 8146 | G190: 6567 | H190: 5051
A191: 35 | B191: 35-39 | C191: 33144 | D191: 20099 | E191: 14889 | F191: 9947 | G191: 7376 | H191: 5651
A192: 40 | B192: 40-44 | C192: 34710 | D192: 22374 | E192: 16493 | F192: 10237 | G192: 8016 | H192: 6222
A193: 45 | B193: 45-49 | C193: 36759 | D193: 25728 | E193: 18415 | F193: 13293 | G193: 9056 | H193: 6948
A194: 50 | B194: 50-54 | C194: 45153 | D194: 32016 | E194: 24257 | F194: 17406 | G194: 12884 | H194: 9872
A195: 55 | B195: 55-59 | C195: 54031 | D195: 36315 | E195: 25800 | F195: 18518 | G195: 13696 | H195: 10501
A196: 60 | B196: 60 | C196: 62344 | D196: 39530 | E196: 28017 | F196: 21055 | G196: 16281 | H196: 13084
A197: 61 | B197: 61 | C197: 66951 | D197: 42466 | E197: 30077 | F197: 22607 | G197: 17478 | H197: 14056
A198: 62 | B198: 62 | C198: 73243 | D198: 46475 | E198: 32930 | F198: 24755 | G198: 19125 | H198: 15382
A199: 63 | B199: 63 | C199: 77835 | D199: 49411 | E199: 35000 | F199: 26302 | G199: 20330 | H199: 16340
A200: 64 | B200: 64 | C200: 84163 | D200: 53432 | E200: 37856 | F200: 28445 | G200: 21978 | H200: 17681
A201: 65 | B201: 65 | C201: 88173 | D201: 65223 | E201: 49342 | F201: 35937 | G201: 29268 | H201: 24360
A202: 66 | B202: 66 | C202: 92185 | D202: 68914 | E202: 57316 | F202: 41731 | G202: 34001 | H202: 25902
A203: 67 | B203: 67 | C203: 100634 | D203: 72663 | E203: 61463 | F203: 45572 | G203: 37126 | H203: 27497
A204: 68 | B204: 68 | C204: 108965 | D204: 76955 | E204: 65104 | F204: 50399 | G204: 40486 | H204: 29321
A205: 69 | B205: 69 | C205: 117982 | D205: 82272 | E205: 69347 | F205: 53817 | G205: 42529 | H205: 31553
A206: 70 | B206: 70 | C206: 129166 | D206: 89096 | E206: 74454 | F206: 57830 | G206: 45376 | H206: 34370
A207: 71 | B207: 71 | C207: 143229 | D207: 97902 | E207: 80702 | F207: 62633 | G207: 49253 | H207: 37958
A208: 72 | B208: 72 | C208: 154846 | D208: 108368 | E208: 87914 | F208: 68109 | G208: 53920 | H208: 42199
A209: 73 | B209: 73 | C209: 160527 | D209: 119782 | E209: 95678 | F209: 72347 | G209: 58332 | H209: 46813
A210: 74 | B210: 74 | C210: 163361 | D210: 131433 | E210: 103579 | F210: 73617 | G210: 59361 | H210: 50898
A211: 75 | B211: 75+ | C211: 170452 | D211: 142610 | E211: 109138 | F211: 76824 | G211: 61942 | H211: 53108
A212: 1 | B212: 1 Child | C212: 9151 | D212: 5694 | E212: 4163 | F212: 2926 | G212: 2341 | H212: 1730
A213: 2 | B213: 2 Children | C213: 14341 | D213: 9051 | E213: 6153 | F213: 3928 | G213: 3128 | H213: 2756
A214: 3 | B214: 3+ Children | C214: 20845 | D214: 11105 | E214: 7504 | F214: 4825 | G214: 3762 | H214: 3376
A215: 1 | B215: Rider Comp. Maternidad | C215: 0 | D215: 0 | E215: 0 | F215: 225 | G215: 225 | H215: 225
A216: 1 | B216: Transplante de organos | C216: 0 | D216: 0 | E216: 0 | F216: 0 | G216: 0 | H216: 0
A220: TARIFAS SEMESTRALES
A221: EDAD
... 434 more rows
